Workbook

Sheet 1. Info
AB1: Alectra Utilities Corporation-Brampton Rate Zone
AB2: Alectra Utilities Corporation-Enersource Rate Zone
AB3: Alectra Utilities Corporation-Horizon Utilities Rate Zone
AB4: Alectra Utilities Corporation-PowerStream Rate Zone
AB5: Alectra Utilities Corporation-Guelph Rate Zone
AB6: Algoma Power Inc.
AB7: Atikokan Hydro Inc.
AB8: Bluewater Power Distribution Corporation
AB9: Burlington Hydro Inc.
AB10: Canadian Niagara Power Inc.
AB11: Centre Wellington Hydro Ltd.
AB12: Chapleau Public Utilities Corporation
AB13: Cooperative Hydro Embrun Inc.
AB14: E.L.K. Energy Inc.
C15: Utility Name | D15: Synergy North Corporation-Thunder Bay Rate Zone | AB15: Elexicon Energy Inc.-Whitby Rate Zone
AB16: Elexicon Energy Inc.-Veridian Rate Zone
C17: Assigned EB Number | D17: EB-2025-0008 | AB17: Enova Power Corp.-Kitchener-Wilmot Hydro Rate Zone
AB18: Enova Power Corp.-Waterloo North Rate Zone
C19: Name and Title of Contact | D19: Jillian Hanstead | AB19: Entegrus Powerlines Inc.-For Entegrus-Main Rate Zone
AB20: Entegrus Powerlines Inc.-For Former St. Thomas Energy Rate Zone
C21: Phone Number | AB21: ENWIN Utilities Ltd.
AB22: EPCOR Electricity Distribution Ontario Inc.
C23: Email Address | AB23: ERTH Power Corporation - ERTH Power Main Rate Zone
AB24: ERTH POWER CORPORATION – GODERICH RATE ZONE
C25: Last COS Re-based Year | D25: 2023 | AB25: Essex Powerlines Corporation
AB26: Festival Hydro Inc.
AB27: Fort Frances Power Corporation
AB28: GrandBridge Energy Inc.-Brantford Power Rate Zone
AB29: GrandBridge Energy Inc.-Energy+ Rate Zone
AB30: Greater Sudbury Hydro Inc.
AB31: Grimsby Power Incorporated
AB32: Halton Hills Hydro Inc.
AB33: Hearst Power Distribution Co. Ltd.
AB34: Hydro 2000 Inc.
AB35: Hydro Hawkesbury Inc.
AB36: Hydro One Networks Inc.
AB37: Hydro One Networks Inc.-Former Orillia Power Distribution Corporation Service Area
AB38: Hydro One Networks Inc.-Former Peterborough Distribution Inc. Service Area
AB39: Hydro One Networks Inc.-Former Haldimand County Hydro Inc. Service Area
AB40: Hydro One Networks Inc.-Former Norfolk Power Distribution Inc. Service Area
AB41: Hydro One Networks Inc.-Former Woodstock Hydro Services Inc. Service Area
AB42: Hydro One Remote Communites Inc.
AB43: Hydro Ottawa Limited
AB44: InnPower Corporation
AB45: Kingston Hydro Corporation
AB46: Lakefront Utilities Inc.
AB47: Lakeland Power Distribution Ltd.
AB48: London Hydro Inc.
AB49: Milton Hydro Distribution Inc.
AB50: Newmarket-Tay Power Distribution Ltd.-For Former Midland Power Utility Rate Zone
AB51: Newmarket-Tay Power Distribution Ltd.-For Newmarket-Tay Power Main Rate Zone
AB52: Niagara Peninsula Energy Inc.
AB53: Niagara-on-the-Lake Hydro Inc.
AB54: North Bay Hydro Distribution Limited
AB55: Northern Ontario Wires Inc.
AB56: Oakville Hydro Electricity Distribution Inc.
AB57: Orangeville Hydro Limited
AB58: Oshawa PUC Networks Inc.
AB59: Ottawa River Power Corporation
AB60: PUC Distribution Inc.
AB61: Renfrew Hydro Inc.
AB62: Rideau St. Lawrence Distribution Inc.
AB63: Sioux Lookout Hydro Inc.
AB64: Synergy North Corporation-Kenora Rate Zone
AB65: Synergy North Corporation-Thunder Bay Rate Zone
AB66: Tillsonburg Hydro Inc.
AB67: Toronto Hydro-Electric System Limited
AB68: Wasaga Distribution Inc.
AB69: Welland Hydro-Electric System Corp.
AB70: Wellington North Power Inc.
AB71: Westario Power Inc.

Sheet 2. Table of Contents
C12: 1. Info | E12: 8. Transformer Allowance
C13: 2. Table of Contents | E13: 9. R C Ratio Revenue
C14: 3. Re-Based Bill Det & Rates | E14: 10. Proposed R C Ratio Adj
C15: 4. Removal of Rate Adders | E15: 11. Proposed Revenue
C16: 5. Re-Based Rev From Rates | E16: 12. Proposed F V Rev Alloc
C17: 6. Decision Cost Revenue Adj | E17: 13. Proposed F V Rates
C18: 7. Revenue Offsets Allocation | E18: 14. Adjust To Proposed Rates

Sheet 3. Re-Based Bill Det & Rates
AZ1: 1
A10: The purpose of this sheet is to set up the rate classes, enter the re-based billing determinants from your last cost of service application and enter the current service charge and volumetric distribution rates as found on your most current Tariff of Rates and Charges.
B20: Control | D20: Rate Class | E20: Fixed Metric | F20: Vol Metric | G20: OEB Audit | I20: Re-based Billed Customers or Connections | J20: Re-based Billed kWh | K20: Re-based Billed kW | M20: Current Tariff Service Charge | N20: Current Tariff Distribution Volumetric Rate kWh | O20: Current Tariff Distribution Volumetric Rate kW | AA20: Residential | AB20: Threshold | AD20: Less Than 50 | AE20: Threshold | AG20: Greater Than 50 | AH20: Threshold | AJ20: Large Use | AK20: Threshold | AM20: USL | AN20: Threshold | AP20: Sentinel | AQ20: Threshold | AS20: Street | AT20: Threshold | AV20: EMB | AY20: SB
I21: A | J21: B | K21: C | M21: D | N21: E | O21: F | AA21: Residential | AB21: 250 / 2,250 | AD21: General Service Less Than 50 kW | AE21: 2,000 / 20,000 | AG21: General Service 50 to 499 kW | AH21: 50 / 500 | AJ21: Large Use | AK21: 5,000 / 100,000 | AM21: Unmetered Scattered Load | AN21: 500 / 20,000 | AP21: Sentinel Lighting | AQ21: 0.2 / 1.0 | AS21: Street Lighting | AT21: 0.2 / 1.0 | AV21: Embedded Distributor | AY21: Stand-By
B22: 1 | D22: RESIDENTIAL SERVICE CLASSIFICATION | E22: Customers | F22: kWh | I22: 51255 | J22: 379776105 | M22: 35.41 | N22: 0 | O22: 0 | AA22: Residential Regular | AB22: 250 / 2,250 | AD22: General Service Less Than 50 kW – Single Phase energy-billed [G1] | AE22: 2,000 / 20,000 | AG22: General Service 50 to 699 kW | AH22: 50 / 700 | AJ22: Large Use - Regular | AK22: 5,000 / 100,000 | AV22: Low Voltage Wheeling Charge Rate | AY22: Standby Power
B23: 2 | D23: GENERAL SERVICE LESS THAN 50 KW SERVICE CLASSIFICATION | E23: Customers | F23: kWh | I23: 5487 | J23: 171279860 | M23: 40.5 | N23: 0.0228 | O23: 0 | AA23: Residential Urban | AB23: 250 / 2,250 | AD23: General Service Less Than 50 kW – Three Phase energy-billed [G3] | AE23: 2,000 / 20,000 | AG23: General Service 50 to 999 kW | AH23: 50 / 1,000 | AJ23: Large Use > 5000 kW | AK23: 5,000 / 100,000 | AY23: Standby Power – INTERIM APPROVAL
B24: 3 | D24: GENERAL SERVICE 50 TO 999 KW SERVICE CLASSIFICATION | E24: Customers | F24: kW | I24: 465 | J24: 285468167 | K24: 708872 | M24: 237.07 | N24: 0 | O24: 5.3205 | AA24: Residential Urban Year-Round | AB24: 250 / 2,250 | AD24: General Service Less Than 50 kW – Transmission Class energy-billed [T] | AE24: 2,000 / 20,000 | AG24: General Service 50 to 999 kW - Interval Metered | AH24: 50 / 1,000 | AJ24: Large Use - 3TS | AK24: 5,000 / 100,000 | AY24: Standby Power - APPROVED ON AN INTERIM BASIS
B25: 4 | D25: GENERAL SERVICE 1,000 KW OR GREATER SERVICE CLASSIFICATION | E25: Customers | F25: kW | I25: 15 | J25: 147499803 | K25: 472990 | M25: 3391.93 | N25: 0 | O25: 4.1488 | AA25: Residential Suburban | AB25: 250 / 2,250 | AD25: General Service Less Than 50 kW – Urban energy-billed [UG] | AE25: 2,000 / 20,000 | AG25: General Service 50 to 1,000 kW | AH25: 50 / 1,000 | AJ25: Large Use - Ford Annex | AK25: 5,000 / 100,000 | AY25: Standby - General Service 50 - 1,000 kW
B26: 5 | D26: UNMETERED SCATTERED LOAD SERVICE CLASSIFICATION | E26: Connections | F26: kWh | I26: 432 | J26: 2088274 | M26: 12.26 | N26: 0.0259 | O26: 0 | AA26: Residential Suburban Seasonal | AB26: 250 / 2,250 | AD26: Westport Sewage Treatment Plant | AE26: 2,000 / 20,000 | AG26: General Service 50 to 1,000 kW - Interval Meters | AH26: 50 / 1,500 | AY26: Standby Power General Service 50 to 1,499 kW
B27: 6 | D27: SENTINEL LIGHTING SERVICE CLASSIFICATION | E27: Connections | F27: kW | I27: 113 | J27: 96035 | K27: 258 | M27: 11.38 | N27: 0 | O27: 9.1216 | AA27: Residential Suburban Year Round | AB27: 250 / 2,250 | AD27: Farms – Single Phase energy-billed [F1] | AE27: 2,000 / 20,000 | AG27: General Service 50 to 1,000 kW - Non Interval Meters | AH27: 50 / 2,500 | AY27: Standby - General Service 1,000 - 5,000 kW
B28: 7 | D28: STREET LIGHTING SERVICE CLASSIFICATION | E28: Connections | F28: kW | I28: 13656 | J28: 5592860 | K28: 15924 | M28: 2.04 | N28: 0 | O28: 10.6088 | AA28: Residential - Time of Use | AB28: 250 / 2,250 | AD28: Small Commercial and USL - per meter | AE28: 2,000 / 20,000 | AG28: General Service 50 to 1,499 kW | AH28: 50 / 3,000 | AY28: Standby Power General Service 1,500 to 4,999 kW
B29: 8 | AA29: Residential - Hensall | AB29: 250 / 2,250 | AD29: Small Commercial and USL - per connection | AE29: 2,000 / 20,000 | AG29: General Service 50 to 1,499 kW - Interval Metered | AH29: 50 / 3,000 | AY29: Standby - Large Use
B30: 9 | AA30: Residential – High Density [R1] | AB30: 250 / 2,250 | AG30: General Service 50 to 2,499 kW | AH30: 50 / 5,000 | AY30: Standby Power General Service Large Use
B31: 10 | AA31: Residential – Normal Density [R2] | AB31: 250 / 2,250 | AG31: General Service 50 to 2,999 kW | AH31: 50 / 5,000 | AY31: Standby Distribution Service
B32: 11 | AA32: Seasonal Residential – High Density [R3] | AB32: 250 / 2,250 | AG32: General Service 50 to 2,999 kW - Time of Use | AH32: 50 / 5,000
B33: 12 | AA33: Seasonal Residential – Normal Density [R4] | AB33: 250 / 2,250 | AG33: General Service 50 to 4,999 kW | AH33: 50 / 5,000
B34: 13 | AA34: Residential – Urban [UR] | AB34: 250 / 2,250 | AG34: General Service 50 to 4,999 kW – Interval Metered | AH34: 50 / 5,000
B35: 14 | AG35: General Service 50 to 4,999 kW - Time of Use | AH35: 50 / 5,000
B36: 15 | AG36: General Service 50 to 4,999 kW (CoGeneration) | AH36: 500 / 5,000
B37: 16 | AG37: General Service 50 to 4,999 kW (formerly Time of Use) | AH37: 700 / 5,000
B38: 17 | AG38: General Service 500 to 4,999 kW | AH38: 1,000 / 3,000
B39: 18 | AG39: General Service 700 to 4,999 kW | AH39: 1,000 / 5,000
B40: 19 | AG40: General Service 1,000 to 2,999 kW | AH40: 1,500 / 5,000
B41: 20 | AG41: General Service 1,000 to 4,999 kW | AH41: 2,500 / 5,000
B42: 21 | AG42: General Service 1,000 to 4,999 kW - Interval Meters | AH42: 3,000 / 5,000
B43: 22 | AG43: General Service 1,000 To 4,999 kW (co-generation) | AH43: 3,000 / 5,000
B44: 23 | AG44: General Service Greater Than 1,000 kW | AH44: 50 / 5,000
B45: 24 | AG45: General Service Intermediate Rate Class 1,000 To 4,999 kW (formerly Large Use Customers) | AH45: 50 / 5,000
B46: 25 | AG46: General Service Intermediate Rate Class 1,000 To 4,999 kW (formerly General Service > 50 kW Customers) | AH46: 50 / 5,000
AG47: General Service 1,500 to 4,999 kW
AG48: General Service Equal To Or Greater Than 1,500 kW
AG49: General Service Equal To Or Greater Than 1,500 kW - Interval Metered
AG50: General Service Intermediate 1,000 To 4,999 kW
AG51: General Service 2,500 to 4,999 kW
AG52: General Service 3,000 to 4,999 kW
AG53: General Service 3,000 to 4,999 kW - Interval Metered
AG54: General Service 3,000 to 4,999 kW - Intermediate Use
AG55: General Service 3,000 to 4,999 kW - Time of Use
AG56: Intermediate With Self Generation
AG57: General Service - Commercial
AG58: General Service - Institutional
AG59: Farms – Three Phase energy-billed [F3]

Sheet 4. Removal of Rate Adders
AZ1: 1
A10: The purpose of this sheet is to remove any rate adders included in current rates. Most applicants will not need to make an entry on this sheet.
C20: Rate Class | E20: Current Tariff Service Charge | F20: Current Tariff Distribution Volumetric Rate kWh | G20: Current Tariff Distribution Volumetric Rate kW | I20: Service Charge Rate Adders | J20: Distribution Volumetric kWh Rate Adders | K20: Distribution Volumetric kW Rate Adders | M20: Base Service Charge | N20: Base Distribution Volumetric Rate kWh | O20: Base Distribution Volumetric Rate kW
E21: A | F21: B | G21: C | I21: D | J21: E | K21: F | M21: H = A - D | N21: I = B - E | O21: J = C - F
C22: ='3. Re-Based Bill Det & Rates'!D22 -> RESIDENTIAL SERVICE CLASSIFICATION | E22: ='3. Re-Based Bill Det & Rates'!M22 -> 35.41 | F22: ='3. Re-Based Bill Det & Rates'!N22 -> 0 | G22: ='3. Re-Based Bill Det & Rates'!O22 -> 0 | M22: =E22-I22 -> 35.41 | N22: =F22-J22 -> 0 | O22: =G22-K22 -> 0
C23: ='3. Re-Based Bill Det & Rates'!D23 -> GENERAL SERVICE LESS THAN 50 KW SERVICE CLASSIFICATION | E23: ='3. Re-Based Bill Det & Rates'!M23 -> 40.5 | F23: ='3. Re-Based Bill Det & Rates'!N23 -> 0.0228 | G23: ='3. Re-Based Bill Det & Rates'!O23 -> 0 | M23: =E23-I23 -> 40.5 | N23: =F23-J23 -> 0.0228 | O23: =G23-K23 -> 0
C24: ='3. Re-Based Bill Det & Rates'!D24 -> GENERAL SERVICE 50 TO 999 KW SERVICE CLASSIFICATION | E24: ='3. Re-Based Bill Det & Rates'!M24 -> 237.07 | F24: ='3. Re-Based Bill Det & Rates'!N24 -> 0 | G24: ='3. Re-Based Bill Det & Rates'!O24 -> 5.3205 | M24: 237.07 | N24: 0 | O24: 5.3205
C25: ='3. Re-Based Bill Det & Rates'!D25 -> GENERAL SERVICE 1,000 KW OR GREATER SERVICE CLASSIFICATION | E25: ='3. Re-Based Bill Det & Rates'!M25 -> 3391.93 | F25: ='3. Re-Based Bill Det & Rates'!N25 -> 0 | G25: ='3. Re-Based Bill Det & Rates'!O25 -> 4.1488 | M25: 3391.93 | N25: 0 | O25: 4.1488
C26: ='3. Re-Based Bill Det & Rates'!D26 -> UNMETERED SCATTERED LOAD SERVICE CLASSIFICATION | E26: ='3. Re-Based Bill Det & Rates'!M26 -> 12.26 | F26: ='3. Re-Based Bill Det & Rates'!N26 -> 0.0259 | G26: ='3. Re-Based Bill Det & Rates'!O26 -> 0 | M26: 12.26 | N26: 0.0259 | O26: 0
C27: ='3. Re-Based Bill Det & Rates'!D27 -> SENTINEL LIGHTING SERVICE CLASSIFICATION | E27: ='3. Re-Based Bill Det & Rates'!M27 -> 11.38 | F27: ='3. Re-Based Bill Det & Rates'!N27 -> 0 | G27: ='3. Re-Based Bill Det & Rates'!O27 -> 9.1216 | M27: 11.38 | N27: 0 | O27: 9.1216
C28: ='3. Re-Based Bill Det & Rates'!D28 -> STREET LIGHTING SERVICE CLASSIFICATION | E28: ='3. Re-Based Bill Det & Rates'!M28 -> 2.04 | F28: ='3. Re-Based Bill Det & Rates'!N28 -> 0 | G28: ='3. Re-Based Bill Det & Rates'!O28 -> 10.6088 | M28: 2.04 | N28: 0 | O28: 10.6088
C29: ='3. Re-Based Bill Det & Rates'!D29 -> 0 | E29: ='3. Re-Based Bill Det & Rates'!M29 -> 0 | F29: ='3. Re-Based Bill Det & Rates'!N29 -> 0 | G29: ='3. Re-Based Bill Det & Rates'!O29 -> 0 | M29: 0 | N29: 0 | O29: 0
C30: ='3. Re-Based Bill Det & Rates'!D30 -> 0 | E30: ='3. Re-Based Bill Det & Rates'!M30 -> 0 | F30: ='3. Re-Based Bill Det & Rates'!N30 -> 0 | G30: ='3. Re-Based Bill Det & Rates'!O30 -> 0 | M30: 0 | N30: 0 | O30: 0
C31: ='3. Re-Based Bill Det & Rates'!D31 -> 0 | E31: ='3. Re-Based Bill Det & Rates'!M31 -> 0 | F31: ='3. Re-Based Bill Det & Rates'!N31 -> 0 | G31: ='3. Re-Based Bill Det & Rates'!O31 -> 0 | M31: 0 | N31: 0 | O31: 0
C32: ='3. Re-Based Bill Det & Rates'!D32 -> 0 | E32: ='3. Re-Based Bill Det & Rates'!M32 -> 0 | F32: ='3. Re-Based Bill Det & Rates'!N32 -> 0 | G32: ='3. Re-Based Bill Det & Rates'!O32 -> 0 | M32: 0 | N32: 0 | O32: 0
C33: ='3. Re-Based Bill Det & Rates'!D33 -> 0 | E33: ='3. Re-Based Bill Det & Rates'!M33 -> 0 | F33: ='3. Re-Based Bill Det & Rates'!N33 -> 0 | G33: ='3. Re-Based Bill Det & Rates'!O33 -> 0 | M33: 0 | N33: 0 | O33: 0
C34: ='3. Re-Based Bill Det & Rates'!D34 -> 0 | E34: ='3. Re-Based Bill Det & Rates'!M34 -> 0 | F34: ='3. Re-Based Bill Det & Rates'!N34 -> 0 | G34: ='3. Re-Based Bill Det & Rates'!O34 -> 0 | M34: 0 | N34: 0 | O34: 0
C35: ='3. Re-Based Bill Det & Rates'!D35 -> 0 | E35: ='3. Re-Based Bill Det & Rates'!M35 -> 0 | F35: ='3. Re-Based Bill Det & Rates'!N35 -> 0 | G35: ='3. Re-Based Bill Det & Rates'!O35 -> 0 | M35: 0 | N35: 0 | O35: 0
C36: ='3. Re-Based Bill Det & Rates'!D36 -> 0 | E36: ='3. Re-Based Bill Det & Rates'!M36 -> 0 | F36: ='3. Re-Based Bill Det & Rates'!N36 -> 0 | G36: ='3. Re-Based Bill Det & Rates'!O36 -> 0 | M36: 0 | N36: 0 | O36: 0
C37: ='3. Re-Based Bill Det & Rates'!D37 -> 0 | E37: ='3. Re-Based Bill Det & Rates'!M37 -> 0 | F37: ='3. Re-Based Bill Det & Rates'!N37 -> 0 | G37: ='3. Re-Based Bill Det & Rates'!O37 -> 0 | M37: 0 | N37: 0 | O37: 0
C38: ='3. Re-Based Bill Det & Rates'!D38 -> 0 | E38: ='3. Re-Based Bill Det & Rates'!M38 -> 0 | F38: ='3. Re-Based Bill Det & Rates'!N38 -> 0 | G38: ='3. Re-Based Bill Det & Rates'!O38 -> 0 | M38: 0 | N38: 0 | O38: 0
C39: ='3. Re-Based Bill Det & Rates'!D39 -> 0 | E39: ='3. Re-Based Bill Det & Rates'!M39 -> 0 | F39: ='3. Re-Based Bill Det & Rates'!N39 -> 0 | G39: ='3. Re-Based Bill Det & Rates'!O39 -> 0 | M39: 0 | N39: 0 | O39: 0
C40: ='3. Re-Based Bill Det & Rates'!D40 -> 0 | E40: ='3. Re-Based Bill Det & Rates'!M40 -> 0 | F40: ='3. Re-Based Bill Det & Rates'!N40 -> 0 | G40: ='3. Re-Based Bill Det & Rates'!O40 -> 0 | M40: 0 | N40: 0 | O40: 0
C41: ='3. Re-Based Bill Det & Rates'!D41 -> 0 | E41: ='3. Re-Based Bill Det & Rates'!M41 -> 0 | F41: ='3. Re-Based Bill Det & Rates'!N41 -> 0 | G41: ='3. Re-Based Bill Det & Rates'!O41 -> 0 | M41: 0 | N41: 0 | O41: 0
C42: ='3. Re-Based Bill Det & Rates'!D42 -> 0 | E42: ='3. Re-Based Bill Det & Rates'!M42 -> 0 | F42: ='3. Re-Based Bill Det & Rates'!N42 -> 0 | G42: ='3. Re-Based Bill Det & Rates'!O42 -> 0 | M42: 0 | N42: 0 | O42: 0
C43: ='3. Re-Based Bill Det & Rates'!D43 -> 0 | E43: ='3. Re-Based Bill Det & Rates'!M43 -> 0 | F43: ='3. Re-Based Bill Det & Rates'!N43 -> 0 | G43: ='3. Re-Based Bill Det & Rates'!O43 -> 0 | M43: 0 | N43: 0 | O43: 0
C44: ='3. Re-Based Bill Det & Rates'!D44 -> 0 | E44: ='3. Re-Based Bill Det & Rates'!M44 -> 0 | F44: ='3. Re-Based Bill Det & Rates'!N44 -> 0 | G44: ='3. Re-Based Bill Det & Rates'!O44 -> 0 | M44: 0 | N44: 0 | O44: 0
C45: ='3. Re-Based Bill Det & Rates'!D45 -> 0 | E45: ='3. Re-Based Bill Det & Rates'!M45 -> 0 | F45: ='3. Re-Based Bill Det & Rates'!N45 -> 0 | G45: ='3. Re-Based Bill Det & Rates'!O45 -> 0 | M45: 0 | N45: 0 | O45: 0
C46: ='3. Re-Based Bill Det & Rates'!D46 -> 0 | E46: ='3. Re-Based Bill Det & Rates'!M46 -> 0 | F46: ='3. Re-Based Bill Det & Rates'!N46 -> 0 | G46: ='3. Re-Based Bill Det & Rates'!O46 -> 0 | M46: 0 | N46: 0 | O46: 0

Sheet 5. Re-Based Rev From Rates
A11: The purpose of this sheet is to calculate current revenue from rate classes.
C20: Rate Class | E20: Re-based Billed Customers or Connections | F20: Re-based Billed kWh | G20: Re-based Billed kW | I20: Current Base Service Charge | J20: Current Base Distribution Volumetric Rate kWh | K20: Current Base Distribution Volumetric Rate kW | M20: Service Charge Revenue | N20: Distribution Volumetric Rate Revenue kWh | O20: Distribution Volumetric Rate Revenue kW | P20: Revenue Requirement from Rates | R20: Service Charge % Revenue | S20: Distribution Volumetric Rate % Revenue kWh | T20: Distribution Volumetric Rate % Revenue kW | U20: Total % Revenue
E21: A | F21: B | G21: C | I21: D | J21: E | K21: F | M21: G = A * D *12 | N21: H = B * E | O21: I = C * F | P21: J = G + H + I | R21: K = G / J | S21: L = H / J | T21: M = I / J | U21: N = J / R
C22: ='3. Re-Based Bill Det & Rates'!D22 -> RESIDENTIAL SERVICE CLASSIFICATION | E22: ='3. Re-Based Bill Det & Rates'!I22 -> 51255 | F22: ='3. Re-Based Bill Det & Rates'!J22 -> 379776105 | G22: ='3. Re-Based Bill Det & Rates'!K22 -> 0 | I22: ='4. Removal of Rate Adders'!M22 -> 35.41 | J22: ='4. Removal of Rate Adders'!N22 -> 0 | K22: ='4. Removal of Rate Adders'!O22 -> 0 | M22: =IF(ISERROR(E22*I22*12),0,E22*I22*12) -> 21779274.6 | N22: =IF(ISERROR(F22*J22),0,F22*J22) -> 0 | O22: =IF(ISERROR(G22*K22),0,G22*K22) -> 0 | P22: =SUM(M22:O22) -> 21779274.6 | R22: =IF(ISERROR(M22/P22),"",M22/P22) -> 1 | S22: =IF(ISERROR(N22/P22),"",N22/P22) -> 0 | T22: =IF(ISERROR(O22/P22),"",O22/P22) -> 0 | U22: =IF(ISERROR(P22/P$47),"",P22/P$47) -> 0.5941353938
C23: ='3. Re-Based Bill Det & Rates'!D23 -> GENERAL SERVICE LESS THAN 50 KW SERVICE CLASSIFICATION | E23: ='3. Re-Based Bill Det & Rates'!I23 -> 5487 | F23: ='3. Re-Based Bill Det & Rates'!J23 -> 171279860 | G23: ='3. Re-Based Bill Det & Rates'!K23 -> 0 | I23: ='4. Removal of Rate Adders'!M23 -> 40.5 | J23: ='4. Removal of Rate Adders'!N23 -> 0.0228 | K23: ='4. Removal of Rate Adders'!O23 -> 0 | M23: =IF(ISERROR(E23*I23*12),0,E23*I23*12) -> 2666682 | N23: =IF(ISERROR(F23*J23),0,F23*J23) -> 3905180.808 | O23: =IF(ISERROR(G23*K23),0,G23*K23) -> 0 | P23: =SUM(M23:O23) -> 6571862.808 | R23: =IF(ISERROR(M23/P23),"",M23/P23) -> 0.4057726215 | S23: =IF(ISERROR(N23/P23),"",N23/P23) -> 0.5942273785 | T23: =IF(ISERROR(O23/P23),"",O23/P23) -> 0 | U23: =IF(ISERROR(P23/P$47),"",P23/P$47) -> 0.1792794466
C24: ='3. Re-Based Bill Det & Rates'!D24 -> GENERAL SERVICE 50 TO 999 KW SERVICE CLASSIFICATION | E24: ='3. Re-Based Bill Det & Rates'!I24 -> 465 | F24: ='3. Re-Based Bill Det & Rates'!J24 -> 285468167 | G24: ='3. Re-Based Bill Det & Rates'!K24 -> 708872 | I24: ='4. Removal of Rate Adders'!M24 -> 237.07 | J24: ='4. Removal of Rate Adders'!N24 -> 0 | K24: ='4. Removal of Rate Adders'!O24 -> 5.3205 | M24: 1322850.6 | N24: 0 | O24: 3771553.476 | P24: 5094404.076 | R24: 0.259667388 | S24: 0 | T24: 0.740332612 | U24: 0.1389745906
C25: ='3. Re-Based Bill Det & Rates'!D25 -> GENERAL SERVICE 1,000 KW OR GREATER SERVICE CLASSIFICATION | E25: ='3. Re-Based Bill Det & Rates'!I25 -> 15 | F25: ='3. Re-Based Bill Det & Rates'!J25 -> 147499803 | G25: ='3. Re-Based Bill Det & Rates'!K25 -> 472990 | I25: ='4. Removal of Rate Adders'!M25 -> 3391.93 | J25: ='4. Removal of Rate Adders'!N25 -> 0 | K25: ='4. Removal of Rate Adders'!O25 -> 4.1488 | M25: 610547.4 | N25: 0 | O25: 1962340.912 | P25: 2572888.312 | R25: 0.2373003901 | S25: 0 | T25: 0.7626996099 | U25: 0.07018801308
C26: ='3. Re-Based Bill Det & Rates'!D26 -> UNMETERED SCATTERED LOAD SERVICE CLASSIFICATION | E26: ='3. Re-Based Bill Det & Rates'!I26 -> 432 | F26: ='3. Re-Based Bill Det & Rates'!J26 -> 2088274 | G26: ='3. Re-Based Bill Det & Rates'!K26 -> 0 | I26: ='4. Removal of Rate Adders'!M26 -> 12.26 | J26: ='4. Removal of Rate Adders'!N26 -> 0.0259 | K26: ='4. Removal of Rate Adders'!O26 -> 0 | M26: 63555.84 | N26: 54086.2966 | O26: 0 | P26: 117642.1366 | R26: 0.5402472434 | S26: 0.4597527566 | T26: 0 | U26: 0.003209260108
C27: ='3. Re-Based Bill Det & Rates'!D27 -> SENTINEL LIGHTING SERVICE CLASSIFICATION | E27: ='3. Re-Based Bill Det & Rates'!I27 -> 113 | F27: ='3. Re-Based Bill Det & Rates'!J27 -> 96035 | G27: ='3. Re-Based Bill Det & Rates'!K27 -> 258 | I27: ='4. Removal of Rate Adders'!M27 -> 11.38 | J27: ='4. Removal of Rate Adders'!N27 -> 0 | K27: ='4. Removal of Rate Adders'!O27 -> 9.1216 | M27: 15431.28 | N27: 0 | O27: 2353.3728 | P27: 17784.6528 | R27: 0.8676739531 | S27: 0 | T27: 0.1323260469 | U27: 0.0004851627012
C28: ='3. Re-Based Bill Det & Rates'!D28 -> STREET LIGHTING SERVICE CLASSIFICATION | E28: ='3. Re-Based Bill Det & Rates'!I28 -> 13656 | F28: ='3. Re-Based Bill Det & Rates'!J28 -> 5592860 | G28: ='3. Re-Based Bill Det & Rates'!K28 -> 15924 | I28: ='4. Removal of Rate Adders'!M28 -> 2.04 | J28: ='4. Removal of Rate Adders'!N28 -> 0 | K28: ='4. Removal of Rate Adders'!O28 -> 10.6088 | M28: 334298.88 | N28: 0 | O28: 168934.5312 | P28: 503233.4112 | R28: 0.664301838 | S28: 0 | T28: 0.335698162 | U28: 0.01372813312
C29: ='3. Re-Based Bill Det & Rates'!D29 -> 0 | M29: 0 | N29: 0 | O29: 0 | P29: 0 | U29: 0
C30: ='3. Re-Based Bill Det & Rates'!D30 -> 0 | M30: 0 | N30: 0 | O30: 0 | P30: 0 | U30: 0
C31: ='3. Re-Based Bill Det & Rates'!D31 -> 0 | M31: 0 | N31: 0 | O31: 0 | P31: 0 | U31: 0
C32: ='3. Re-Based Bill Det & Rates'!D32 -> 0 | M32: 0 | N32: 0 | O32: 0 | P32: 0 | U32: 0
C33: ='3. Re-Based Bill Det & Rates'!D33 -> 0 | M33: 0 | N33: 0 | O33: 0 | P33: 0 | U33: 0
C34: ='3. Re-Based Bill Det & Rates'!D34 -> 0 | M34: 0 | N34: 0 | O34: 0 | P34: 0 | U34: 0
C35: ='3. Re-Based Bill Det & Rates'!D35 -> 0 | M35: 0 | N35: 0 | O35: 0 | P35: 0 | U35: 0
C36: ='3. Re-Based Bill Det & Rates'!D36 -> 0 | M36: 0 | N36: 0 | O36: 0 | P36: 0 | U36: 0
C37: ='3. Re-Based Bill Det & Rates'!D37 -> 0 | M37: 0 | N37: 0 | O37: 0 | P37: 0 | U37: 0
C38: ='3. Re-Based Bill Det & Rates'!D38 -> 0 | M38: 0 | N38: 0 | O38: 0 | P38: 0 | U38: 0
C39: ='3. Re-Based Bill Det & Rates'!D39 -> 0 | M39: 0 | N39: 0 | O39: 0 | P39: 0 | U39: 0
C40: ='3. Re-Based Bill Det & Rates'!D40 -> 0 | M40: 0 | N40: 0 | O40: 0 | P40: 0 | U40: 0
C41: ='3. Re-Based Bill Det & Rates'!D41 -> 0 | M41: 0 | N41: 0 | O41: 0 | P41: 0 | U41: 0
C42: ='3. Re-Based Bill Det & Rates'!D42 -> 0 | M42: 0 | N42: 0 | O42: 0 | P42: 0 | U42: 0
C43: ='3. Re-Based Bill Det & Rates'!D43 -> 0 | M43: 0 | N43: 0 | O43: 0 | P43: 0 | U43: 0
C44: ='3. Re-Based Bill Det & Rates'!D44 -> 0 | M44: 0 | N44: 0 | O44: 0 | P44: 0 | U44: 0
C45: ='3. Re-Based Bill Det & Rates'!D45 -> 0 | M45: 0 | N45: 0 | O45: 0 | P45: 0 | U45: 0
C46: ='3. Re-Based Bill Det & Rates'!D46 -> 0 | M46: 0 | N46: 0 | O46: 0 | P46: 0 | U46: 0
M47: =SUM(M22:M46) -> 26792640.6 | N47: =SUM(N22:N46) -> 3959267.105 | O47: =SUM(O22:O46) -> 5905182.292 | P47: =SUM(P22:P46) -> 36657090 | U47: =SUM(U22:U46) -> 1
M48: O | N48: P | O48: Q | P48: R

Sheet 6. Decision Cost Revenue Adj
A7: The purpose of this sheet is to enter the Revenue Cost Ratios as determined from column G on Sheet "10. Proposed R C Ratio Adj" of the applicant's Revenue to Cost Ratio Adjustment Workform (V1.0) or latest COS Decision and Order. Under the column labeled "Direction", the applicant can choose "No Change" (i.e. no change in that rate class ratio), "Change" (i.e. the OEB ordered change from COS decision) or "Rebalance" (i.e. to apply any offset adjustments required).
C20: Rate Class | D20: Direction | E20: Current Year | F20: Transition Year 1 | G20: Transition Year 2 | H20: Transition Year 3 | I20: Transition Year 4 | J20: Transition Year 5
E21: 2025 | F21: 2026 | G21: =IF(ISERROR(F21+1),"",F21+1) -> 2027 | H21: =IF(ISERROR(F21+2),"",F21+2) -> 2028 | I21: =IF(ISERROR(F21+3),"",F21+3) -> 2029 | J21: =IF(ISERROR(F21+4),"",F21+4) -> 2030
C22: ='3. Re-Based Bill Det & Rates'!D22 -> RESIDENTIAL SERVICE CLASSIFICATION | D22: No Change | E22: 0.995 | F22: 0.9950000048 | G22: 0.9950000048 | H22: 0.9950000048 | I22: 0.9950000048 | J22: 0.9950000048 | L22: No Change
C23: ='3. Re-Based Bill Det & Rates'!D23 -> GENERAL SERVICE LESS THAN 50 KW SERVICE CLASSIFICATION | D23: Rebalance | E23: 1.16 | F23: tbd | G23: tbd | H23: tbd | I23: tbd | J23: tbd | L23: Change
C24: ='3. Re-Based Bill Det & Rates'!D24 -> GENERAL SERVICE 50 TO 999 KW SERVICE CLASSIFICATION | D24: No Change | E24: 0.877 | F24: 0.8769999743 | G24: 0.8769999743 | H24: 0.8769999743 | I24: 0.8769999743 | J24: 0.8769999743 | L24: Rebalance
C25: ='3. Re-Based Bill Det & Rates'!D25 -> GENERAL SERVICE 1,000 KW OR GREATER SERVICE CLASSIFICATION | D25: No Change | E25: 1.049 | F25: 1.049000025 | G25: 1.049000025 | H25: 1.049000025 | I25: 1.049000025 | J25: 1.049000025
C26: ='3. Re-Based Bill Det & Rates'!D26 -> UNMETERED SCATTERED LOAD SERVICE CLASSIFICATION | D26: No Change | E26: 1.079 | F26: 1.078999996 | G26: 1.078999996 | H26: 1.078999996 | I26: 1.078999996 | J26: 1.078999996
C27: ='3. Re-Based Bill Det & Rates'!D27 -> SENTINEL LIGHTING SERVICE CLASSIFICATION | D27: No Change | E27: 0.904 | F27: 0.9039999843 | G27: 0.9039999843 | H27: 0.9039999843 | I27: 0.9039999843 | J27: 0.9039999843
C28: ='3. Re-Based Bill Det & Rates'!D28 -> STREET LIGHTING SERVICE CLASSIFICATION | D28: Change | E28: 0.74 | F28: 0.8 | G28: 0 | H28: 0 | I28: 0 | J28: 0
C29: ='3. Re-Based Bill Det & Rates'!D29 -> 0 | E29: 0 | F29: 0 | G29: 0 | H29: 0 | I29: 0 | J29: 0
C30: ='3. Re-Based Bill Det & Rates'!D30 -> 0 | E30: 0 | F30: 0 | G30: 0 | H30: 0 | I30: 0 | J30: 0
C31: ='3. Re-Based Bill Det & Rates'!D31 -> 0 | E31: 0 | F31: 0 | G31: 0 | H31: 0 | I31: 0 | J31: 0
C32: ='3. Re-Based Bill Det & Rates'!D32 -> 0 | E32: 0 | F32: 0 | G32: 0 | H32: 0 | I32: 0 | J32: 0
C33: ='3. Re-Based Bill Det & Rates'!D33 -> 0 | E33: 0 | F33: 0 | G33: 0 | H33: 0 | I33: 0 | J33: 0
C34: ='3. Re-Based Bill Det & Rates'!D34 -> 0 | E34: 0 | F34: 0 | G34: 0 | H34: 0 | I34: 0 | J34: 0
C35: ='3. Re-Based Bill Det & Rates'!D35 -> 0 | E35: 0 | F35: 0 | G35: 0 | H35: 0 | I35: 0 | J35: 0
C36: ='3. Re-Based Bill Det & Rates'!D36 -> 0 | E36: 0 | F36: 0 | G36: 0 | H36: 0 | I36: 0 | J36: 0
C37: ='3. Re-Based Bill Det & Rates'!D37 -> 0 | E37: 0 | F37: 0 | G37: 0 | H37: 0 | I37: 0 | J37: 0
C38: ='3. Re-Based Bill Det & Rates'!D38 -> 0 | E38: 0 | F38: 0 | G38: 0 | H38: 0 | I38: 0 | J38: 0
C39: ='3. Re-Based Bill Det & Rates'!D39 -> 0 | E39: 0 | F39: 0 | G39: 0 | H39: 0 | I39: 0 | J39: 0
C40: ='3. Re-Based Bill Det & Rates'!D40 -> 0 | E40: 0 | F40: 0 | G40: 0 | H40: 0 | I40: 0 | J40: 0
C41: ='3. Re-Based Bill Det & Rates'!D41 -> 0 | E41: 0 | F41: 0 | G41: 0 | H41: 0 | I41: 0 | J41: 0
C42: ='3. Re-Based Bill Det & Rates'!D42 -> 0 | E42: 0 | F42: 0 | G42: 0 | H42: 0 | I42: 0 | J42: 0
C43: ='3. Re-Based Bill Det & Rates'!D43 -> 0 | E43: 0 | F43: 0 | G43: 0 | H43: 0 | I43: 0 | J43: 0
C44: ='3. Re-Based Bill Det & Rates'!D44 -> 0 | E44: 0 | F44: 0 | G44: 0 | H44: 0 | I44: 0 | J44: 0
C45: ='3. Re-Based Bill Det & Rates'!D45 -> 0 | E45: 0 | F45: 0 | G45: 0 | H45: 0 | I45: 0 | J45: 0
C46: ='3. Re-Based Bill Det & Rates'!D46 -> 0 | E46: 0 | F46: 0 | G46: 0 | H46: 0 | I46: 0 | J46: 0

Sheet 7. Revenue Offsets Allocation
A10: The purpose of this sheet is to allocate the Revenue Offsets (miscellaneous revenue, cell F47) found in the last COS to the various rate classes in proportion to the allocation from the Cost Allocation informational filing.
C20: Rate Class | D20: Informational Filing Revenue Offsets | E20: Percentage Split | F20: Allocated Revenue Offsets
D21: A | E21: C= A / B | F21: E = D * C
C22: ='3. Re-Based Bill Det & Rates'!D22 -> RESIDENTIAL SERVICE CLASSIFICATION | D22: 1765081.205 | E22: =IF(ISERROR(D22/$D$47),0,D22/$D$47) -> 0.6227891643 | F22: =$F$47*E22 -> 0
C23: ='3. Re-Based Bill Det & Rates'!D23 -> GENERAL SERVICE LESS THAN 50 KW SERVICE CLASSIFICATION | D23: 400162.2318 | E23: =IF(ISERROR(D23/$D$47),0,D23/$D$47) -> 0.1411927685 | F23: =$F$47*E23 -> 0
C24: ='3. Re-Based Bill Det & Rates'!D24 -> GENERAL SERVICE 50 TO 999 KW SERVICE CLASSIFICATION | D24: 417611.1654 | E24: 0.1473494296 | F24: 0
C25: ='3. Re-Based Bill Det & Rates'!D25 -> GENERAL SERVICE 1,000 KW OR GREATER SERVICE CLASSIFICATION | D25: 173789.054 | E25: 0.06131952424 | F25: 0
C26: ='3. Re-Based Bill Det & Rates'!D26 -> UNMETERED SCATTERED LOAD SERVICE CLASSIFICATION | D26: 68712.14922 | E26: 0.02424431345 | F26: 0
C27: ='3. Re-Based Bill Det & Rates'!D27 -> SENTINEL LIGHTING SERVICE CLASSIFICATION | D27: 1653.851064 | E27: 0.0005835428531 | F27: 0
C28: ='3. Re-Based Bill Det & Rates'!D28 -> STREET LIGHTING SERVICE CLASSIFICATION | D28: 7145.633917 | E28: 0.002521257019 | F28: 0
C29: ='3. Re-Based Bill Det & Rates'!D29 -> 0 | D29: 0 | E29: 0 | F29: 0
C30: ='3. Re-Based Bill Det & Rates'!D30 -> 0 | D30: 0 | E30: 0 | F30: 0
C31: ='3. Re-Based Bill Det & Rates'!D31 -> 0 | D31: 0 | E31: 0 | F31: 0
C32: ='3. Re-Based Bill Det & Rates'!D32 -> 0 | D32: 0 | E32: 0 | F32: 0
C33: ='3. Re-Based Bill Det & Rates'!D33 -> 0 | D33: 0 | E33: 0 | F33: 0
C34: ='3. Re-Based Bill Det & Rates'!D34 -> 0 | D34: 0 | E34: 0 | F34: 0
C35: ='3. Re-Based Bill Det & Rates'!D35 -> 0 | D35: 0 | E35: 0 | F35: 0
C36: ='3. Re-Based Bill Det & Rates'!D36 -> 0 | D36: 0 | E36: 0 | F36: 0
C37: ='3. Re-Based Bill Det & Rates'!D37 -> 0 | D37: 0 | E37: 0 | F37: 0
C38: ='3. Re-Based Bill Det & Rates'!D38 -> 0 | D38: 0 | E38: 0 | F38: 0
C39: ='3. Re-Based Bill Det & Rates'!D39 -> 0 | D39: 0 | E39: 0 | F39: 0
C40: ='3. Re-Based Bill Det & Rates'!D40 -> 0 | D40: 0 | E40: 0 | F40: 0
C41: ='3. Re-Based Bill Det & Rates'!D41 -> 0 | D41: 0 | E41: 0 | F41: 0
C42: ='3. Re-Based Bill Det & Rates'!D42 -> 0 | D42: 0 | E42: 0 | F42: 0
C43: ='3. Re-Based Bill Det & Rates'!D43 -> 0 | D43: 0 | E43: 0 | F43: 0
C44: ='3. Re-Based Bill Det & Rates'!D44 -> 0 | D44: 0 | E44: 0 | F44: 0
C45: ='3. Re-Based Bill Det & Rates'!D45 -> 0 | D45: 0 | E45: 0 | F45: 0
C46: ='3. Re-Based Bill Det & Rates'!D46 -> 0 | D46: 0 | E46: 0 | F46: 0
D47: =SUM(D22:D46) -> 2834155.29 | E47: =SUM(E22:E46) -> 1
D48: B | F48: D

Sheet 8. Transformer Allowance
A10: The purpose of this sheet is to remove the transformer allowance from volumetric rates. In Cell E47, enter your Transformer Allowance as per your 2019 Revenue to Cost Ratio Adjustment Workform (V1.0) or your last CoS Decision. Under the column labeled "Transformer Allowance in Rates" select "Yes" if included in that rate class or "No" if not included. Once selected, apply the update button to reveal input cells in which you can enter the number of kW's and the transfromer rate for each rate class.
C20: Rate Class | D20: Transformer Allowance In Rate | E20: Transformer Allowance | F20: Transformer Allowance kW's | G20: Transformer Allowance Rate | H20: Volumetric Distribution Rate | I20: Billed kW's | J20: Adjusted Volumetric Distribution Rate
E21: A | F21: C | G21: E | H21: F | I21: G | J21: I =( F * (G - C) + (F - E) * C) / G
C22: ='3. Re-Based Bill Det & Rates'!D22 -> RESIDENTIAL SERVICE CLASSIFICATION | D22: No | K22: =(I22*(J22-G22) + (I22-H22)*G22)/J22 ->  | M22: Yes
C23: ='3. Re-Based Bill Det & Rates'!D23 -> GENERAL SERVICE LESS THAN 50 KW SERVICE CLASSIFICATION | D23: No | M23: No
C24: ='3. Re-Based Bill Det & Rates'!D24 -> GENERAL SERVICE 50 TO 999 KW SERVICE CLASSIFICATION | D24: Yes | E24: =IF(ISERROR(F24*G24),0,F24*G24) -> 67158 | F24: 111930 | G24: 0.6 | H24: ='5. Re-Based Rev From Rates'!K24 -> 5.3205 | I24: ='3. Re-Based Bill Det & Rates'!K24 -> 708872 | J24: =IF(ISERROR((H24*(I24-F24) + (H24-G24)*F24)/I24),0,(H24*(I24-F24) + (H24-G24)*F24)/I24) -> 5.225760752
C25: ='3. Re-Based Bill Det & Rates'!D25 -> GENERAL SERVICE 1,000 KW OR GREATER SERVICE CLASSIFICATION | D25: Yes | E25: =IF(ISERROR(F25*G25),0,F25*G25) -> 283794 | F25: 472990 | G25: 0.6 | H25: ='5. Re-Based Rev From Rates'!K25 -> 4.1488 | I25: ='3. Re-Based Bill Det & Rates'!K25 -> 472990 | J25: =IF(ISERROR((H25*(I25-F25) + (H25-G25)*F25)/I25),0,(H25*(I25-F25) + (H25-G25)*F25)/I25) -> 3.5488
C26: ='3. Re-Based Bill Det & Rates'!D26 -> UNMETERED SCATTERED LOAD SERVICE CLASSIFICATION | D26: No
C27: ='3. Re-Based Bill Det & Rates'!D27 -> SENTINEL LIGHTING SERVICE CLASSIFICATION | D27: No
C28: ='3. Re-Based Bill Det & Rates'!D28 -> STREET LIGHTING SERVICE CLASSIFICATION | D28: No
C29: ='3. Re-Based Bill Det & Rates'!D29 -> 0 | E29: 0 | F29: 0 | G29: 0 | H29: 0 | I29: 0 | J29: 0
C30: ='3. Re-Based Bill Det & Rates'!D30 -> 0 | E30: 0 | F30: 0 | G30: 0 | H30: 0 | I30: 0 | J30: 0
C31: ='3. Re-Based Bill Det & Rates'!D31 -> 0 | E31: 0 | F31: 0 | G31: 0 | H31: 0 | I31: 0 | J31: 0
C32: ='3. Re-Based Bill Det & Rates'!D32 -> 0 | E32: 0 | F32: 0 | G32: 0 | H32: 0 | I32: 0 | J32: 0
C33: ='3. Re-Based Bill Det & Rates'!D33 -> 0 | E33: 0 | F33: 0 | G33: 0 | H33: 0 | I33: 0 | J33: 0
C34: ='3. Re-Based Bill Det & Rates'!D34 -> 0 | E34: 0 | F34: 0 | G34: 0 | H34: 0 | I34: 0 | J34: 0
C35: ='3. Re-Based Bill Det & Rates'!D35 -> 0 | E35: 0 | F35: 0 | G35: 0 | H35: 0 | I35: 0 | J35: 0
C36: ='3. Re-Based Bill Det & Rates'!D36 -> 0 | E36: 0 | F36: 0 | G36: 0 | H36: 0 | I36: 0 | J36: 0
C37: ='3. Re-Based Bill Det & Rates'!D37 -> 0 | E37: 0 | F37: 0 | G37: 0 | H37: 0 | I37: 0 | J37: 0
C38: ='3. Re-Based Bill Det & Rates'!D38 -> 0 | E38: 0 | F38: 0 | G38: 0 | H38: 0 | I38: 0 | J38: 0
C39: ='3. Re-Based Bill Det & Rates'!D39 -> 0 | E39: 0 | F39: 0 | G39: 0 | H39: 0 | I39: 0 | J39: 0
C40: ='3. Re-Based Bill Det & Rates'!D40 -> 0 | E40: 0 | F40: 0 | G40: 0 | H40: 0 | I40: 0 | J40: 0
C41: ='3. Re-Based Bill Det & Rates'!D41 -> 0 | E41: 0 | F41: 0 | G41: 0 | H41: 0 | I41: 0 | J41: 0
C42: ='3. Re-Based Bill Det & Rates'!D42 -> 0 | E42: 0 | F42: 0 | G42: 0 | H42: 0 | I42: 0 | J42: 0
C43: ='3. Re-Based Bill Det & Rates'!D43 -> 0 | E43: 0 | F43: 0 | G43: 0 | H43: 0 | I43: 0 | J43: 0
C44: ='3. Re-Based Bill Det & Rates'!D44 -> 0 | E44: 0 | F44: 0 | G44: 0 | H44: 0 | I44: 0 | J44: 0
C45: ='3. Re-Based Bill Det & Rates'!D45 -> 0 | E45: 0 | F45: 0 | G45: 0 | H45: 0 | I45: 0 | J45: 0
C46: ='3. Re-Based Bill Det & Rates'!D46 -> 0 | E46: 0 | F46: 0 | G46: 0 | H46: 0 | I46: 0 | J46: 0
E47: 350952 | F47: =SUM(F22:F46) -> 584920 | I47: =SUM(I22:I46) -> 1181862
E48: B | F48: D | I48: H

Sheet 9. R C Ratio Revenue
C10: The purpose of this sheet is to calculate revenue by rate class that inlcudes Revenue Offsets and excludes Transformer Allowance prior to Revenue Cost Ratio Adjustment re-allocation.
C20: Rate Class | E20: Billed Customers or Connections | F20: Billed kWh | G20: Billed kW | I20: Base Service Charge | J20: Base Distribution Volumetric Rate kWh | K20: Base Distribution Volumetric Rate kW | M20: Service Charge | N20: Distribution Volumetric Rate kWh | O20: Distribution Volumetric Rate kW | P20: Revenue Requirement from Rates | R20: Allocated Revenue Offset | S20: Adjusted Revenue
E21: A | F21: B | G21: C | I21: D | J21: E | K21: F | M21: G = A * D *12 | N21: H = B * E | O21: I = C * F | P21: J = G + H + I | R21: K | S21: L = J + K
C22: ='3. Re-Based Bill Det & Rates'!D22 -> RESIDENTIAL SERVICE CLASSIFICATION | E22: ='3. Re-Based Bill Det & Rates'!I22 -> 51255 | F22: ='3. Re-Based Bill Det & Rates'!J22 -> 379776105 | G22: ='3. Re-Based Bill Det & Rates'!K22 -> 0 | I22: ='5. Re-Based Rev From Rates'!I22 -> 35.41 | J22: ='5. Re-Based Rev From Rates'!J22 -> 0 | K22: ='5. Re-Based Rev From Rates'!K22 -> 0 | M22: =E22*I22*12 -> 21779274.6 | N22: =F22*J22 -> 0 | O22: =G22*K22 -> 0 | P22: =SUM(M22:O22) -> 21779274.6 | R22: ='7. Revenue Offsets Allocation'!F22 -> 0 | S22: =SUM(P22,R22) -> 21779274.6
C23: ='3. Re-Based Bill Det & Rates'!D23 -> GENERAL SERVICE LESS THAN 50 KW SERVICE CLASSIFICATION | E23: ='3. Re-Based Bill Det & Rates'!I23 -> 5487 | F23: ='3. Re-Based Bill Det & Rates'!J23 -> 171279860 | G23: ='3. Re-Based Bill Det & Rates'!K23 -> 0 | I23: ='5. Re-Based Rev From Rates'!I23 -> 40.5 | J23: ='5. Re-Based Rev From Rates'!J23 -> 0.0228 | K23: ='5. Re-Based Rev From Rates'!K23 -> 0 | M23: =E23*I23*12 -> 2666682 | N23: =F23*J23 -> 3905180.808 | O23: =G23*K23 -> 0 | P23: =SUM(M23:O23) -> 6571862.808 | R23: ='7. Revenue Offsets Allocation'!F23 -> 0 | S23: =SUM(P23,R23) -> 6571862.808
C24: ='3. Re-Based Bill Det & Rates'!D24 -> GENERAL SERVICE 50 TO 999 KW SERVICE CLASSIFICATION | E24: ='3. Re-Based Bill Det & Rates'!I24 -> 465 | F24: ='3. Re-Based Bill Det & Rates'!J24 -> 285468167 | G24: ='3. Re-Based Bill Det & Rates'!K24 -> 708872 | I24: ='5. Re-Based Rev From Rates'!I24 -> 237.07 | J24: ='5. Re-Based Rev From Rates'!J24 -> 0 | K24: ='8. Transformer Allowance'!J24 -> 5.225760752 | M24: =E24*I24*12 -> 1322850.6 | N24: =F24*J24 -> 0 | O24: =G24*K24 -> 3704395.476 | P24: =SUM(M24:O24) -> 5027246.076 | R24: ='7. Revenue Offsets Allocation'!F24 -> 0 | S24: =SUM(P24,R24) -> 5027246.076
C25: ='3. Re-Based Bill Det & Rates'!D25 -> GENERAL SERVICE 1,000 KW OR GREATER SERVICE CLASSIFICATION | E25: ='3. Re-Based Bill Det & Rates'!I25 -> 15 | F25: ='3. Re-Based Bill Det & Rates'!J25 -> 147499803 | G25: ='3. Re-Based Bill Det & Rates'!K25 -> 472990 | I25: ='5. Re-Based Rev From Rates'!I25 -> 3391.93 | J25: ='5. Re-Based Rev From Rates'!J25 -> 0 | K25: ='8. Transformer Allowance'!J25 -> 3.5488 | M25: =E25*I25*12 -> 610547.4 | N25: =F25*J25 -> 0 | O25: =G25*K25 -> 1678546.912 | P25: =SUM(M25:O25) -> 2289094.312 | R25: ='7. Revenue Offsets Allocation'!F25 -> 0 | S25: =SUM(P25,R25) -> 2289094.312
C26: ='3. Re-Based Bill Det & Rates'!D26 -> UNMETERED SCATTERED LOAD SERVICE CLASSIFICATION | E26: ='3. Re-Based Bill Det & Rates'!I26 -> 432 | F26: ='3. Re-Based Bill Det & Rates'!J26 -> 2088274 | G26: ='3. Re-Based Bill Det & Rates'!K26 -> 0 | I26: ='5. Re-Based Rev From Rates'!I26 -> 12.26 | J26: ='5. Re-Based Rev From Rates'!J26 -> 0.0259 | K26: ='5. Re-Based Rev From Rates'!K26 -> 0 | M26: =E26*I26*12 -> 63555.84 | N26: =F26*J26 -> 54086.2966 | O26: =G26*K26 -> 0 | P26: =SUM(M26:O26) -> 117642.1366 | R26: ='7. Revenue Offsets Allocation'!F26 -> 0 | S26: =SUM(P26,R26) -> 117642.1366
C27: ='3. Re-Based Bill Det & Rates'!D27 -> SENTINEL LIGHTING SERVICE CLASSIFICATION | E27: ='3. Re-Based Bill Det & Rates'!I27 -> 113 | F27: ='3. Re-Based Bill Det & Rates'!J27 -> 96035 | G27: ='3. Re-Based Bill Det & Rates'!K27 -> 258 | I27: ='5. Re-Based Rev From Rates'!I27 -> 11.38 | J27: ='5. Re-Based Rev From Rates'!J27 -> 0 | K27: ='5. Re-Based Rev From Rates'!K27 -> 9.1216 | M27: =E27*I27*12 -> 15431.28 | N27: =F27*J27 -> 0 | O27: =G27*K27 -> 2353.3728 | P27: =SUM(M27:O27) -> 17784.6528 | R27: ='7. Revenue Offsets Allocation'!F27 -> 0 | S27: =SUM(P27,R27) -> 17784.6528
C28: ='3. Re-Based Bill Det & Rates'!D28 -> STREET LIGHTING SERVICE CLASSIFICATION | E28: ='3. Re-Based Bill Det & Rates'!I28 -> 13656 | F28: ='3. Re-Based Bill Det & Rates'!J28 -> 5592860 | G28: ='3. Re-Based Bill Det & Rates'!K28 -> 15924 | I28: ='5. Re-Based Rev From Rates'!I28 -> 2.04 | J28: ='5. Re-Based Rev From Rates'!J28 -> 0 | K28: ='5. Re-Based Rev From Rates'!K28 -> 10.6088 | M28: =E28*I28*12 -> 334298.88 | N28: =F28*J28 -> 0 | O28: =G28*K28 -> 168934.5312 | P28: =SUM(M28:O28) -> 503233.4112 | R28: ='7. Revenue Offsets Allocation'!F28 -> 0 | S28: =SUM(P28,R28) -> 503233.4112
C29: ='3. Re-Based Bill Det & Rates'!D29 -> 0
C30: ='3. Re-Based Bill Det & Rates'!D30 -> 0
C31: ='3. Re-Based Bill Det & Rates'!D31 -> 0
C32: ='3. Re-Based Bill Det & Rates'!D32 -> 0
C33: ='3. Re-Based Bill Det & Rates'!D33 -> 0
C34: ='3. Re-Based Bill Det & Rates'!D34 -> 0
C35: ='3. Re-Based Bill Det & Rates'!D35 -> 0
C36: ='3. Re-Based Bill Det & Rates'!D36 -> 0
C37: ='3. Re-Based Bill Det & Rates'!D37 -> 0
C38: ='3. Re-Based Bill Det & Rates'!D38 -> 0
C39: ='3. Re-Based Bill Det & Rates'!D39 -> 0
C40: ='3. Re-Based Bill Det & Rates'!D40 -> 0
C41: ='3. Re-Based Bill Det & Rates'!D41 -> 0
C42: ='3. Re-Based Bill Det & Rates'!D42 -> 0
C43: ='3. Re-Based Bill Det & Rates'!D43 -> 0
C44: ='3. Re-Based Bill Det & Rates'!D44 -> 0
C45: ='3. Re-Based Bill Det & Rates'!D45 -> 0
C46: ='3. Re-Based Bill Det & Rates'!D46 -> 0
M47: =SUM(M22:M46) -> 26792640.6 | N47: =SUM(N22:N46) -> 3959267.105 | O47: =SUM(O22:O46) -> 5554230.292 | P47: =SUM(P22:P46) -> 36306138 | R47: =SUM(R22:R46) -> 0 | S47: =SUM(S22:S46) -> 36306138
M48: O | N48: P | O48: Q | P48: R

Sheet 10. Proposed R C Ratio Adj
A11: Proposed Revenue Cost Ratio Adjustment
A12: This worksheet adjusts revenue-to-cost ratios in order to address any shortfall or over recovery (Out of Balance) that would result from implementing the revenue-to-cost ratios entered on sheet "6. Decision Cost Revenue Adj". To do this, one or more rate classes must indicate "Rebalance" on sheet 6.
A15: There are three options for attributing any Out of Balance to rate classes.
A16: 1. To adjust a single rate class so that the entire Out of Balance is absorbed by that rate class, select the green cell for the rate class under "Proposed Revenue to Cost Ratio" labelled Column D. To use this option, click the button "Iterate Selected Cell to Zero."
A17: 2. To apportion the Out of Balance across all green cells such that all green cells are increased by the same amount relative to Column B. To use this option, click the button "Iterate All Equal Percentage Change."
A18: 3. To apportion the Out of Balance such that each class is allocated the Out of Balance in proportion to its share of the allocated costs in Column C. To use this option, click the button "Iterate All Proportionate Change."
C20: Rate Class | D20: Adjusted Revenue | E20: Current Revenue Cost Ratio | F20: Re-Allocated Cost | G20: Proposed Revenue Cost Ratio | H20: Final Adjusted Revenue | J20: Dollar Change | K20: Percentage Change
D21: A | E21: B | F21: C = A / B | G21: D | H21: E = C * D | J21: F = E - C | K21: G = (E / C) - 1
C22: ='3. Re-Based Bill Det & Rates'!D22 -> RESIDENTIAL SERVICE CLASSIFICATION | D22: ='9. R C Ratio Revenue'!S22 -> 21779274.6 | E22: ='6. Decision Cost Revenue Adj'!E22 -> 0.995 | F22: =IF(ISERROR(D22/(E22)),0,D22/(E22)) -> 21888718.19 | G22: ='6. Decision Cost Revenue Adj'!F22 -> 0.9950000048 | H22: =IF(ISERROR(F22*(G22)),"",F22*(G22)) -> 21779274.7 | J22: =H22-D22 -> 0.1043735407 | K22: =IF(ISERROR(H22/D22-1),0,H22/D22-1) -> 4.792333197e-09
C23: ='3. Re-Based Bill Det & Rates'!D23 -> GENERAL SERVICE LESS THAN 50 KW SERVICE CLASSIFICATION | D23: ='9. R C Ratio Revenue'!S23 -> 6571862.808 | E23: ='6. Decision Cost Revenue Adj'!E23 -> 1.16 | F23: =IF(ISERROR(D23/(E23)),0,D23/(E23)) -> 5665398.972 | G23: 1.152797909 | H23: =IF(ISERROR(F23*(G23)),"",F23*(G23)) -> 6531060.089 | J23: =H23-D23 -> -40802.71917 | K23: =IF(ISERROR(H23/D23-1),0,H23/D23-1) -> -0.006208699171
C24: ='3. Re-Based Bill Det & Rates'!D24 -> GENERAL SERVICE 50 TO 999 KW SERVICE CLASSIFICATION | D24: ='9. R C Ratio Revenue'!S24 -> 5027246.076 | E24: ='6. Decision Cost Revenue Adj'!E24 -> 0.877 | F24: =IF(ISERROR(D24/(E24)),0,D24/(E24)) -> 5732321.637 | G24: ='6. Decision Cost Revenue Adj'!F24 -> 0.8769999743 | H24: =IF(ISERROR(F24*(G24)),"",F24*(G24)) -> 5027245.928 | J24: -0.1476027332 | K24: -2.936055465e-08
C25: ='3. Re-Based Bill Det & Rates'!D25 -> GENERAL SERVICE 1,000 KW OR GREATER SERVICE CLASSIFICATION | D25: ='9. R C Ratio Revenue'!S25 -> 2289094.312 | E25: ='6. Decision Cost Revenue Adj'!E25 -> 1.049 | F25: =IF(ISERROR(D25/(E25)),0,D25/(E25)) -> 2182168.076 | G25: ='6. Decision Cost Revenue Adj'!F25 -> 1.049000025 | H25: =IF(ISERROR(F25*(G25)),"",F25*(G25)) -> 2289094.366 | J25: 0.05410801899 | K25: 2.363730434e-08
C26: ='3. Re-Based Bill Det & Rates'!D26 -> UNMETERED SCATTERED LOAD SERVICE CLASSIFICATION | D26: ='9. R C Ratio Revenue'!S26 -> 117642.1366 | E26: ='6. Decision Cost Revenue Adj'!E26 -> 1.079 | F26: =IF(ISERROR(D26/(E26)),0,D26/(E26)) -> 109028.8569 | G26: ='6. Decision Cost Revenue Adj'!F26 -> 1.078999996 | H26: =IF(ISERROR(F26*(G26)),"",F26*(G26)) -> 117642.1362 | J26: -0.0004159120726 | K26: -3.535400528e-09
C27: ='3. Re-Based Bill Det & Rates'!D27 -> SENTINEL LIGHTING SERVICE CLASSIFICATION | D27: ='9. R C Ratio Revenue'!S27 -> 17784.6528 | E27: ='6. Decision Cost Revenue Adj'!E27 -> 0.904 | F27: =IF(ISERROR(D27/(E27)),0,D27/(E27)) -> 19673.2885 | G27: ='6. Decision Cost Revenue Adj'!F27 -> 0.9039999843 | H27: =IF(ISERROR(F27*(G27)),"",F27*(G27)) -> 17784.65249 | J27: -0.0003095715147 | K27: -1.740666622e-08
C28: ='3. Re-Based Bill Det & Rates'!D28 -> STREET LIGHTING SERVICE CLASSIFICATION | D28: ='9. R C Ratio Revenue'!S28 -> 503233.4112 | E28: ='6. Decision Cost Revenue Adj'!E28 -> 0.74 | F28: =IF(ISERROR(D28/(E28)),0,D28/(E28)) -> 680045.1503 | G28: ='6. Decision Cost Revenue Adj'!F28 -> 0.8 | H28: =IF(ISERROR(F28*(G28)),"",F28*(G28)) -> 544036.1202 | J28: 40802.70902 | K28: 0.08108108108
C29: ='3. Re-Based Bill Det & Rates'!D29 -> 0 | D29: 0 | E29: 0 | F29: 0 | G29: 0 | H29: 0 | J29: 0 | K29: 0
C30: ='3. Re-Based Bill Det & Rates'!D30 -> 0 | D30: 0 | E30: 0 | F30: 0 | G30: 0 | H30: 0 | J30: 0 | K30: 0
C31: ='3. Re-Based Bill Det & Rates'!D31 -> 0 | D31: 0 | E31: 0 | F31: 0 | G31: 0 | H31: 0 | J31: 0 | K31: 0
C32: ='3. Re-Based Bill Det & Rates'!D32 -> 0 | D32: 0 | E32: 0 | F32: 0 | G32: 0 | H32: 0 | J32: 0 | K32: 0
C33: ='3. Re-Based Bill Det & Rates'!D33 -> 0 | D33: 0 | E33: 0 | F33: 0 | G33: 0 | H33: 0 | J33: 0 | K33: 0
C34: ='3. Re-Based Bill Det & Rates'!D34 -> 0 | D34: 0 | E34: 0 | F34: 0 | G34: 0 | H34: 0 | J34: 0 | K34: 0
C35: ='3. Re-Based Bill Det & Rates'!D35 -> 0 | D35: 0 | E35: 0 | F35: 0 | G35: 0 | H35: 0 | J35: 0 | K35: 0
C36: ='3. Re-Based Bill Det & Rates'!D36 -> 0 | D36: 0 | E36: 0 | F36: 0 | G36: 0 | H36: 0 | J36: 0 | K36: 0
C37: ='3. Re-Based Bill Det & Rates'!D37 -> 0 | D37: 0 | E37: 0 | F37: 0 | G37: 0 | H37: 0 | J37: 0 | K37: 0
C38: ='3. Re-Based Bill Det & Rates'!D38 -> 0 | D38: 0 | E38: 0 | F38: 0 | G38: 0 | H38: 0 | J38: 0 | K38: 0
C39: ='3. Re-Based Bill Det & Rates'!D39 -> 0 | D39: 0 | E39: 0 | F39: 0 | G39: 0 | H39: 0 | J39: 0 | K39: 0
C40: ='3. Re-Based Bill Det & Rates'!D40 -> 0 | D40: 0 | E40: 0 | F40: 0 | G40: 0 | H40: 0 | J40: 0 | K40: 0
C41: ='3. Re-Based Bill Det & Rates'!D41 -> 0 | D41: 0 | E41: 0 | F41: 0 | G41: 0 | H41: 0 | J41: 0 | K41: 0
C42: ='3. Re-Based Bill Det & Rates'!D42 -> 0 | D42: 0 | E42: 0 | F42: 0 | G42: 0 | H42: 0 | J42: 0 | K42: 0
C43: ='3. Re-Based Bill Det & Rates'!D43 -> 0 | D43: 0 | E43: 0 | F43: 0 | G43: 0 | H43: 0 | J43: 0 | K43: 0
C44: ='3. Re-Based Bill Det & Rates'!D44 -> 0 | D44: 0 | E44: 0 | F44: 0 | G44: 0 | H44: 0 | J44: 0 | K44: 0
C45: ='3. Re-Based Bill Det & Rates'!D45 -> 0 | D45: 0 | E45: 0 | F45: 0 | G45: 0 | H45: 0 | J45: 0 | K45: 0
C46: ='3. Re-Based Bill Det & Rates'!D46 -> 0 | D46: 0 | E46: 0 | F46: 0 | G46: 0 | H46: 0 | J46: 0 | K46: 0
D47: =SUM(D22:D46) -> 36306138 | F47: =SUM(F22:F46) -> 36277354.17 | H47: =SUM(H22:H46) -> 36306138 | J47: =SUM(J22:J46) -> 6.803020369e-09 | K47: 2.220446049e-16
G49: Out of Balance | H49: =D47-H47 -> 0
G51: Final ? | H51: Yes

Sheet 11. Proposed Revenue
A14: Proposed Revenue from Revenue Cost Ratio Adjustment
C20: Rate Class | D20: Adjusted Revenue By Revenue Cost Ratio | E20: Allocated Re-Based Revenue Offsets | F20: Revenue Requirement from Rates Before Transformer Allowance | H20: Re-based Transformer Allowance | J20: Revenue Requirement from Rates
D21: A | E21: B | F21: C = A - B | H21: D | J21: E = C + D
C22: ='3. Re-Based Bill Det & Rates'!D22 -> RESIDENTIAL SERVICE CLASSIFICATION | D22: =IF(('10. Proposed R C Ratio Adj'!H22=""),0,'10. Proposed R C Ratio Adj'!H22) -> 21779274.7 | E22: ='7. Revenue Offsets Allocation'!F22 -> 0 | F22: =D22-E22 -> 21779274.7 | H22: ='8. Transformer Allowance'!E22 -> 0 | J22: =F22+H22 -> 21779274.7
C23: ='3. Re-Based Bill Det & Rates'!D23 -> GENERAL SERVICE LESS THAN 50 KW SERVICE CLASSIFICATION | D23: =IF(('10. Proposed R C Ratio Adj'!H23=""),0,'10. Proposed R C Ratio Adj'!H23) -> 6531060.089 | E23: ='7. Revenue Offsets Allocation'!F23 -> 0 | F23: 6531060.089 | H23: ='8. Transformer Allowance'!E23 -> 0 | J23: =F23+H23 -> 6531060.089
C24: ='3. Re-Based Bill Det & Rates'!D24 -> GENERAL SERVICE 50 TO 999 KW SERVICE CLASSIFICATION | D24: =IF(('10. Proposed R C Ratio Adj'!H24=""),0,'10. Proposed R C Ratio Adj'!H24) -> 5027245.928 | E24: ='7. Revenue Offsets Allocation'!F24 -> 0 | F24: 5027245.928 | H24: ='8. Transformer Allowance'!E24 -> 67158 | J24: 5094403.928
C25: ='3. Re-Based Bill Det & Rates'!D25 -> GENERAL SERVICE 1,000 KW OR GREATER SERVICE CLASSIFICATION | D25: =IF(('10. Proposed R C Ratio Adj'!H25=""),0,'10. Proposed R C Ratio Adj'!H25) -> 2289094.366 | E25: ='7. Revenue Offsets Allocation'!F25 -> 0 | F25: 2289094.366 | H25: ='8. Transformer Allowance'!E25 -> 283794 | J25: 2572888.366
C26: ='3. Re-Based Bill Det & Rates'!D26 -> UNMETERED SCATTERED LOAD SERVICE CLASSIFICATION | D26: =IF(('10. Proposed R C Ratio Adj'!H26=""),0,'10. Proposed R C Ratio Adj'!H26) -> 117642.1362 | E26: ='7. Revenue Offsets Allocation'!F26 -> 0 | F26: 117642.1362 | H26: ='8. Transformer Allowance'!E26 -> 0 | J26: 117642.1362
C27: ='3. Re-Based Bill Det & Rates'!D27 -> SENTINEL LIGHTING SERVICE CLASSIFICATION | D27: =IF(('10. Proposed R C Ratio Adj'!H27=""),0,'10. Proposed R C Ratio Adj'!H27) -> 17784.65249 | E27: ='7. Revenue Offsets Allocation'!F27 -> 0 | F27: 17784.65249 | H27: ='8. Transformer Allowance'!E27 -> 0 | J27: 17784.65249
C28: ='3. Re-Based Bill Det & Rates'!D28 -> STREET LIGHTING SERVICE CLASSIFICATION | D28: =IF(('10. Proposed R C Ratio Adj'!H28=""),0,'10. Proposed R C Ratio Adj'!H28) -> 544036.1202 | E28: ='7. Revenue Offsets Allocation'!F28 -> 0 | F28: 544036.1202 | H28: ='8. Transformer Allowance'!E28 -> 0 | J28: 544036.1202
C29: ='3. Re-Based Bill Det & Rates'!D29 -> 0 | F29: 0 | J29: 0
C30: ='3. Re-Based Bill Det & Rates'!D30 -> 0 | F30: 0 | J30: 0
C31: ='3. Re-Based Bill Det & Rates'!D31 -> 0 | F31: 0 | J31: 0
C32: ='3. Re-Based Bill Det & Rates'!D32 -> 0 | F32: 0 | J32: 0
C33: ='3. Re-Based Bill Det & Rates'!D33 -> 0 | F33: 0 | J33: 0
C34: ='3. Re-Based Bill Det & Rates'!D34 -> 0 | F34: 0 | J34: 0
C35: ='3. Re-Based Bill Det & Rates'!D35 -> 0 | F35: 0 | J35: 0
C36: ='3. Re-Based Bill Det & Rates'!D36 -> 0 | F36: 0 | J36: 0
C37: ='3. Re-Based Bill Det & Rates'!D37 -> 0 | F37: 0 | J37: 0
C38: ='3. Re-Based Bill Det & Rates'!D38 -> 0 | F38: 0 | J38: 0
C39: ='3. Re-Based Bill Det & Rates'!D39 -> 0 | F39: 0 | J39: 0
C40: ='3. Re-Based Bill Det & Rates'!D40 -> 0 | F40: 0 | J40: 0
C41: ='3. Re-Based Bill Det & Rates'!D41 -> 0 | F41: 0 | J41: 0
C42: ='3. Re-Based Bill Det & Rates'!D42 -> 0 | F42: 0 | J42: 0
C43: ='3. Re-Based Bill Det & Rates'!D43 -> 0 | F43: 0 | J43: 0
C44: ='3. Re-Based Bill Det & Rates'!D44 -> 0 | F44: 0 | J44: 0
C45: ='3. Re-Based Bill Det & Rates'!D45 -> 0 | F45: 0 | J45: 0
C46: ='3. Re-Based Bill Det & Rates'!D46 -> 0 | F46: 0 | J46: 0
D47: =SUM(D22:D46) -> 36306138 | E47: =SUM(E22:E46) -> 0 | F47: =SUM(F22:F46) -> 36306138 | H47: =SUM(H22:H46) -> 350952 | J47: =SUM(J22:J46) -> 36657090

Sheet 12. Proposed F V Rev Alloc
A13: Proposed fixed and variable revenue allocation
C20: Rate Class | D20: Revenue Requirement from Rates | F20: Service Charge % Revenue | G20: Distribution Volumetric Rate % Revenue kWh | H20: Distribution Volumetric Rate % Revenue kW | J20: Service Charge Revenue | K20: Distribution Volumetric Rate Revenue kWh | L20: Distribution Volumetric Rate Revenue kW | M20: Revenue Requirement from Rates by Rate Class
D21: A | F21: B | G21: C | H21: D | J21: E = A * B | K21: F = A * C | L21: G = A * D | M21: H = E + F + G
C22: ='3. Re-Based Bill Det & Rates'!D22 -> RESIDENTIAL SERVICE CLASSIFICATION | D22: ='11. Proposed Revenue'!J22 -> 21779274.7 | F22: ='5. Re-Based Rev From Rates'!R22 -> 1 | G22: ='5. Re-Based Rev From Rates'!S22 -> 0 | H22: ='5. Re-Based Rev From Rates'!T22 -> 0 | J22: =IF(ISERROR($D22*F22),0,$D22*F22) -> 21779274.7 | K22: =IF(ISERROR($D22*G22),0,$D22*G22) -> 0 | L22: =IF(ISERROR($D22*H22),0,$D22*H22) -> 0 | M22: =SUM(J22:L22) -> 21779274.7
C23: ='3. Re-Based Bill Det & Rates'!D23 -> GENERAL SERVICE LESS THAN 50 KW SERVICE CLASSIFICATION | D23: ='11. Proposed Revenue'!J23 -> 6531060.089 | F23: ='5. Re-Based Rev From Rates'!R23 -> 0.4057726215 | G23: ='5. Re-Based Rev From Rates'!S23 -> 0.5942273785 | H23: ='5. Re-Based Rev From Rates'!T23 -> 0 | J23: 2650125.374 | K23: 3880934.715 | L23: 0 | M23: 6531060.089
C24: ='3. Re-Based Bill Det & Rates'!D24 -> GENERAL SERVICE 50 TO 999 KW SERVICE CLASSIFICATION | D24: ='11. Proposed Revenue'!J24 -> 5094403.928 | F24: ='5. Re-Based Rev From Rates'!R24 -> 0.259667388 | G24: ='5. Re-Based Rev From Rates'!S24 -> 0 | H24: ='5. Re-Based Rev From Rates'!T24 -> 0.740332612 | J24: 1322850.562 | K24: 0 | L24: 3771553.367 | M24: 5094403.928
C25: ='3. Re-Based Bill Det & Rates'!D25 -> GENERAL SERVICE 1,000 KW OR GREATER SERVICE CLASSIFICATION | D25: ='11. Proposed Revenue'!J25 -> 2572888.366 | F25: ='5. Re-Based Rev From Rates'!R25 -> 0.2373003901 | G25: ='5. Re-Based Rev From Rates'!S25 -> 0 | H25: ='5. Re-Based Rev From Rates'!T25 -> 0.7626996099 | J25: 610547.4128 | K25: 0 | L25: 1962340.953 | M25: 2572888.366
C26: ='3. Re-Based Bill Det & Rates'!D26 -> UNMETERED SCATTERED LOAD SERVICE CLASSIFICATION | D26: ='11. Proposed Revenue'!J26 -> 117642.1362 | F26: ='5. Re-Based Rev From Rates'!R26 -> 0.5402472434 | G26: ='5. Re-Based Rev From Rates'!S26 -> 0.4597527566 | H26: ='5. Re-Based Rev From Rates'!T26 -> 0 | J26: 63555.83978 | K26: 54086.29641 | L26: 0 | M26: 117642.1362
C27: ='3. Re-Based Bill Det & Rates'!D27 -> SENTINEL LIGHTING SERVICE CLASSIFICATION | D27: ='11. Proposed Revenue'!J27 -> 17784.65249 | F27: ='5. Re-Based Rev From Rates'!R27 -> 0.8676739531 | G27: ='5. Re-Based Rev From Rates'!S27 -> 0 | H27: ='5. Re-Based Rev From Rates'!T27 -> 0.1323260469 | J27: 15431.27973 | K27: 0 | L27: 2353.372759 | M27: 17784.65249
C28: ='3. Re-Based Bill Det & Rates'!D28 -> STREET LIGHTING SERVICE CLASSIFICATION | D28: ='11. Proposed Revenue'!J28 -> 544036.1202 | F28: ='5. Re-Based Rev From Rates'!R28 -> 0.664301838 | G28: ='5. Re-Based Rev From Rates'!S28 -> 0 | H28: ='5. Re-Based Rev From Rates'!T28 -> 0.335698162 | J28: 361404.1946 | K28: 0 | L28: 182631.9256 | M28: 544036.1202
C29: ='3. Re-Based Bill Det & Rates'!D29 -> 0 | J29: 0 | K29: 0 | L29: 0 | M29: 0
C30: ='3. Re-Based Bill Det & Rates'!D30 -> 0 | J30: 0 | K30: 0 | L30: 0 | M30: 0
C31: ='3. Re-Based Bill Det & Rates'!D31 -> 0 | J31: 0 | K31: 0 | L31: 0 | M31: 0
C32: ='3. Re-Based Bill Det & Rates'!D32 -> 0 | J32: 0 | K32: 0 | L32: 0 | M32: 0
C33: ='3. Re-Based Bill Det & Rates'!D33 -> 0 | J33: 0 | K33: 0 | L33: 0 | M33: 0
C34: ='3. Re-Based Bill Det & Rates'!D34 -> 0 | J34: 0 | K34: 0 | L34: 0 | M34: 0
C35: ='3. Re-Based Bill Det & Rates'!D35 -> 0 | J35: 0 | K35: 0 | L35: 0 | M35: 0
C36: ='3. Re-Based Bill Det & Rates'!D36 -> 0 | J36: 0 | K36: 0 | L36: 0 | M36: 0
C37: ='3. Re-Based Bill Det & Rates'!D37 -> 0 | J37: 0 | K37: 0 | L37: 0 | M37: 0
C38: ='3. Re-Based Bill Det & Rates'!D38 -> 0 | J38: 0 | K38: 0 | L38: 0 | M38: 0
C39: ='3. Re-Based Bill Det & Rates'!D39 -> 0 | J39: 0 | K39: 0 | L39: 0 | M39: 0
C40: ='3. Re-Based Bill Det & Rates'!D40 -> 0 | J40: 0 | K40: 0 | L40: 0 | M40: 0
C41: ='3. Re-Based Bill Det & Rates'!D41 -> 0 | J41: 0 | K41: 0 | L41: 0 | M41: 0
C42: ='3. Re-Based Bill Det & Rates'!D42 -> 0 | J42: 0 | K42: 0 | L42: 0 | M42: 0
C43: ='3. Re-Based Bill Det & Rates'!D43 -> 0 | J43: 0 | K43: 0 | L43: 0 | M43: 0
C44: ='3. Re-Based Bill Det & Rates'!D44 -> 0 | J44: 0 | K44: 0 | L44: 0 | M44: 0
C45: ='3. Re-Based Bill Det & Rates'!D45 -> 0 | J45: 0 | K45: 0 | L45: 0 | M45: 0
C46: ='3. Re-Based Bill Det & Rates'!D46 -> 0 | J46: 0 | K46: 0 | L46: 0 | M46: 0
D47: =SUM(D22:D46) -> 36657090 | J47: =SUM(J22:J46) -> 26803189.37 | K47: =SUM(K22:K46) -> 3935021.012 | L47: =SUM(L22:L46) -> 5918879.618 | M47: =SUM(M22:M46) -> 36657090

Sheet 13. Proposed F V Rates
A11: Proposed fixed and variable rates
C20: Rate Class | E20: Service Charge Revenue | F20: Distribution Volumetric Rate Revenue kWh | G20: Distribution Volumetric Rate Revenue kW | I20: Re-based Billed Customers or Connections | J20: Re-based Billed kWh | K20: Re-based Billed kW | M20: Proposed Base Service Charge | N20: Proposed Base Distribution Volumetric Rate kWh | O20: Proposed Base Distribution Volumetric Rate kW
E21: A | F21: B | G21: C | I21: D | J21: E | K21: F | M21: G = A / D / 12 | N21: H = B / E | O21: I = C / F
C22: ='3. Re-Based Bill Det & Rates'!D22 -> RESIDENTIAL SERVICE CLASSIFICATION | E22: ='12. Proposed F V Rev Alloc'!J22 -> 21779274.7 | F22: ='12. Proposed F V Rev Alloc'!K22 -> 0 | G22: ='12. Proposed F V Rev Alloc'!L22 -> 0 | I22: ='3. Re-Based Bill Det & Rates'!I22 -> 51255 | J22: ='3. Re-Based Bill Det & Rates'!J22 -> 379776105 | K22: ='3. Re-Based Bill Det & Rates'!K22 -> 0 | M22: =IF('6. Decision Cost Revenue Adj'!D22="No Change",'5. Re-Based Rev From Rates'!I22,IF(ISERROR(E22/I22/12),0,E22/I22/12)) -> 35.41 | N22: =IF('6. Decision Cost Revenue Adj'!D22="No Change",'5. Re-Based Rev From Rates'!J22,IF(ISERROR(F22/J22),0,F22/J22)) -> 0 | O22: =IF('6. Decision Cost Revenue Adj'!D22="No Change",'5. Re-Based Rev From Rates'!K22,IF(ISERROR(G22/K22),0,G22/K22)) -> 0
C23: ='3. Re-Based Bill Det & Rates'!D23 -> GENERAL SERVICE LESS THAN 50 KW SERVICE CLASSIFICATION | E23: ='12. Proposed F V Rev Alloc'!J23 -> 2650125.374 | F23: ='12. Proposed F V Rev Alloc'!K23 -> 3880934.715 | G23: ='12. Proposed F V Rev Alloc'!L23 -> 0 | I23: ='3. Re-Based Bill Det & Rates'!I23 -> 5487 | J23: ='3. Re-Based Bill Det & Rates'!J23 -> 171279860 | K23: ='3. Re-Based Bill Det & Rates'!K23 -> 0 | M23: =IF('6. Decision Cost Revenue Adj'!D23="No Change",'5. Re-Based Rev From Rates'!I23,IF(ISERROR(E23/I23/12),0,E23/I23/12)) -> 40.24854768 | N23: =IF('6. Decision Cost Revenue Adj'!D23="No Change",'5. Re-Based Rev From Rates'!J23,IF(ISERROR(F23/J23),0,F23/J23)) -> 0.02265844166 | O23: =IF('6. Decision Cost Revenue Adj'!D23="No Change",'5. Re-Based Rev From Rates'!K23,IF(ISERROR(G23/K23),0,G23/K23)) -> 0
C24: ='3. Re-Based Bill Det & Rates'!D24 -> GENERAL SERVICE 50 TO 999 KW SERVICE CLASSIFICATION | E24: ='12. Proposed F V Rev Alloc'!J24 -> 1322850.562 | F24: ='12. Proposed F V Rev Alloc'!K24 -> 0 | G24: ='12. Proposed F V Rev Alloc'!L24 -> 3771553.367 | I24: ='3. Re-Based Bill Det & Rates'!I24 -> 465 | J24: ='3. Re-Based Bill Det & Rates'!J24 -> 285468167 | K24: ='3. Re-Based Bill Det & Rates'!K24 -> 708872 | M24: =IF('6. Decision Cost Revenue Adj'!D24="No Change",'5. Re-Based Rev From Rates'!I24,IF(ISERROR(E24/I24/12),0,E24/I24/12)) -> 237.07 | N24: =IF('6. Decision Cost Revenue Adj'!D24="No Change",'5. Re-Based Rev From Rates'!J24,IF(ISERROR(F24/J24),0,F24/J24)) -> 0 | O24: =IF('6. Decision Cost Revenue Adj'!D24="No Change",'5. Re-Based Rev From Rates'!K24,IF(ISERROR(G24/K24),0,G24/K24)) -> 5.3205
C25: ='3. Re-Based Bill Det & Rates'!D25 -> GENERAL SERVICE 1,000 KW OR GREATER SERVICE CLASSIFICATION | E25: ='12. Proposed F V Rev Alloc'!J25 -> 610547.4128 | F25: ='12. Proposed F V Rev Alloc'!K25 -> 0 | G25: ='12. Proposed F V Rev Alloc'!L25 -> 1962340.953 | I25: ='3. Re-Based Bill Det & Rates'!I25 -> 15 | J25: ='3. Re-Based Bill Det & Rates'!J25 -> 147499803 | K25: ='3. Re-Based Bill Det & Rates'!K25 -> 472990 | M25: =IF('6. Decision Cost Revenue Adj'!D25="No Change",'5. Re-Based Rev From Rates'!I25,IF(ISERROR(E25/I25/12),0,E25/I25/12)) -> 3391.93 | N25: =IF('6. Decision Cost Revenue Adj'!D25="No Change",'5. Re-Based Rev From Rates'!J25,IF(ISERROR(F25/J25),0,F25/J25)) -> 0 | O25: =IF('6. Decision Cost Revenue Adj'!D25="No Change",'5. Re-Based Rev From Rates'!K25,IF(ISERROR(G25/K25),0,G25/K25)) -> 4.1488
C26: ='3. Re-Based Bill Det & Rates'!D26 -> UNMETERED SCATTERED LOAD SERVICE CLASSIFICATION | E26: ='12. Proposed F V Rev Alloc'!J26 -> 63555.83978 | F26: ='12. Proposed F V Rev Alloc'!K26 -> 54086.29641 | G26: ='12. Proposed F V Rev Alloc'!L26 -> 0 | I26: ='3. Re-Based Bill Det & Rates'!I26 -> 432 | J26: ='3. Re-Based Bill Det & Rates'!J26 -> 2088274 | K26: ='3. Re-Based Bill Det & Rates'!K26 -> 0 | M26: =IF('6. Decision Cost Revenue Adj'!D26="No Change",'5. Re-Based Rev From Rates'!I26,IF(ISERROR(E26/I26/12),0,E26/I26/12)) -> 12.26 | N26: =IF('6. Decision Cost Revenue Adj'!D26="No Change",'5. Re-Based Rev From Rates'!J26,IF(ISERROR(F26/J26),0,F26/J26)) -> 0.0259 | O26: =IF('6. Decision Cost Revenue Adj'!D26="No Change",'5. Re-Based Rev From Rates'!K26,IF(ISERROR(G26/K26),0,G26/K26)) -> 0
C27: ='3. Re-Based Bill Det & Rates'!D27 -> SENTINEL LIGHTING SERVICE CLASSIFICATION | E27: ='12. Proposed F V Rev Alloc'!J27 -> 15431.27973 | F27: ='12. Proposed F V Rev Alloc'!K27 -> 0 | G27: ='12. Proposed F V Rev Alloc'!L27 -> 2353.372759 | I27: ='3. Re-Based Bill Det & Rates'!I27 -> 113 | J27: ='3. Re-Based Bill Det & Rates'!J27 -> 96035 | K27: ='3. Re-Based Bill Det & Rates'!K27 -> 258 | M27: =IF('6. Decision Cost Revenue Adj'!D27="No Change",'5. Re-Based Rev From Rates'!I27,IF(ISERROR(E27/I27/12),0,E27/I27/12)) -> 11.38 | N27: =IF('6. Decision Cost Revenue Adj'!D27="No Change",'5. Re-Based Rev From Rates'!J27,IF(ISERROR(F27/J27),0,F27/J27)) -> 0 | O27: =IF('6. Decision Cost Revenue Adj'!D27="No Change",'5. Re-Based Rev From Rates'!K27,IF(ISERROR(G27/K27),0,G27/K27)) -> 9.1216
C28: ='3. Re-Based Bill Det & Rates'!D28 -> STREET LIGHTING SERVICE CLASSIFICATION | E28: ='12. Proposed F V Rev Alloc'!J28 -> 361404.1946 | F28: ='12. Proposed F V Rev Alloc'!K28 -> 0 | G28: ='12. Proposed F V Rev Alloc'!L28 -> 182631.9256 | I28: ='3. Re-Based Bill Det & Rates'!I28 -> 13656 | J28: ='3. Re-Based Bill Det & Rates'!J28 -> 5592860 | K28: ='3. Re-Based Bill Det & Rates'!K28 -> 15924 | M28: =IF('6. Decision Cost Revenue Adj'!D28="No Change",'5. Re-Based Rev From Rates'!I28,IF(ISERROR(E28/I28/12),0,E28/I28/12)) -> 2.205405405 | N28: =IF('6. Decision Cost Revenue Adj'!D28="No Change",'5. Re-Based Rev From Rates'!J28,IF(ISERROR(F28/J28),0,F28/J28)) -> 0 | O28: =IF('6. Decision Cost Revenue Adj'!D28="No Change",'5. Re-Based Rev From Rates'!K28,IF(ISERROR(G28/K28),0,G28/K28)) -> 11.46897297
C29: ='3. Re-Based Bill Det & Rates'!D29 -> 0 | M29: =IF('6. Decision Cost Revenue Adj'!D29="No Change",'5. Re-Based Rev From Rates'!I29,IF(ISERROR(E29/I29/12),0,E29/I29/12)) -> 0 | N29: =IF('6. Decision Cost Revenue Adj'!D29="No Change",'5. Re-Based Rev From Rates'!J29,IF(ISERROR(F29/J29),0,F29/J29)) -> 0 | O29: =IF('6. Decision Cost Revenue Adj'!D29="No Change",'5. Re-Based Rev From Rates'!K29,IF(ISERROR(G29/K29),0,G29/K29)) -> 0
C30: ='3. Re-Based Bill Det & Rates'!D30 -> 0 | M30: =IF('6. Decision Cost Revenue Adj'!D30="No Change",'5. Re-Based Rev From Rates'!I30,IF(ISERROR(E30/I30/12),0,E30/I30/12)) -> 0 | N30: =IF('6. Decision Cost Revenue Adj'!D30="No Change",'5. Re-Based Rev From Rates'!J30,IF(ISERROR(F30/J30),0,F30/J30)) -> 0 | O30: =IF('6. Decision Cost Revenue Adj'!D30="No Change",'5. Re-Based Rev From Rates'!K30,IF(ISERROR(G30/K30),0,G30/K30)) -> 0
C31: ='3. Re-Based Bill Det & Rates'!D31 -> 0 | M31: =IF('6. Decision Cost Revenue Adj'!D31="No Change",'5. Re-Based Rev From Rates'!I31,IF(ISERROR(E31/I31/12),0,E31/I31/12)) -> 0 | N31: =IF('6. Decision Cost Revenue Adj'!D31="No Change",'5. Re-Based Rev From Rates'!J31,IF(ISERROR(F31/J31),0,F31/J31)) -> 0 | O31: =IF('6. Decision Cost Revenue Adj'!D31="No Change",'5. Re-Based Rev From Rates'!K31,IF(ISERROR(G31/K31),0,G31/K31)) -> 0
C32: ='3. Re-Based Bill Det & Rates'!D32 -> 0 | M32: =IF('6. Decision Cost Revenue Adj'!D32="No Change",'5. Re-Based Rev From Rates'!I32,IF(ISERROR(E32/I32/12),0,E32/I32/12)) -> 0 | N32: =IF('6. Decision Cost Revenue Adj'!D32="No Change",'5. Re-Based Rev From Rates'!J32,IF(ISERROR(F32/J32),0,F32/J32)) -> 0 | O32: =IF('6. Decision Cost Revenue Adj'!D32="No Change",'5. Re-Based Rev From Rates'!K32,IF(ISERROR(G32/K32),0,G32/K32)) -> 0
C33: ='3. Re-Based Bill Det & Rates'!D33 -> 0 | M33: =IF('6. Decision Cost Revenue Adj'!D33="No Change",'5. Re-Based Rev From Rates'!I33,IF(ISERROR(E33/I33/12),0,E33/I33/12)) -> 0 | N33: =IF('6. Decision Cost Revenue Adj'!D33="No Change",'5. Re-Based Rev From Rates'!J33,IF(ISERROR(F33/J33),0,F33/J33)) -> 0 | O33: =IF('6. Decision Cost Revenue Adj'!D33="No Change",'5. Re-Based Rev From Rates'!K33,IF(ISERROR(G33/K33),0,G33/K33)) -> 0
C34: ='3. Re-Based Bill Det & Rates'!D34 -> 0 | M34: =IF('6. Decision Cost Revenue Adj'!D34="No Change",'5. Re-Based Rev From Rates'!I34,IF(ISERROR(E34/I34/12),0,E34/I34/12)) -> 0 | N34: =IF('6. Decision Cost Revenue Adj'!D34="No Change",'5. Re-Based Rev From Rates'!J34,IF(ISERROR(F34/J34),0,F34/J34)) -> 0 | O34: =IF('6. Decision Cost Revenue Adj'!D34="No Change",'5. Re-Based Rev From Rates'!K34,IF(ISERROR(G34/K34),0,G34/K34)) -> 0
C35: ='3. Re-Based Bill Det & Rates'!D35 -> 0 | M35: =IF('6. Decision Cost Revenue Adj'!D35="No Change",'5. Re-Based Rev From Rates'!I35,IF(ISERROR(E35/I35/12),0,E35/I35/12)) -> 0 | N35: =IF('6. Decision Cost Revenue Adj'!D35="No Change",'5. Re-Based Rev From Rates'!J35,IF(ISERROR(F35/J35),0,F35/J35)) -> 0 | O35: =IF('6. Decision Cost Revenue Adj'!D35="No Change",'5. Re-Based Rev From Rates'!K35,IF(ISERROR(G35/K35),0,G35/K35)) -> 0
C36: ='3. Re-Based Bill Det & Rates'!D36 -> 0 | M36: =IF('6. Decision Cost Revenue Adj'!D36="No Change",'5. Re-Based Rev From Rates'!I36,IF(ISERROR(E36/I36/12),0,E36/I36/12)) -> 0 | N36: =IF('6. Decision Cost Revenue Adj'!D36="No Change",'5. Re-Based Rev From Rates'!J36,IF(ISERROR(F36/J36),0,F36/J36)) -> 0 | O36: =IF('6. Decision Cost Revenue Adj'!D36="No Change",'5. Re-Based Rev From Rates'!K36,IF(ISERROR(G36/K36),0,G36/K36)) -> 0
C37: ='3. Re-Based Bill Det & Rates'!D37 -> 0 | M37: =IF('6. Decision Cost Revenue Adj'!D37="No Change",'5. Re-Based Rev From Rates'!I37,IF(ISERROR(E37/I37/12),0,E37/I37/12)) -> 0 | N37: =IF('6. Decision Cost Revenue Adj'!D37="No Change",'5. Re-Based Rev From Rates'!J37,IF(ISERROR(F37/J37),0,F37/J37)) -> 0 | O37: =IF('6. Decision Cost Revenue Adj'!D37="No Change",'5. Re-Based Rev From Rates'!K37,IF(ISERROR(G37/K37),0,G37/K37)) -> 0
C38: ='3. Re-Based Bill Det & Rates'!D38 -> 0 | M38: =IF('6. Decision Cost Revenue Adj'!D38="No Change",'5. Re-Based Rev From Rates'!I38,IF(ISERROR(E38/I38/12),0,E38/I38/12)) -> 0 | N38: =IF('6. Decision Cost Revenue Adj'!D38="No Change",'5. Re-Based Rev From Rates'!J38,IF(ISERROR(F38/J38),0,F38/J38)) -> 0 | O38: =IF('6. Decision Cost Revenue Adj'!D38="No Change",'5. Re-Based Rev From Rates'!K38,IF(ISERROR(G38/K38),0,G38/K38)) -> 0
C39: ='3. Re-Based Bill Det & Rates'!D39 -> 0 | M39: =IF('6. Decision Cost Revenue Adj'!D39="No Change",'5. Re-Based Rev From Rates'!I39,IF(ISERROR(E39/I39/12),0,E39/I39/12)) -> 0 | N39: =IF('6. Decision Cost Revenue Adj'!D39="No Change",'5. Re-Based Rev From Rates'!J39,IF(ISERROR(F39/J39),0,F39/J39)) -> 0 | O39: =IF('6. Decision Cost Revenue Adj'!D39="No Change",'5. Re-Based Rev From Rates'!K39,IF(ISERROR(G39/K39),0,G39/K39)) -> 0
C40: ='3. Re-Based Bill Det & Rates'!D40 -> 0 | M40: =IF('6. Decision Cost Revenue Adj'!D40="No Change",'5. Re-Based Rev From Rates'!I40,IF(ISERROR(E40/I40/12),0,E40/I40/12)) -> 0 | N40: =IF('6. Decision Cost Revenue Adj'!D40="No Change",'5. Re-Based Rev From Rates'!J40,IF(ISERROR(F40/J40),0,F40/J40)) -> 0 | O40: =IF('6. Decision Cost Revenue Adj'!D40="No Change",'5. Re-Based Rev From Rates'!K40,IF(ISERROR(G40/K40),0,G40/K40)) -> 0
C41: ='3. Re-Based Bill Det & Rates'!D41 -> 0 | M41: =IF('6. Decision Cost Revenue Adj'!D41="No Change",'5. Re-Based Rev From Rates'!I41,IF(ISERROR(E41/I41/12),0,E41/I41/12)) -> 0 | N41: =IF('6. Decision Cost Revenue Adj'!D41="No Change",'5. Re-Based Rev From Rates'!J41,IF(ISERROR(F41/J41),0,F41/J41)) -> 0 | O41: =IF('6. Decision Cost Revenue Adj'!D41="No Change",'5. Re-Based Rev From Rates'!K41,IF(ISERROR(G41/K41),0,G41/K41)) -> 0
C42: ='3. Re-Based Bill Det & Rates'!D42 -> 0 | M42: =IF('6. Decision Cost Revenue Adj'!D42="No Change",'5. Re-Based Rev From Rates'!I42,IF(ISERROR(E42/I42/12),0,E42/I42/12)) -> 0 | N42: =IF('6. Decision Cost Revenue Adj'!D42="No Change",'5. Re-Based Rev From Rates'!J42,IF(ISERROR(F42/J42),0,F42/J42)) -> 0 | O42: =IF('6. Decision Cost Revenue Adj'!D42="No Change",'5. Re-Based Rev From Rates'!K42,IF(ISERROR(G42/K42),0,G42/K42)) -> 0
C43: ='3. Re-Based Bill Det & Rates'!D43 -> 0 | M43: =IF('6. Decision Cost Revenue Adj'!D43="No Change",'5. Re-Based Rev From Rates'!I43,IF(ISERROR(E43/I43/12),0,E43/I43/12)) -> 0 | N43: =IF('6. Decision Cost Revenue Adj'!D43="No Change",'5. Re-Based Rev From Rates'!J43,IF(ISERROR(F43/J43),0,F43/J43)) -> 0 | O43: =IF('6. Decision Cost Revenue Adj'!D43="No Change",'5. Re-Based Rev From Rates'!K43,IF(ISERROR(G43/K43),0,G43/K43)) -> 0
C44: ='3. Re-Based Bill Det & Rates'!D44 -> 0 | M44: =IF('6. Decision Cost Revenue Adj'!D44="No Change",'5. Re-Based Rev From Rates'!I44,IF(ISERROR(E44/I44/12),0,E44/I44/12)) -> 0 | N44: =IF('6. Decision Cost Revenue Adj'!D44="No Change",'5. Re-Based Rev From Rates'!J44,IF(ISERROR(F44/J44),0,F44/J44)) -> 0 | O44: =IF('6. Decision Cost Revenue Adj'!D44="No Change",'5. Re-Based Rev From Rates'!K44,IF(ISERROR(G44/K44),0,G44/K44)) -> 0
C45: ='3. Re-Based Bill Det & Rates'!D45 -> 0 | M45: =IF('6. Decision Cost Revenue Adj'!D45="No Change",'5. Re-Based Rev From Rates'!I45,IF(ISERROR(E45/I45/12),0,E45/I45/12)) -> 0 | N45: =IF('6. Decision Cost Revenue Adj'!D45="No Change",'5. Re-Based Rev From Rates'!J45,IF(ISERROR(F45/J45),0,F45/J45)) -> 0 | O45: =IF('6. Decision Cost Revenue Adj'!D45="No Change",'5. Re-Based Rev From Rates'!K45,IF(ISERROR(G45/K45),0,G45/K45)) -> 0
C46: ='3. Re-Based Bill Det & Rates'!D46 -> 0 | M46: =IF('6. Decision Cost Revenue Adj'!D46="No Change",'5. Re-Based Rev From Rates'!I46,IF(ISERROR(E46/I46/12),0,E46/I46/12)) -> 0 | N46: =IF('6. Decision Cost Revenue Adj'!D46="No Change",'5. Re-Based Rev From Rates'!J46,IF(ISERROR(F46/J46),0,F46/J46)) -> 0 | O46: =IF('6. Decision Cost Revenue Adj'!D46="No Change",'5. Re-Based Rev From Rates'!K46,IF(ISERROR(G46/K46),0,G46/K46)) -> 0

Sheet 14. Adjust To Proposed Rates
A11: Proposed adjustments to Base Service Charge and Distribution Volumetric Rate. Enter the adjustments found in column M and N below into Tab 16 of the IRM Rate Generator Model.
C20: Rate Class | E20: Proposed Base Service Charge | F20: Proposed Base Distribution Volumetric Rate kWh | G20: Proposed Base Distribution Volumetric Rate kW | I20: Current Base Service Charge | J20: Current Base Distribution Volumetric Rate kWh | K20: Current Base Distribution Volumetric Rate kW | M20: Adjustment Required Base Service Charge | N20: Adjustment Required Base Distribution Volumetric Rate kWh | O20: Adjustment Required Base Distribution Volumetric Rate kW
E21: A | F21: B | G21: C | I21: D | J21: E | K21: F | M21: G = A - D | N21: H = B - E | O21: I = C - F
C22: ='3. Re-Based Bill Det & Rates'!D22 -> RESIDENTIAL SERVICE CLASSIFICATION | E22: ='13. Proposed F V Rates'!M22 -> 35.41 | F22: ='13. Proposed F V Rates'!N22 -> 0 | G22: ='13. Proposed F V Rates'!O22 -> 0 | I22: ='5. Re-Based Rev From Rates'!I22 -> 35.41 | J22: ='5. Re-Based Rev From Rates'!J22 -> 0 | K22: ='5. Re-Based Rev From Rates'!K22 -> 0 | M22: =IF(ISERROR(E22-I22),0,E22-I22) -> 0 | N22: =IF(ISERROR(F22-J22),0,F22-J22) -> 0 | O22: =IF(ISERROR(G22-K22),0,G22-K22) -> 0
C23: ='3. Re-Based Bill Det & Rates'!D23 -> GENERAL SERVICE LESS THAN 50 KW SERVICE CLASSIFICATION | E23: ='13. Proposed F V Rates'!M23 -> 40.24854768 | F23: ='13. Proposed F V Rates'!N23 -> 0.02265844166 | G23: ='13. Proposed F V Rates'!O23 -> 0 | I23: ='5. Re-Based Rev From Rates'!I23 -> 40.5 | J23: ='5. Re-Based Rev From Rates'!J23 -> 0.0228 | K23: ='5. Re-Based Rev From Rates'!K23 -> 0 | M23: =IF(ISERROR(E23-I23),0,E23-I23) -> -0.2514523164 | N23: =IF(ISERROR(F23-J23),0,F23-J23) -> -0.0001415583411 | O23: =IF(ISERROR(G23-K23),0,G23-K23) -> 0
C24: ='3. Re-Based Bill Det & Rates'!D24 -> GENERAL SERVICE 50 TO 999 KW SERVICE CLASSIFICATION | E24: ='13. Proposed F V Rates'!M24 -> 237.07 | F24: ='13. Proposed F V Rates'!N24 -> 0 | G24: ='13. Proposed F V Rates'!O24 -> 5.3205 | I24: ='5. Re-Based Rev From Rates'!I24 -> 237.07 | J24: ='5. Re-Based Rev From Rates'!J24 -> 0 | K24: ='5. Re-Based Rev From Rates'!K24 -> 5.3205 | M24: 0 | N24: 0 | O24: 0
C25: ='3. Re-Based Bill Det & Rates'!D25 -> GENERAL SERVICE 1,000 KW OR GREATER SERVICE CLASSIFICATION | E25: ='13. Proposed F V Rates'!M25 -> 3391.93 | F25: ='13. Proposed F V Rates'!N25 -> 0 | G25: ='13. Proposed F V Rates'!O25 -> 4.1488 | I25: ='5. Re-Based Rev From Rates'!I25 -> 3391.93 | J25: ='5. Re-Based Rev From Rates'!J25 -> 0 | K25: ='5. Re-Based Rev From Rates'!K25 -> 4.1488 | M25: 0 | N25: 0 | O25: 0
C26: ='3. Re-Based Bill Det & Rates'!D26 -> UNMETERED SCATTERED LOAD SERVICE CLASSIFICATION | E26: ='13. Proposed F V Rates'!M26 -> 12.26 | F26: ='13. Proposed F V Rates'!N26 -> 0.0259 | G26: ='13. Proposed F V Rates'!O26 -> 0 | I26: ='5. Re-Based Rev From Rates'!I26 -> 12.26 | J26: ='5. Re-Based Rev From Rates'!J26 -> 0.0259 | K26: ='5. Re-Based Rev From Rates'!K26 -> 0 | M26: 0 | N26: 0 | O26: 0
C27: ='3. Re-Based Bill Det & Rates'!D27 -> SENTINEL LIGHTING SERVICE CLASSIFICATION | E27: ='13. Proposed F V Rates'!M27 -> 11.38 | F27: ='13. Proposed F V Rates'!N27 -> 0 | G27: ='13. Proposed F V Rates'!O27 -> 9.1216 | I27: ='5. Re-Based Rev From Rates'!I27 -> 11.38 | J27: ='5. Re-Based Rev From Rates'!J27 -> 0 | K27: ='5. Re-Based Rev From Rates'!K27 -> 9.1216 | M27: 0 | N27: 0 | O27: 0
C28: ='3. Re-Based Bill Det & Rates'!D28 -> STREET LIGHTING SERVICE CLASSIFICATION | E28: ='13. Proposed F V Rates'!M28 -> 2.205405405 | F28: ='13. Proposed F V Rates'!N28 -> 0 | G28: ='13. Proposed F V Rates'!O28 -> 11.46897297 | I28: ='5. Re-Based Rev From Rates'!I28 -> 2.04 | J28: ='5. Re-Based Rev From Rates'!J28 -> 0 | K28: ='5. Re-Based Rev From Rates'!K28 -> 10.6088 | M28: 0.1654054054 | N28: 0 | O28: 0.860172973
C29: ='3. Re-Based Bill Det & Rates'!D29 -> 0 | M29: 0 | N29: 0 | O29: 0
C30: ='3. Re-Based Bill Det & Rates'!D30 -> 0 | M30: 0 | N30: 0 | O30: 0
C31: ='3. Re-Based Bill Det & Rates'!D31 -> 0 | M31: 0 | N31: 0 | O31: 0
C32: ='3. Re-Based Bill Det & Rates'!D32 -> 0 | M32: 0 | N32: 0 | O32: 0
C33: ='3. Re-Based Bill Det & Rates'!D33 -> 0 | M33: 0 | N33: 0 | O33: 0
C34: ='3. Re-Based Bill Det & Rates'!D34 -> 0 | M34: 0 | N34: 0 | O34: 0
C35: ='3. Re-Based Bill Det & Rates'!D35 -> 0 | M35: 0 | N35: 0 | O35: 0
C36: ='3. Re-Based Bill Det & Rates'!D36 -> 0 | M36: 0 | N36: 0 | O36: 0
C37: ='3. Re-Based Bill Det & Rates'!D37 -> 0 | M37: 0 | N37: 0 | O37: 0
C38: ='3. Re-Based Bill Det & Rates'!D38 -> 0 | M38: 0 | N38: 0 | O38: 0
C39: ='3. Re-Based Bill Det & Rates'!D39 -> 0 | M39: 0 | N39: 0 | O39: 0
C40: ='3. Re-Based Bill Det & Rates'!D40 -> 0 | M40: 0 | N40: 0 | O40: 0
C41: ='3. Re-Based Bill Det & Rates'!D41 -> 0 | M41: 0 | N41: 0 | O41: 0
C42: ='3. Re-Based Bill Det & Rates'!D42 -> 0 | M42: 0 | N42: 0 | O42: 0
C43: ='3. Re-Based Bill Det & Rates'!D43 -> 0 | M43: 0 | N43: 0 | O43: 0
C44: ='3. Re-Based Bill Det & Rates'!D44 -> 0 | M44: 0 | N44: 0 | O44: 0
C45: ='3. Re-Based Bill Det & Rates'!D45 -> 0 | M45: 0 | N45: 0 | O45: 0
C46: ='3. Re-Based Bill Det & Rates'!D46 -> 0 | M46: 0 | N46: 0 | O46: 0

Sheet RateClasses (hidden)
A2: Alectra Utilities Corporation-Brampton Rate Zone | B2: RESIDENTIAL SERVICE CLASSIFICATION | C2: GENERAL SERVICE LESS THAN 50 KW SERVICE CLASSIFICATION | D2: GENERAL SERVICE 50 TO 699 KW SERVICE CLASSIFICATION | E2: GENERAL SERVICE 700 TO 4,999 KW SERVICE CLASSIFICATION | F2: LARGE USE SERVICE CLASSIFICATION | G2: UNMETERED SCATTERED LOAD SERVICE CLASSIFICATION | H2: STREET LIGHTING SERVICE CLASSIFICATION | I2: EMBEDDED DISTRIBUTOR SERVICE CLASSIFICATION | J2: DISTRIBUTED GENERATION [DGEN] SERVICE CLASSIFICATION
A3: Alectra Utilities Corporation-Enersource Rate Zone | B3: RESIDENTIAL SERVICE CLASSIFICATION | C3: GENERAL SERVICE LESS THAN 50 KW SERVICE CLASSIFICATION | D3: GENERAL SERVICE 50 TO 499 KW SERVICE CLASSIFICATION | E3: GENERAL SERVICE 500 TO 4,999 KW SERVICE CLASSIFICATION | F3: LARGE USE SERVICE CLASSIFICATION - Interval Metered | G3: UNMETERED SCATTERED LOAD SERVICE CLASSIFICATION | H3: STREET LIGHTING SERVICE CLASSIFICATION
A4: Alectra Utilities Corporation-Horizon Utilities Rate Zone | B4: RESIDENTIAL SERVICE CLASSIFICATION | C4: GENERAL SERVICE LESS THAN 50 KW SERVICE CLASSIFICATION | D4: GENERAL SERVICE 50 to 4,999 kW SERVICE CLASSIFICATION | E4: LARGE USE SERVICE CLASSIFICATION | F4: LARGE USE WITH DEDICATED ASSETS SERVICE CLASSIFICATION | G4: UNMETERED SCATTERED LOAD SERVICE CLASSIFICATION | H4: SENTINEL LIGHTING SERVICE CLASSIFICATION | I4: STREET LIGHTING SERVICE CLASSIFICATION
A5: Alectra Utilities Corporation-PowerStream Rate Zone | B5: RESIDENTIAL SERVICE CLASSIFICATION | C5: GENERAL SERVICE LESS THAN 50 KW SERVICE CLASSIFICATION | D5: GENERAL SERVICE 50 to 4,999 kW SERVICE CLASSIFICATION | E5: LARGE USE SERVICE CLASSIFICATION | F5: UNMETERED SCATTERED LOAD SERVICE CLASSIFICATION | G5: SENTINEL LIGHTING SERVICE CLASSIFICATION | H5: STREET LIGHTING SERVICE CLASSIFICATION
A6: Algoma Power Inc. | B6: RESIDENTIAL R1 SERVICE CLASSIFICATION | C6: RESIDENTIAL R2 SERVICE CLASSIFICATION | D6: SEASONAL CUSTOMERS SERVICE CLASSIFICATION | E6: STREET LIGHTING SERVICE CLASSIFICATION
A7: Centre Wellington Hydro Ltd. | B7: RESIDENTIAL SERVICE CLASSIFICATION | C7: GENERAL SERVICE LESS THAN 50 KW SERVICE CLASSIFICATION | D7: GENERAL SERVICE 50 TO 2,999 KW SERVICE CLASSIFICATION | E7: GENERAL SERVICE 3,000 TO 4,999 KW SERVICE CLASSIFICATION | F7: UNMETERED SCATTERED LOAD SERVICE CLASSIFICATION | G7: SENTINEL LIGHTING SERVICE CLASSIFICATION | H7: STREET LIGHTING SERVICE CLASSIFICATION
A8: Canadian Niagara Power Inc. | B8: RESIDENTIAL SERVICE CLASSIFICATION | C8: GENERAL SERVICE LESS THAN 50 KW SERVICE CLASSIFICATION | D8: GENERAL SERVICE 50 to 4,999 kW SERVICE CLASSIFICATION | E8: EMBEDDED DISTRIBUTOR SERVICE CLASSIFICATION | F8: UNMETERED SCATTERED LOAD SERVICE CLASSIFICATION | G8: SENTINEL LIGHTING SERVICE CLASSIFICATION | H8: STREET LIGHTING SERVICE CLASSIFICATION
A9: Entegrus Powerlines Inc. | B9: RESIDENTIAL SERVICE CLASSIFICATION | C9: GENERAL SERVICE LESS THAN 50 KW SERVICE CLASSIFICATION | D9: GENERAL SERVICE 50 to 4,999 kW SERVICE CLASSIFICATION | E9: LARGE USE SERVICE CLASSIFICATION | F9: UNMETERED SCATTERED LOAD SERVICE CLASSIFICATION | G9: SENTINEL LIGHTING SERVICE CLASSIFICATION | H9: STREET LIGHTING SERVICE CLASSIFICATION | I9: EMBEDDED DISTRIBUTOR SERVICE CLASSIFICATION
A10: Entegrus Powerlines Inc.-For Former St. Thomas Energy Rate Zone | B10: RESIDENTIAL SERVICE CLASSIFICATION | C10: GENERAL SERVICE LESS THAN 50 KW SERVICE CLASSIFICATION | D10: GENERAL SERVICE 50 to 4,999 kW SERVICE CLASSIFICATION | E10: SENTINEL LIGHTING SERVICE CLASSIFICATION | F10: STREET LIGHTING SERVICE CLASSIFICATION
A11: Festival Hydro Inc. | B11: RESIDENTIAL SERVICE CLASSIFICATION | C11: GENERAL SERVICE LESS THAN 50 KW SERVICE CLASSIFICATION | D11: GENERAL SERVICE 50 to 4,999 kW SERVICE CLASSIFICATION | E11: LARGE USE SERVICE CLASSIFICATION - Interval Metered | F11: UNMETERED SCATTERED LOAD SERVICE CLASSIFICATION | G11: SENTINEL LIGHTING SERVICE CLASSIFICATION | H11: STREET LIGHTING SERVICE CLASSIFICATION
A12: Grimsby Power Incorporated | B12: RESIDENTIAL SERVICE CLASSIFICATION | C12: GENERAL SERVICE LESS THAN 50 KW SERVICE CLASSIFICATION | D12: GENERAL SERVICE 50 to 4,999 kW SERVICE CLASSIFICATION | E12: UNMETERED SCATTERED LOAD SERVICE CLASSIFICATION | F12: STREET LIGHTING SERVICE CLASSIFICATION | G12: EMBEDDED DISTRIBUTOR SERVICE CLASSIFICATION
A13: Guelph Hydro Electric Systems Inc. | B13: RESIDENTIAL SERVICE CLASSIFICATION | C13: GENERAL SERVICE LESS THAN 50 KW SERVICE CLASSIFICATION | D13: GENERAL SERVICE 50 TO 999 KW SERVICE CLASSIFICATION | E13: GENERAL SERVICE 1,000 TO 4,999 KW SERVICE CLASSIFICATION - Interval Metered | F13: LARGE USE SERVICE CLASSIFICATION - Interval Metered | G13: UNMETERED SCATTERED LOAD SERVICE CLASSIFICATION | H13: SENTINEL LIGHTING SERVICE CLASSIFICATION | I13: STREET LIGHTING SERVICE CLASSIFICATION
A14: Hydro Hawkesbury Inc. | B14: RESIDENTIAL SERVICE CLASSIFICATION | C14: GENERAL SERVICE LESS THAN 50 KW SERVICE CLASSIFICATION | D14: GENERAL SERVICE 50 to 4,999 kW SERVICE CLASSIFICATION | E14: UNMETERED SCATTERED LOAD SERVICE CLASSIFICATION | F14: SENTINEL LIGHTING SERVICE CLASSIFICATION | G14: STREET LIGHTING SERVICE CLASSIFICATION
A15: Hydro Ottawa Limited | B15: RESIDENTIAL SERVICE CLASSIFICATION | C15: GENERAL SERVICE LESS THAN 50 KW SERVICE CLASSIFICATION | D15: GENERAL SERVICE 50 TO 1,499 KW SERVICE CLASSIFICATION | E15: GENERAL SERVICE 1,500 TO 4,999 KW SERVICE CLASSIFICATION | F15: LARGE USE SERVICE CLASSIFICATION | G15: UNMETERED SCATTERED LOAD SERVICE CLASSIFICATION | H15: SENTINEL LIGHTING SERVICE CLASSIFICATION | I15: STREET LIGHTING SERVICE CLASSIFICATION
A16: InnPower Corporation | B16: RESIDENTIAL SERVICE CLASSIFICATION | C16: GENERAL SERVICE LESS THAN 50 KW SERVICE CLASSIFICATION | D16: GENERAL SERVICE 50 to 4,999 kW SERVICE CLASSIFICATION | E16: UNMETERED SCATTERED LOAD SERVICE CLASSIFICATION | F16: SENTINEL LIGHTING SERVICE CLASSIFICATION | G16: STREET LIGHTING SERVICE CLASSIFICATION
A17: Kingston Hydro Corporation | B17: RESIDENTIAL SERVICE CLASSIFICATION | C17: GENERAL SERVICE LESS THAN 50 KW SERVICE CLASSIFICATION | D17: GENERAL SERVICE 50 to 4,999 kW SERVICE CLASSIFICATION | E17: LARGE USE SERVICE CLASSIFICATION | F17: UNMETERED SCATTERED LOAD SERVICE CLASSIFICATION | G17: STREET LIGHTING SERVICE CLASSIFICATION
A18: Kitchener-Wilmot Hydro Inc. | B18: RESIDENTIAL SERVICE CLASSIFICATION | C18: GENERAL SERVICE LESS THAN 50 KW SERVICE CLASSIFICATION | D18: GENERAL SERVICE 50 to 4,999 kW SERVICE CLASSIFICATION | E18: LARGE USE SERVICE CLASSIFICATION - Interval Metered | F18: UNMETERED SCATTERED LOAD SERVICE CLASSIFICATION | G18: STREET LIGHTING SERVICE CLASSIFICATION | H18: EMBEDDED DISTRIBUTOR SERVICE CLASSIFICATION
A19: Renfrew Hydro Inc. | B19: RESIDENTIAL SERVICE CLASSIFICATION | C19: GENERAL SERVICE LESS THAN 50 KW SERVICE CLASSIFICATION | D19: GENERAL SERVICE 50 to 4,999 kW SERVICE CLASSIFICATION | E19: UNMETERED SCATTERED LOAD SERVICE CLASSIFICATION | F19: STREET LIGHTING SERVICE CLASSIFICATION
A20: Cooperative Hydro Embrun Inc. | B20: RESIDENTIAL SERVICE CLASSIFICATION | C20: GENERAL SERVICE LESS THAN 50 KW SERVICE CLASSIFICATION | D20: GENERAL SERVICE 50 to 4,999 kW SERVICE CLASSIFICATION | E20: UNMETERED SCATTERED LOAD SERVICE CLASSIFICATION | F20: STREET LIGHTING SERVICE CLASSIFICATION
A21: Lakefront Utilities Inc. | B21: RESIDENTIAL SERVICE CLASSIFICATION | C21: GENERAL SERVICE LESS THAN 50 KW SERVICE CLASSIFICATION | D21: GENERAL SERVICE 50 TO 2,999 KW SERVICE CLASSIFICATION | E21: GENERAL SERVICE 3,000 TO 4,999 KW SERVICE CLASSIFICATION | F21: UNMETERED SCATTERED LOAD SERVICE CLASSIFICATION | G21: SENTINEL LIGHTING SERVICE CLASSIFICATION | H21: STREET LIGHTING SERVICE CLASSIFICATION
A22: Toronto Hydro-Electric System Limited | B22: RESIDENTIAL SERVICE CLASSIFICATION | C22: COMPETITIVE SECTOR MULTI-UNIT RESIDENTIAL SERVICE CLASSIFICATION | D22: GENERAL SERVICE LESS THAN 50 KW SERVICE CLASSIFICATION | E22: GENERAL SERVICE 50 TO 999 KW SERVICE CLASSIFICATION | F22: GENERAL SERVICE 1,000 TO 4,999 KW SERVICE CLASSIFICATION | G22: LARGE USE SERVICE CLASSIFICATION | H22: UNMETERED SCATTERED LOAD SERVICE CLASSIFICATION | I22: STREET LIGHTING SERVICE CLASSIFICATION
A23: Waterloo North Hydro Inc. | B23: RESIDENTIAL SERVICE CLASSIFICATION | C23: GENERAL SERVICE LESS THAN 50 KW SERVICE CLASSIFICATION | D23: GENERAL SERVICE 50 to 4,999 kW SERVICE CLASSIFICATION | E23: LARGE USE SERVICE CLASSIFICATION - Interval Metered | F23: UNMETERED SCATTERED LOAD SERVICE CLASSIFICATION | G23: STREET LIGHTING SERVICE CLASSIFICATION
A24: Westario Power Inc. | B24: RESIDENTIAL SERVICE CLASSIFICATION | C24: GENERAL SERVICE LESS THAN 50 KW SERVICE CLASSIFICATION | D24: GENERAL SERVICE 50 to 4,999 kW SERVICE CLASSIFICATION | E24: UNMETERED SCATTERED LOAD SERVICE CLASSIFICATION | F24: SENTINEL LIGHTING SERVICE CLASSIFICATION | G24: STREET LIGHTING SERVICE CLASSIFICATION
A25: Whitby Hydro Electric Corporation | B25: RESIDENTIAL SERVICE CLASSIFICATION | C25: GENERAL SERVICE LESS THAN 50 KW SERVICE CLASSIFICATION | D25: GENERAL SERVICE 50 to 4,999 kW SERVICE CLASSIFICATION | E25: UNMETERED SCATTERED LOAD SERVICE CLASSIFICATION | F25: SENTINEL LIGHTING SERVICE CLASSIFICATION | G25: STREET LIGHTING SERVICE CLASSIFICATION
A26: Erie Thames Powerlines Corporation | B26: RESIDENTIAL SERVICE CLASSIFICATION | C26: GENERAL SERVICE LESS THAN 50 KW SERVICE CLASSIFICATION | D26: GENERAL SERVICE 50 TO 999 KW SERVICE CLASSIFICATION | E26: GENERAL SERVICE 1,000 TO 4,999 KW SERVICE CLASSIFICATION | F26: LARGE USE SERVICE CLASSIFICATION | G26: UNMETERED SCATTERED LOAD SERVICE CLASSIFICATION | H26: SENTINEL LIGHTING SERVICE CLASSIFICATION | I26: STREET LIGHTING SERVICE CLASSIFICATION | J26: EMBEDDED DISTRIBUTOR SERVICE CLASSIFICATION
A27: Entegrus Powerlines Inc.-For Entegrus-Main Rate Zone | B27: RESIDENTIAL SERVICE CLASSIFICATION | C27: GENERAL SERVICE LESS THAN 50 KW SERVICE CLASSIFICATION | D27: GENERAL SERVICE 50 to 4,999 kW SERVICE CLASSIFICATION | E27: LARGE USE SERVICE CLASSIFICATION | F27: UNMETERED SCATTERED LOAD SERVICE CLASSIFICATION | G27: SENTINEL LIGHTING SERVICE CLASSIFICATION | H27: STREET LIGHTING SERVICE CLASSIFICATION | I27: EMBEDDED DISTRIBUTOR SERVICE CLASSIFICATION
A28: Lakeland Power Distribution Ltd.-Parry Sound Service Area | B28: RESIDENTIAL SERVICE CLASSIFICATION | C28: GENERAL SERVICE LESS THAN 50 KW SERVICE CLASSIFICATION | D28: GENERAL SERVICE 50 to 4,999 kW SERVICE CLASSIFICATION | E28: UNMETERED SCATTERED LOAD SERVICE CLASSIFICATION | F28: SENTINEL LIGHTING SERVICE CLASSIFICATION | G28: STREET LIGHTING SERVICE CLASSIFICATION
A29: Lakeland Power Distribution Ltd. | B29: RESIDENTIAL SERVICE CLASSIFICATION | C29: GENERAL SERVICE LESS THAN 50 KW SERVICE CLASSIFICATION | D29: GENERAL SERVICE 50 to 4,999 kW SERVICE CLASSIFICATION | E29: UNMETERED SCATTERED LOAD SERVICE CLASSIFICATION | F29: SENTINEL LIGHTING SERVICE CLASSIFICATION | G29: STREET LIGHTING SERVICE CLASSIFICATION
A30: Newmarket-Tay Power Distribution Ltd.-For Former Midland Power Utility Rate Zone | B30: RESIDENTIAL SERVICE CLASSIFICATION | C30: GENERAL SERVICE LESS THAN 50 KW SERVICE CLASSIFICATION | D30: GENERAL SERVICE 50 to 4,999 kW SERVICE CLASSIFICATION | E30: UNMETERED SCATTERED LOAD SERVICE CLASSIFICATION | F30: STREET LIGHTING SERVICE CLASSIFICATION
A31: Newmarket-Tay Power Distribution Ltd.-For Newmarket-Tay Power Main Rate Zone | B31: RESIDENTIAL SERVICE CLASSIFICATION | C31: GENERAL SERVICE LESS THAN 50 KW SERVICE CLASSIFICATION | D31: GENERAL SERVICE 50 to 4,999 kW SERVICE CLASSIFICATION | E31: UNMETERED SCATTERED LOAD SERVICE CLASSIFICATION | F31: SENTINEL LIGHTING SERVICE CLASSIFICATION | G31: STREET LIGHTING SERVICE CLASSIFICATION
A32: Bluewater Power Distribution Corporation | B32: RESIDENTIAL SERVICE CLASSIFICATION | C32: GENERAL SERVICE LESS THAN 50 KW SERVICE CLASSIFICATION | D32: GENERAL SERVICE 50 TO 999 KW SERVICE CLASSIFICATION | E32: GENERAL SERVICE 1,000 TO 4,999 KW SERVICE CLASSIFICATION | F32: LARGE USE SERVICE CLASSIFICATION - Interval Metered | G32: UNMETERED SCATTERED LOAD SERVICE CLASSIFICATION | H32: SENTINEL LIGHTING SERVICE CLASSIFICATION | I32: STREET LIGHTING SERVICE CLASSIFICATION
A33: Atikokan Hydro Inc. | B33: RESIDENTIAL SERVICE CLASSIFICATION | C33: GENERAL SERVICE LESS THAN 50 KW SERVICE CLASSIFICATION | D33: GENERAL SERVICE 50 to 4,999 kW SERVICE CLASSIFICATION | E33: STREET LIGHTING SERVICE CLASSIFICATION
A34: Burlington Hydro Inc. | B34: RESIDENTIAL SERVICE CLASSIFICATION | C34: GENERAL SERVICE LESS THAN 50 KW SERVICE CLASSIFICATION | D34: GENERAL SERVICE 50 to 4,999 kW SERVICE CLASSIFICATION - Interval Metered | E34: UNMETERED SCATTERED LOAD SERVICE CLASSIFICATION | F34: STREET LIGHTING SERVICE CLASSIFICATION
A35: E.L.K. Energy Inc. | B35: RESIDENTIAL SERVICE CLASSIFICATION | C35: GENERAL SERVICE LESS THAN 50 KW SERVICE CLASSIFICATION | D35: GENERAL SERVICE 50 to 4,999 kW SERVICE CLASSIFICATION | E35: UNMETERED SCATTERED LOAD SERVICE CLASSIFICATION | F35: SENTINEL LIGHTING SERVICE CLASSIFICATION | G35: STREET LIGHTING SERVICE CLASSIFICATION | H35: EMBEDDED DISTRIBUTOR SERVICE CLASSIFICATION
A36: EPCOR Electricity Distribution Ontario Inc. | B36: RESIDENTIAL SERVICE CLASSIFICATION | C36: GENERAL SERVICE LESS THAN 50 KW SERVICE CLASSIFICATION | D36: GENERAL SERVICE 50 to 4,999 kW SERVICE CLASSIFICATION | E36: UNMETERED SCATTERED LOAD SERVICE CLASSIFICATION | F36: STREET LIGHTING SERVICE CLASSIFICATION
A37: Essex Powerlines Corporation | B37: RESIDENTIAL SERVICE CLASSIFICATION | C37: GENERAL SERVICE LESS THAN 50 KW SERVICE CLASSIFICATION | D37: GENERAL SERVICE 50 to 4,999 kW SERVICE CLASSIFICATION | E37: UNMETERED SCATTERED LOAD SERVICE CLASSIFICATION | F37: SENTINEL LIGHTING SERVICE CLASSIFICATION | G37: STREET LIGHTING SERVICE CLASSIFICATION
A38: Fort Frances Power Corporation | B38: RESIDENTIAL SERVICE CLASSIFICATION | C38: GENERAL SERVICE LESS THAN 50 KW SERVICE CLASSIFICATION | D38: GENERAL SERVICE 50 to 4,999 kW SERVICE CLASSIFICATION | E38: UNMETERED SCATTERED LOAD SERVICE CLASSIFICATION | F38: STREET LIGHTING SERVICE CLASSIFICATION
A39: Greater Sudbury Hydro Inc. | B39: RESIDENTIAL SERVICE CLASSIFICATION | C39: GENERAL SERVICE LESS THAN 50 KW SERVICE CLASSIFICATION | D39: GENERAL SERVICE 50 to 4,999 kW SERVICE CLASSIFICATION | E39: UNMETERED SCATTERED LOAD SERVICE CLASSIFICATION | F39: SENTINEL LIGHTING SERVICE CLASSIFICATION | G39: STREET LIGHTING SERVICE CLASSIFICATION
A40: Halton Hills Hydro Inc. | B40: RESIDENTIAL SERVICE CLASSIFICATION | C40: GENERAL SERVICE LESS THAN 50 KW SERVICE CLASSIFICATION | D40: GENERAL SERVICE 50 TO 999 KW SERVICE CLASSIFICATION | E40: GENERAL SERVICE 1,000 TO 4,999 KW SERVICE CLASSIFICATION | F40: UNMETERED SCATTERED LOAD SERVICE CLASSIFICATION | G40: SENTINEL LIGHTING SERVICE CLASSIFICATION | H40: STREET LIGHTING SERVICE CLASSIFICATION
A41: Hydro One Networks Inc. | B41: YEAR-ROUND URBAN DENSITY - UR SERVICE CLASSIFICATION | C41: YEAR-ROUND MEDIUM DENSITY - R1 SERVICE CLASSIFICATION | D41: YEAR-ROUND LOW DENSITY - R2 SERVICE CLASSIFICATION | E41: SEASONAL SERVICE CLASSIFICATION | F41: URBAN GENERAL SERVICE ENERGY BILLED - UGe SERVICE CLASSIFICATION | G41: GENERAL SERVICE ENERGY BILLED - GSe SERVICE CLASSIFICATION | H41: URBAN GENERAL SERVICE DEMAND BILLED - UGd SERVICE CLASSIFICATION | I41: GENERAL SERVICE DEMAND BILLED - GSd SERVICE CLASSIFICATION | J41: DISTRIBUTED GENERATION - DGen SERVICE CLASSIFICATION | K41: SUB TRANSMISSION - ST SERVICE CLASSIFICATION | L41: UNMETERED SCATTERED LOAD SERVICE CLASSIFICATION | M41: SENTINEL LIGHTING SERVICE CLASSIFICATION | N41: STREET LIGHTING SERVICE CLASSIFICATION
A42: Hydro One Networks Inc.-Former Haldimand County Hydro Inc. Service Area | B42: RESIDENTIAL SERVICE CLASSIFICATION | C42: GENERAL SERVICE LESS THAN 50 KW SERVICE CLASSIFICATION | D42: GENERAL SERVICE 50 to 4,999 kW SERVICE CLASSIFICATION | E42: UNMETERED SCATTERED LOAD SERVICE CLASSIFICATION | F42: SENTINEL LIGHTING SERVICE CLASSIFICATION | G42: STREET LIGHTING SERVICE CLASSIFICATION | H42: EMBEDDED DISTRIBUTOR SERVICE CLASSIFICATION FOR HYDRO ONE NETWORKS INC.
A43: Hydro One Networks Inc.-Former Norfolk Power Distribution Inc. Service Area | B43: RESIDENTIAL SERVICE CLASSIFICATION | C43: GENERAL SERVICE LESS THAN 50 KW SERVICE CLASSIFICATION | D43: GENERAL SERVICE 50 to 4,999 kW SERVICE CLASSIFICATION | E43: UNMETERED SCATTERED LOAD SERVICE CLASSIFICATION | F43: SENTINEL LIGHTING SERVICE CLASSIFICATION | G43: STREET LIGHTING SERVICE CLASSIFICATION
A44: Hydro One Networks Inc.-Former Woodstock Hydro Services Inc. Service Area | B44: RESIDENTIAL SERVICE CLASSIFICATION | C44: GENERAL SERVICE LESS THAN 50 KW SERVICE CLASSIFICATION | D44: GENERAL SERVICE 50 TO 999 KW SERVICE CLASSIFICATION | E44: GENERAL SERVICE GREATER THAN 1,000 KW SERVICE CLASSIFICATION | F44: UNMETERED SCATTERED LOAD SERVICE CLASSIFICATION | G44: STREET LIGHTING SERVICE CLASSIFICATION
A45: Synergy North Corporation-Kenora Rate Zone | B45: RESIDENTIAL SERVICE CLASSIFICATION | C45: GENERAL SERVICE LESS THAN 50 KW SERVICE CLASSIFICATION | D45: GENERAL SERVICE 50 to 4,999 kW SERVICE CLASSIFICATION | E45: UNMETERED SCATTERED LOAD SERVICE CLASSIFICATION | F45: STREET LIGHTING SERVICE CLASSIFICATION
A46: London Hydro Inc. | B46: RESIDENTIAL SERVICE CLASSIFICATION | C46: GENERAL SERVICE LESS THAN 50 KW SERVICE CLASSIFICATION | D46: GENERAL SERVICE 50 to 4,999 kW SERVICE CLASSIFICATION | E46: GENERAL SERVICE 1,000 TO 4,999 KW (CO-GENERATION) SERVICE CLASSIFICATION | F46: LARGE USE SERVICE CLASSIFICATION - Interval Metered | G46: STREET LIGHTING SERVICE CLASSIFICATION | H46: SENTINEL LIGHTING SERVICE CLASSIFICATION | I46: UNMETERED SCATTERED LOAD SERVICE CLASSIFICATION
A47: Milton Hydro Distribution Inc. | B47: RESIDENTIAL SERVICE CLASSIFICATION | C47: GENERAL SERVICE LESS THAN 50 KW SERVICE CLASSIFICATION | D47: GENERAL SERVICE 50 TO 999 KW SERVICE CLASSIFICATION | E47: GENERAL SERVICE 1,000 TO 4,999 KW SERVICE CLASSIFICATION | F47: LARGE USE SERVICE CLASSIFICATION - Interval Metered | G47: UNMETERED SCATTERED LOAD SERVICE CLASSIFICATION | H47: SENTINEL LIGHTING SERVICE CLASSIFICATION | I47: STREET LIGHTING SERVICE CLASSIFICATION
A48: North Bay Hydro Distribution Limited | B48: RESIDENTIAL SERVICE CLASSIFICATION | C48: GENERAL SERVICE LESS THAN 50 KW SERVICE CLASSIFICATION | D48: GENERAL SERVICE 50 TO 2,999 KW SERVICE CLASSIFICATION | E48: GENERAL SERVICE 3,000 TO 4,999 KW SERVICE CLASSIFICATION - Interval Metered | F48: UNMETERED SCATTERED LOAD SERVICE CLASSIFICATION | G48: SENTINEL LIGHTING SERVICE CLASSIFICATION | H48: STREET LIGHTING SERVICE CLASSIFICATION
A49: Northern Ontario Wires Inc. | B49: RESIDENTIAL SERVICE CLASSIFICATION | C49: GENERAL SERVICE LESS THAN 50 KW SERVICE CLASSIFICATION | D49: GENERAL SERVICE 50 to 4,999 kW SERVICE CLASSIFICATION | E49: UNMETERED SCATTERED LOAD SERVICE CLASSIFICATION | F49: STREET LIGHTING SERVICE CLASSIFICATION
A50: Niagara Peninsula Energy Inc. | B50: RESIDENTIAL SERVICE CLASSIFICATION | C50: GENERAL SERVICE LESS THAN 50 KW SERVICE CLASSIFICATION | D50: GENERAL SERVICE 50 to 4,999 kW SERVICE CLASSIFICATION | E50: UNMETERED SCATTERED LOAD SERVICE CLASSIFICATION | F50: SENTINEL LIGHTING SERVICE CLASSIFICATION | G50: STREET LIGHTING SERVICE CLASSIFICATION
A51: Orangeville Hydro Limited | B51: RESIDENTIAL SERVICE CLASSIFICATION | C51: GENERAL SERVICE LESS THAN 50 KW SERVICE CLASSIFICATION | D51: GENERAL SERVICE 50 to 4,999 kW SERVICE CLASSIFICATION | E51: SENTINEL LIGHTING SERVICE CLASSIFICATION | F51: STREET LIGHTING SERVICE CLASSIFICATION | G51: UNMETERED SCATTERED LOAD SERVICE CLASSIFICATION
A52: Orillia Power Distribution Corporation | B52: RESIDENTIAL SERVICE CLASSIFICATION | C52: GENERAL SERVICE LESS THAN 50 KW SERVICE CLASSIFICATION | D52: GENERAL SERVICE 50 to 4,999 kW SERVICE CLASSIFICATION | E52: UNMETERED SCATTERED LOAD SERVICE CLASSIFICATION | F52: SENTINEL LIGHTING SERVICE CLASSIFICATION | G52: STREET LIGHTING SERVICE CLASSIFICATION
A53: Ottawa River Power Corporation | B53: RESIDENTIAL SERVICE CLASSIFICATION | C53: GENERAL SERVICE LESS THAN 50 KW SERVICE CLASSIFICATION | D53: GENERAL SERVICE 50 to 4,999 kW SERVICE CLASSIFICATION | E53: SENTINEL LIGHTING SERVICE CLASSIFICATION | F53: STREET LIGHTING SERVICE CLASSIFICATION | G53: UNMETERED SCATTERED LOAD SERVICE CLASSIFICATION
A54: Peterborough Distribution Incorporated | B54: RESIDENTIAL SERVICE CLASSIFICATION | C54: GENERAL SERVICE LESS THAN 50 KW SERVICE CLASSIFICATION | D54: GENERAL SERVICE 50 to 4,999 kW SERVICE CLASSIFICATION | E54: LARGE USE SERVICE CLASSIFICATION | F54: UNMETERED SCATTERED LOAD SERVICE CLASSIFICATION | G54: SENTINEL LIGHTING SERVICE CLASSIFICATION | H54: STREET LIGHTING SERVICE CLASSIFICATION
A55: Rideau St. Lawrence Distribution Inc. | B55: RESIDENTIAL SERVICE CLASSIFICATION | C55: GENERAL SERVICE LESS THAN 50 KW SERVICE CLASSIFICATION | D55: GENERAL SERVICE 50 to 4,999 kW SERVICE CLASSIFICATION | E55: UNMETERED SCATTERED LOAD SERVICE CLASSIFICATION | F55: SENTINEL LIGHTING SERVICE CLASSIFICATION | G55: STREET LIGHTING SERVICE CLASSIFICATION
A56: Sioux Lookout Hydro Inc. | B56: RESIDENTIAL SERVICE CLASSIFICATION | C56: GENERAL SERVICE LESS THAN 50 KW SERVICE CLASSIFICATION | D56: GENERAL SERVICE 50 to 4,999 kW SERVICE CLASSIFICATION | E56: STREET LIGHTING SERVICE CLASSIFICATION
A57: Synergy North Corporation-Thunder Bay Rate Zone | B57: RESIDENTIAL SERVICE CLASSIFICATION | C57: GENERAL SERVICE LESS THAN 50 KW SERVICE CLASSIFICATION | D57: GENERAL SERVICE 50 TO 999 KW SERVICE CLASSIFICATION | E57: GENERAL SERVICE 1,000 KW OR GREATER SERVICE CLASSIFICATION | F57: UNMETERED SCATTERED LOAD SERVICE CLASSIFICATION | G57: SENTINEL LIGHTING SERVICE CLASSIFICATION | H57: STREET LIGHTING SERVICE CLASSIFICATION
A58: ENWIN Utilities Ltd. | B58: RESIDENTIAL SERVICE CLASSIFICATION | C58: GENERAL SERVICE LESS THAN 50 KW SERVICE CLASSIFICATION | D58: GENERAL SERVICE 50 to 4,999 kW SERVICE CLASSIFICATION | E58: GENERAL SERVICE 3,000 TO 4,999 KW - INTERMEDIATE USE SERVICE CLASSIFICATION | F58: LARGE USE - REGULAR SERVICE CLASSIFICATION | G58: LARGE USE - 3TS SERVICE CLASSIFICATION | H58: LARGE USE - FORD ANNEX SERVICE CLASSIFICATION | I58: UNMETERED SCATTERED LOAD SERVICE CLASSIFICATION | J58: SENTINEL LIGHTING SERVICE CLASSIFICATION | K58: STREET LIGHTING SERVICE CLASSIFICATION
A59: Hearst Power Distribution Co. Ltd. | B59: RESIDENTIAL SERVICE CLASSIFICATION | C59: GENERAL SERVICE LESS THAN 50 KW SERVICE CLASSIFICATION | D59: GENERAL SERVICE 50 TO 1,499 KW SERVICE CLASSIFICATION | E59: INTERMEDIATE USER SERVICE CLASSIFICATION | F59: SENTINEL LIGHTING SERVICE CLASSIFICATION | G59: STREET LIGHTING SERVICE CLASSIFICATION
A60: ERTH Power Corporation - ERTH Power Main Rate Zone | B60: RESIDENTIAL SERVICE CLASSIFICATION | C60: GENERAL SERVICE LESS THAN 50 KW SERVICE CLASSIFICATION | D60: GENERAL SERVICE 50 TO 999 KW SERVICE CLASSIFICATION | E60: GENERAL SERVICE 1,000 TO 4,999 KW SERVICE CLASSIFICATION | F60: LARGE USE SERVICE CLASSIFICATION | G60: UNMETERED SCATTERED LOAD SERVICE CLASSIFICATION | H60: SENTINEL LIGHTING SERVICE CLASSIFICATION | I60: STREET LIGHTING SERVICE CLASSIFICATION | J60: EMBEDDED DISTRIBUTOR SERVICE CLASSIFICATION
A61: Welland Hydro-Electric System Corp. | B61: RESIDENTIAL SERVICE CLASSIFICATION | C61: GENERAL SERVICE LESS THAN 50 KW SERVICE CLASSIFICATION | D61: GENERAL SERVICE 50 to 4,999 kW SERVICE CLASSIFICATION | E61: UNMETERED SCATTERED LOAD SERVICE CLASSIFICATION | F61: SENTINEL LIGHTING SERVICE CLASSIFICATION | G61: STREET LIGHTING SERVICE CLASSIFICATION
A62: Wellington North Power Inc. | B62: RESIDENTIAL SERVICE CLASSIFICATION | C62: GENERAL SERVICE LESS THAN 50 KW SERVICE CLASSIFICATION | D62: GENERAL SERVICE 50 TO 999 KW SERVICE CLASSIFICATION | E62: GENERAL SERVICE 1,000 TO 4,999 KW SERVICE CLASSIFICATION | F62: UNMETERED SCATTERED LOAD SERVICE CLASSIFICATION | G62: SENTINEL LIGHTING SERVICE CLASSIFICATION | H62: STREET LIGHTING SERVICE CLASSIFICATION
A63: Tillsonburg Hydro Inc. | B63: RESIDENTIAL SERVICE CLASSIFICATION | C63: GENERAL SERVICE LESS THAN 50 KW SERVICE CLASSIFICATION | D63: GENERAL SERVICE 50 TO 499 KW SERVICE CLASSIFICATION | E63: GENERAL SERVICE 500 TO 1,499 KW SERVICE CLASSIFICATION - Interval Metered | F63: GENERAL SERVICE EQUAL TO OR GREATER THAN 1,500 KW SERVICE CLASSIFICATION - Interval Metered | G63: UNMETERED SCATTERED LOAD SERVICE CLASSIFICATION | H63: SENTINEL LIGHTING SERVICE CLASSIFICATION | I63: STREET LIGHTING SERVICE CLASSIFICATION
A64: Veridian Connections Inc. | B64: RESIDENTIAL SERVICE CLASSIFICATION | C64: SEASONAL RESIDENTIAL SERVICE CLASSIFICATION | D64: GENERAL SERVICE LESS THAN 50 KW SERVICE CLASSIFICATION | E64: GENERAL SERVICE 50 TO 2,999 KW SERVICE CLASSIFICATION | F64: GENERAL SERVICE 3,000 TO 4,999 KW SERVICE CLASSIFICATION | G64: LARGE USE SERVICE CLASSIFICATION | H64: UNMETERED SCATTERED LOAD SERVICE CLASSIFICATION | I64: SENTINEL LIGHTING SERVICE CLASSIFICATION | J64: STREET LIGHTING SERVICE CLASSIFICATION
A65: Wasaga Distribution Inc. | B65: RESIDENTIAL SERVICE CLASSIFICATION | C65: GENERAL SERVICE LESS THAN 50 KW SERVICE CLASSIFICATION | D65: GENERAL SERVICE 50 to 4,999 kW SERVICE CLASSIFICATION | E65: UNMETERED SCATTERED LOAD SERVICE CLASSIFICATION | F65: STREET LIGHTING SERVICE CLASSIFICATION
A66: ERTH POWER CORPORATION – GODERICH RATE ZONE | B66: RESIDENTIAL SERVICE CLASSIFICATION | C66: GENERAL SERVICE LESS THAN 50 KW SERVICE CLASSIFICATION | D66: GENERAL SERVICE 50 TO 499 KW SERVICE CLASSIFICATION | E66: GENERAL SERVICE 500 TO 4,999 KW SERVICE CLASSIFICATION | F66: LARGE USE SERVICE CLASSIFICATION | G66: UNMETERED SCATTERED LOAD SERVICE CLASSIFICATION | H66: SENTINEL LIGHTING SERVICE CLASSIFICATION | I66: STREET LIGHTING SERVICE CLASSIFICATION
A67: Oshawa PUC Networks Inc. | B67: RESIDENTIAL SERVICE CLASSIFICATION | C67: GENERAL SERVICE LESS THAN 50 KW SERVICE CLASSIFICATION | D67: GENERAL SERVICE 50 TO 999 KW SERVICE CLASSIFICATION | E67: GENERAL SERVICE 1,000 TO 4,999 KW SERVICE CLASSIFICATION - Interval Metered | F67: LARGE USE SERVICE CLASSIFICATION - Interval Metered | G67: UNMETERED SCATTERED LOAD SERVICE CLASSIFICATION | H67: SENTINEL LIGHTING SERVICE CLASSIFICATION | I67: STREET LIGHTING SERVICE CLASSIFICATION
A68: Brantford Power Inc. | B68: RESIDENTIAL SERVICE CLASSIFICATION | C68: GENERAL SERVICE LESS THAN 50 KW SERVICE CLASSIFICATION | D68: GENERAL SERVICE 50 to 4,999 kW SERVICE CLASSIFICATION | E68: EMBEDDED DISTRIBUTOR SERVICE CLASSIFICATION | F68: SENTINEL LIGHTING SERVICE CLASSIFICATION | G68: STREET LIGHTING SERVICE CLASSIFICATION | H68: UNMETERED SCATTERED LOAD SERVICE CLASSIFICATION
A69: Oakville Hydro Electricity Distribution Inc. | B69: RESIDENTIAL SERVICE CLASSIFICATION | C69: GENERAL SERVICE LESS THAN 50 KW SERVICE CLASSIFICATION | D69: GENERAL SERVICE 50 TO 999 KW SERVICE CLASSIFICATION | E69: GENERAL SERVICE 1,000 KW AND GREATER SERVICE CLASSIFICATION - Interval Metered | F69: UNMETERED SCATTERED LOAD SERVICE CLASSIFICATION | G69: SENTINEL LIGHTING SERVICE CLASSIFICATION | H69: STREET LIGHTING SERVICE CLASSIFICATION | I69: EMBEDDED DISTRIBUTOR SERVICE CLASSIFICATION
A70: Chapleau Public Utilities Corporation | B70: RESIDENTIAL SERVICE CLASSIFICATION | C70: GENERAL SERVICE LESS THAN 50 kW SERVICE CLASSIFICATION | D70: GENERAL SERVICE 50 TO 4,999 KW SERVICE CLASSIFICATION | E70: UNMETERED SCATTERED LOAD SERVICE CLASSIFICATION | F70: SENTINEL LIGHTING SERVICE CLASSIFICATION | G70: STREET LIGHTING SERVICE CLASSIFICATION
A71: Espanola Regional Hydro Distribution Corporation | B71: RESIDENTIAL SERVICE CLASSIFICATION | C71: GENERAL SERVICE LESS THAN 50 kW SERVICE CLASSIFICATION | D71: GENERAL SERVICE 50 TO 4,999 KW SERVICE CLASSIFICATION | E71: UNMETERED SCATTERED LOAD SERVICE CLASSIFICATION | F71: SENTINEL LIGHTING SERVICE CLASSIFICATION | G71: STREET LIGHTING SERVICE CLASSIFICATION
A72: Energy+ Inc.-For Former Brant County Power Service Area | B72: RESIDENTIAL SERVICE CLASSIFICATION | C72: GENERAL SERVICE LESS THAN 50 KW SERVICE CLASSIFICATION | D72: GENERAL SERVICE 50 to 4,999 kW SERVICE CLASSIFICATION | E72: UNMETERED SCATTERED LOAD SERVICE CLASSIFICATION | F72: SENTINEL LIGHTING SERVICE CLASSIFICATION | G72: STREET LIGHTING SERVICE CLASSIFICATION
A73: Energy+ Inc.-For Former Cambridge and North Dumfries Hydro Service Area | B73: RESIDENTIAL SERVICE CLASSIFICATION | C73: GENERAL SERVICE LESS THAN 50 KW SERVICE CLASSIFICATION | D73: GENERAL SERVICE 50 TO 999 KW SERVICE CLASSIFICATION | E73: GENERAL SERVICE 1,000 TO 4,999 KW SERVICE CLASSIFICATION | F73: LARGE USE SERVICE CLASSIFICATION | G73: UNMETERED SCATTERED LOAD SERVICE CLASSIFICATION | H73: STREET LIGHTING SERVICE CLASSIFICATION | I73: EMBEDDED DISTRIBUTOR SERVICE CLASSIFICATION
A74: Hydro 2000 Inc. | B74: RESIDENTIAL SERVICE CLASSIFICATION | C74: GENERAL SERVICE LESS THAN 50 kW SERVICE CLASSIFICATION | D74: GENERAL SERVICE 50 TO 4,999 KW SERVICE CLASSIFICATION | E74: STREET LIGHTING SERVICE CLASSIFICATION | F74: UNMETERED SCATTERED LOAD SERVICE CLASSIFICATION
A75: Niagara-on-the-Lake Hydro Inc. | B75: RESIDENTIAL SERVICE CLASSIFICATION | C75: GENERAL SERVICE LESS THAN 50 KW SERVICE CLASSIFICATION | D75: GENERAL SERVICE 50 to 4,999 kW SERVICE CLASSIFICATION | E75: UNMETERED SCATTERED LOAD SERVICE CLASSIFICATION | F75: STREET LIGHTING SERVICE CLASSIFICATION
A76: PUC Distribution Inc. | B76: RESIDENTIAL SERVICE CLASSIFICATION | C76: GENERAL SERVICE LESS THAN 50 KW SERVICE CLASSIFICATION | D76: GENERAL SERVICE 50 to 4,999 kW SERVICE CLASSIFICATION | E76: UNMETERED SCATTERED LOAD SERVICE CLASSIFICATION | F76: SENTINEL LIGHTING SERVICE CLASSIFICATION | G76: STREET LIGHTING SERVICE CLASSIFICATION

Sheet F1.2 CalcTaxChg RRider OptA FV (hidden)
C2: ='1. Info'!#REF! -> 
C3: ='1. Info'!#REF! -> 
C4: ='1. Info'!#REF! -> 
C10: ='Z1.0 OEB Control Sheet'!#REF! -> 
B20: Control | C20: Rate Class | D20: Fixed Metric | E20: Vol Metric | G20: Service Charge % Revenue | H20: Distribution Volumetric Rate % Revenue kWh | I20: Distribution Volumetric Rate % Revenue kW | K20: Service Charge Revenue | L20: Distribution Volumetric Rate Revenue kWh | M20: Distribution Volumetric Rate Revenue kW | N20: Total Revenue by Rate Class | P20: Billed Customers or Connections | Q20: Billed kWh | R20: Billed kW | T20: Service Charge Rate Rider | U20: Distribution Volumetric Rate kWh Rate Rider | V20: Distribution Volumetric Rate kW Rate Rider
G21: A | H21: B | I21: C | K21: D = $N * A | L21: E = $N * B | M21: F = $N * C | N21: G = D + E + F | P21: H | Q21: I | R21: J | T21: K = D / H / 12 | U21: L = E / I | V21: M = F / J
B22: 1 | C22: ='3. Re-Based Bill Det & Rates'!D22 -> RESIDENTIAL SERVICE CLASSIFICATION | D22: ='3. Re-Based Bill Det & Rates'!E22 -> Customers | E22: ='3. Re-Based Bill Det & Rates'!F22 -> kWh | G22: =IF(ISERROR(#REF!*(#REF!/#REF!)),0,#REF!*(#REF!/#REF!)) -> 0 | H22: =IF(ISERROR(#REF!*(#REF!/#REF!)),0,#REF!*(#REF!/#REF!)) -> 0 | I22: =IF(ISERROR(#REF!*(#REF!/#REF!)),0,#REF!*(#REF!/#REF!)) -> 0 | K22: =IF(ISERROR($N$47*G22),"",$N$47*G22) ->  | L22: =IF(ISERROR($N$47*H22),"",$N$47*H22) ->  | M22: =IF(ISERROR($N$47*I22),"",$N$47*I22) ->  | N22: =SUM(K22:M22) -> 0 | P22: ='3. Re-Based Bill Det & Rates'!I22 -> 51255 | Q22: ='3. Re-Based Bill Det & Rates'!J22 -> 379776105 | R22: ='3. Re-Based Bill Det & Rates'!K22 -> 0 | T22: =IF(ISERROR(K22/P22/12),"",ROUND(K22/P22/12,6)) ->  | U22: =IF(ISERROR(L22/Q22),"",ROUND(L22/Q22,6)) ->  | V22: =IF(ISERROR(M22/R22),"",ROUND(M22/R22,6)) -> 
B23: 2 | C23: ='3. Re-Based Bill Det & Rates'!D23 -> GENERAL SERVICE LESS THAN 50 KW SERVICE CLASSIFICATION | D23: ='3. Re-Based Bill Det & Rates'!E23 -> Customers | E23: ='3. Re-Based Bill Det & Rates'!F23 -> kWh | G23: =IF(ISERROR(#REF!*(#REF!/#REF!)),0,#REF!*(#REF!/#REF!)) -> 0 | H23: =IF(ISERROR(#REF!*(#REF!/#REF!)),0,#REF!*(#REF!/#REF!)) -> 0 | I23: =IF(ISERROR(#REF!*(#REF!/#REF!)),0,#REF!*(#REF!/#REF!)) -> 0 | N23: 0 | P23: ='3. Re-Based Bill Det & Rates'!I23 -> 5487 | Q23: ='3. Re-Based Bill Det & Rates'!J23 -> 171279860 | R23: ='3. Re-Based Bill Det & Rates'!K23 -> 0 | T23: =IF(ISERROR(K23/P23/12),"",ROUND(K23/P23/12,6)) ->  | U23: =IF(ISERROR(L23/Q23),"",ROUND(L23/Q23,6)) ->  | V23: =IF(ISERROR(M23/R23),"",ROUND(M23/R23,6)) -> 
B24: 3 | C24: ='3. Re-Based Bill Det & Rates'!D24 -> GENERAL SERVICE 50 TO 999 KW SERVICE CLASSIFICATION | D24: ='3. Re-Based Bill Det & Rates'!E24 -> Customers | E24: ='3. Re-Based Bill Det & Rates'!F24 -> kW | G24: =IF(ISERROR(#REF!*(#REF!/#REF!)),0,#REF!*(#REF!/#REF!)) -> 0 | H24: =IF(ISERROR(#REF!*(#REF!/#REF!)),0,#REF!*(#REF!/#REF!)) -> 0 | I24: =IF(ISERROR(#REF!*(#REF!/#REF!)),0,#REF!*(#REF!/#REF!)) -> 0 | N24: 0 | P24: ='3. Re-Based Bill Det & Rates'!I24 -> 465 | Q24: ='3. Re-Based Bill Det & Rates'!J24 -> 285468167 | R24: ='3. Re-Based Bill Det & Rates'!K24 -> 708872
B25: 4 | C25: ='3. Re-Based Bill Det & Rates'!D25 -> GENERAL SERVICE 1,000 KW OR GREATER SERVICE CLASSIFICATION | D25: ='3. Re-Based Bill Det & Rates'!E25 -> Customers | E25: ='3. Re-Based Bill Det & Rates'!F25 -> kW | G25: =IF(ISERROR(#REF!*(#REF!/#REF!)),0,#REF!*(#REF!/#REF!)) -> 0 | H25: =IF(ISERROR(#REF!*(#REF!/#REF!)),0,#REF!*(#REF!/#REF!)) -> 0 | I25: =IF(ISERROR(#REF!*(#REF!/#REF!)),0,#REF!*(#REF!/#REF!)) -> 0 | N25: 0 | P25: ='3. Re-Based Bill Det & Rates'!I25 -> 15 | Q25: ='3. Re-Based Bill Det & Rates'!J25 -> 147499803 | R25: ='3. Re-Based Bill Det & Rates'!K25 -> 472990
B26: 5 | C26: ='3. Re-Based Bill Det & Rates'!D26 -> UNMETERED SCATTERED LOAD SERVICE CLASSIFICATION | D26: ='3. Re-Based Bill Det & Rates'!E26 -> Connections | E26: ='3. Re-Based Bill Det & Rates'!F26 -> kWh | G26: =IF(ISERROR(#REF!*(#REF!/#REF!)),0,#REF!*(#REF!/#REF!)) -> 0 | H26: =IF(ISERROR(#REF!*(#REF!/#REF!)),0,#REF!*(#REF!/#REF!)) -> 0 | I26: =IF(ISERROR(#REF!*(#REF!/#REF!)),0,#REF!*(#REF!/#REF!)) -> 0 | N26: 0 | P26: ='3. Re-Based Bill Det & Rates'!I26 -> 432 | Q26: ='3. Re-Based Bill Det & Rates'!J26 -> 2088274 | R26: ='3. Re-Based Bill Det & Rates'!K26 -> 0
B27: 6 | C27: ='3. Re-Based Bill Det & Rates'!D27 -> SENTINEL LIGHTING SERVICE CLASSIFICATION | D27: ='3. Re-Based Bill Det & Rates'!E27 -> Connections | E27: ='3. Re-Based Bill Det & Rates'!F27 -> kW | G27: =IF(ISERROR(#REF!*(#REF!/#REF!)),0,#REF!*(#REF!/#REF!)) -> 0 | H27: =IF(ISERROR(#REF!*(#REF!/#REF!)),0,#REF!*(#REF!/#REF!)) -> 0 | I27: =IF(ISERROR(#REF!*(#REF!/#REF!)),0,#REF!*(#REF!/#REF!)) -> 0 | N27: 0 | P27: ='3. Re-Based Bill Det & Rates'!I27 -> 113 | Q27: ='3. Re-Based Bill Det & Rates'!J27 -> 96035 | R27: ='3. Re-Based Bill Det & Rates'!K27 -> 258
B28: 7 | C28: ='3. Re-Based Bill Det & Rates'!D28 -> STREET LIGHTING SERVICE CLASSIFICATION | D28: ='3. Re-Based Bill Det & Rates'!E28 -> Connections | E28: ='3. Re-Based Bill Det & Rates'!F28 -> kW | G28: =IF(ISERROR(#REF!*(#REF!/#REF!)),0,#REF!*(#REF!/#REF!)) -> 0 | H28: =IF(ISERROR(#REF!*(#REF!/#REF!)),0,#REF!*(#REF!/#REF!)) -> 0 | I28: =IF(ISERROR(#REF!*(#REF!/#REF!)),0,#REF!*(#REF!/#REF!)) -> 0 | N28: 0 | P28: ='3. Re-Based Bill Det & Rates'!I28 -> 13656 | Q28: ='3. Re-Based Bill Det & Rates'!J28 -> 5592860 | R28: ='3. Re-Based Bill Det & Rates'!K28 -> 15924
B29: 8 | C29: ='3. Re-Based Bill Det & Rates'!D29 -> 0 | D29: ='3. Re-Based Bill Det & Rates'!E29 -> 0 | E29: ='3. Re-Based Bill Det & Rates'!F29 -> 0 | G29: =IF(ISERROR(#REF!*(#REF!/#REF!)),0,#REF!*(#REF!/#REF!)) -> 0 | H29: =IF(ISERROR(#REF!*(#REF!/#REF!)),0,#REF!*(#REF!/#REF!)) -> 0 | I29: =IF(ISERROR(#REF!*(#REF!/#REF!)),0,#REF!*(#REF!/#REF!)) -> 0 | N29: 0 | P29: ='3. Re-Based Bill Det & Rates'!I29 -> 0 | Q29: ='3. Re-Based Bill Det & Rates'!J29 -> 0 | R29: ='3. Re-Based Bill Det & Rates'!K29 -> 0
B30: 9 | C30: ='3. Re-Based Bill Det & Rates'!D30 -> 0 | D30: ='3. Re-Based Bill Det & Rates'!E30 -> 0 | E30: ='3. Re-Based Bill Det & Rates'!F30 -> 0 | G30: =IF(ISERROR(#REF!*(#REF!/#REF!)),0,#REF!*(#REF!/#REF!)) -> 0 | H30: =IF(ISERROR(#REF!*(#REF!/#REF!)),0,#REF!*(#REF!/#REF!)) -> 0 | I30: =IF(ISERROR(#REF!*(#REF!/#REF!)),0,#REF!*(#REF!/#REF!)) -> 0 | N30: 0 | P30: ='3. Re-Based Bill Det & Rates'!I30 -> 0 | Q30: ='3. Re-Based Bill Det & Rates'!J30 -> 0 | R30: ='3. Re-Based Bill Det & Rates'!K30 -> 0
B31: 10 | C31: ='3. Re-Based Bill Det & Rates'!D31 -> 0 | D31: ='3. Re-Based Bill Det & Rates'!E31 -> 0 | E31: ='3. Re-Based Bill Det & Rates'!F31 -> 0 | G31: =IF(ISERROR(#REF!*(#REF!/#REF!)),0,#REF!*(#REF!/#REF!)) -> 0 | H31: =IF(ISERROR(#REF!*(#REF!/#REF!)),0,#REF!*(#REF!/#REF!)) -> 0 | I31: =IF(ISERROR(#REF!*(#REF!/#REF!)),0,#REF!*(#REF!/#REF!)) -> 0 | N31: 0 | P31: ='3. Re-Based Bill Det & Rates'!I31 -> 0 | Q31: ='3. Re-Based Bill Det & Rates'!J31 -> 0 | R31: ='3. Re-Based Bill Det & Rates'!K31 -> 0
B32: 11 | C32: ='3. Re-Based Bill Det & Rates'!D32 -> 0 | D32: ='3. Re-Based Bill Det & Rates'!E32 -> 0 | E32: ='3. Re-Based Bill Det & Rates'!F32 -> 0 | G32: =IF(ISERROR(#REF!*(#REF!/#REF!)),0,#REF!*(#REF!/#REF!)) -> 0 | H32: =IF(ISERROR(#REF!*(#REF!/#REF!)),0,#REF!*(#REF!/#REF!)) -> 0 | I32: =IF(ISERROR(#REF!*(#REF!/#REF!)),0,#REF!*(#REF!/#REF!)) -> 0 | N32: 0 | P32: ='3. Re-Based Bill Det & Rates'!I32 -> 0 | Q32: ='3. Re-Based Bill Det & Rates'!J32 -> 0 | R32: ='3. Re-Based Bill Det & Rates'!K32 -> 0
B33: 12 | C33: ='3. Re-Based Bill Det & Rates'!D33 -> 0 | D33: ='3. Re-Based Bill Det & Rates'!E33 -> 0 | E33: ='3. Re-Based Bill Det & Rates'!F33 -> 0 | G33: =IF(ISERROR(#REF!*(#REF!/#REF!)),0,#REF!*(#REF!/#REF!)) -> 0 | H33: =IF(ISERROR(#REF!*(#REF!/#REF!)),0,#REF!*(#REF!/#REF!)) -> 0 | I33: =IF(ISERROR(#REF!*(#REF!/#REF!)),0,#REF!*(#REF!/#REF!)) -> 0 | N33: 0 | P33: ='3. Re-Based Bill Det & Rates'!I33 -> 0 | Q33: ='3. Re-Based Bill Det & Rates'!J33 -> 0 | R33: ='3. Re-Based Bill Det & Rates'!K33 -> 0
B34: 13 | C34: ='3. Re-Based Bill Det & Rates'!D34 -> 0 | D34: ='3. Re-Based Bill Det & Rates'!E34 -> 0 | E34: ='3. Re-Based Bill Det & Rates'!F34 -> 0 | G34: =IF(ISERROR(#REF!*(#REF!/#REF!)),0,#REF!*(#REF!/#REF!)) -> 0 | H34: =IF(ISERROR(#REF!*(#REF!/#REF!)),0,#REF!*(#REF!/#REF!)) -> 0 | I34: =IF(ISERROR(#REF!*(#REF!/#REF!)),0,#REF!*(#REF!/#REF!)) -> 0 | N34: 0 | P34: ='3. Re-Based Bill Det & Rates'!I34 -> 0 | Q34: ='3. Re-Based Bill Det & Rates'!J34 -> 0 | R34: ='3. Re-Based Bill Det & Rates'!K34 -> 0
B35: 14 | C35: ='3. Re-Based Bill Det & Rates'!D35 -> 0 | D35: ='3. Re-Based Bill Det & Rates'!E35 -> 0 | E35: ='3. Re-Based Bill Det & Rates'!F35 -> 0 | G35: =IF(ISERROR(#REF!*(#REF!/#REF!)),0,#REF!*(#REF!/#REF!)) -> 0 | H35: =IF(ISERROR(#REF!*(#REF!/#REF!)),0,#REF!*(#REF!/#REF!)) -> 0 | I35: =IF(ISERROR(#REF!*(#REF!/#REF!)),0,#REF!*(#REF!/#REF!)) -> 0 | N35: 0 | P35: ='3. Re-Based Bill Det & Rates'!I35 -> 0 | Q35: ='3. Re-Based Bill Det & Rates'!J35 -> 0 | R35: ='3. Re-Based Bill Det & Rates'!K35 -> 0
B36: 15 | C36: ='3. Re-Based Bill Det & Rates'!D36 -> 0 | D36: ='3. Re-Based Bill Det & Rates'!E36 -> 0 | E36: ='3. Re-Based Bill Det & Rates'!F36 -> 0 | G36: =IF(ISERROR(#REF!*(#REF!/#REF!)),0,#REF!*(#REF!/#REF!)) -> 0 | H36: =IF(ISERROR(#REF!*(#REF!/#REF!)),0,#REF!*(#REF!/#REF!)) -> 0 | I36: =IF(ISERROR(#REF!*(#REF!/#REF!)),0,#REF!*(#REF!/#REF!)) -> 0 | N36: 0 | P36: ='3. Re-Based Bill Det & Rates'!I36 -> 0 | Q36: ='3. Re-Based Bill Det & Rates'!J36 -> 0 | R36: ='3. Re-Based Bill Det & Rates'!K36 -> 0
B37: 16 | C37: ='3. Re-Based Bill Det & Rates'!D37 -> 0 | D37: ='3. Re-Based Bill Det & Rates'!E37 -> 0 | E37: ='3. Re-Based Bill Det & Rates'!F37 -> 0 | G37: =IF(ISERROR(#REF!*(#REF!/#REF!)),0,#REF!*(#REF!/#REF!)) -> 0 | H37: =IF(ISERROR(#REF!*(#REF!/#REF!)),0,#REF!*(#REF!/#REF!)) -> 0 | I37: =IF(ISERROR(#REF!*(#REF!/#REF!)),0,#REF!*(#REF!/#REF!)) -> 0 | N37: 0 | P37: ='3. Re-Based Bill Det & Rates'!I37 -> 0 | Q37: ='3. Re-Based Bill Det & Rates'!J37 -> 0 | R37: ='3. Re-Based Bill Det & Rates'!K37 -> 0
B38: 17 | C38: ='3. Re-Based Bill Det & Rates'!D38 -> 0 | D38: ='3. Re-Based Bill Det & Rates'!E38 -> 0 | E38: ='3. Re-Based Bill Det & Rates'!F38 -> 0 | G38: =IF(ISERROR(#REF!*(#REF!/#REF!)),0,#REF!*(#REF!/#REF!)) -> 0 | H38: =IF(ISERROR(#REF!*(#REF!/#REF!)),0,#REF!*(#REF!/#REF!)) -> 0 | I38: =IF(ISERROR(#REF!*(#REF!/#REF!)),0,#REF!*(#REF!/#REF!)) -> 0 | N38: 0 | P38: ='3. Re-Based Bill Det & Rates'!I38 -> 0 | Q38: ='3. Re-Based Bill Det & Rates'!J38 -> 0 | R38: ='3. Re-Based Bill Det & Rates'!K38 -> 0
B39: 18 | C39: ='3. Re-Based Bill Det & Rates'!D39 -> 0 | D39: ='3. Re-Based Bill Det & Rates'!E39 -> 0 | E39: ='3. Re-Based Bill Det & Rates'!F39 -> 0 | G39: =IF(ISERROR(#REF!*(#REF!/#REF!)),0,#REF!*(#REF!/#REF!)) -> 0 | H39: =IF(ISERROR(#REF!*(#REF!/#REF!)),0,#REF!*(#REF!/#REF!)) -> 0 | I39: =IF(ISERROR(#REF!*(#REF!/#REF!)),0,#REF!*(#REF!/#REF!)) -> 0 | N39: 0 | P39: ='3. Re-Based Bill Det & Rates'!I39 -> 0 | Q39: ='3. Re-Based Bill Det & Rates'!J39 -> 0 | R39: ='3. Re-Based Bill Det & Rates'!K39 -> 0
B40: 19 | C40: ='3. Re-Based Bill Det & Rates'!D40 -> 0 | D40: ='3. Re-Based Bill Det & Rates'!E40 -> 0 | E40: ='3. Re-Based Bill Det & Rates'!F40 -> 0 | G40: =IF(ISERROR(#REF!*(#REF!/#REF!)),0,#REF!*(#REF!/#REF!)) -> 0 | H40: =IF(ISERROR(#REF!*(#REF!/#REF!)),0,#REF!*(#REF!/#REF!)) -> 0 | I40: =IF(ISERROR(#REF!*(#REF!/#REF!)),0,#REF!*(#REF!/#REF!)) -> 0 | N40: 0 | P40: ='3. Re-Based Bill Det & Rates'!I40 -> 0 | Q40: ='3. Re-Based Bill Det & Rates'!J40 -> 0 | R40: ='3. Re-Based Bill Det & Rates'!K40 -> 0
B41: 20 | C41: ='3. Re-Based Bill Det & Rates'!D41 -> 0 | D41: ='3. Re-Based Bill Det & Rates'!E41 -> 0 | E41: ='3. Re-Based Bill Det & Rates'!F41 -> 0 | G41: =IF(ISERROR(#REF!*(#REF!/#REF!)),0,#REF!*(#REF!/#REF!)) -> 0 | H41: =IF(ISERROR(#REF!*(#REF!/#REF!)),0,#REF!*(#REF!/#REF!)) -> 0 | I41: =IF(ISERROR(#REF!*(#REF!/#REF!)),0,#REF!*(#REF!/#REF!)) -> 0 | N41: 0 | P41: ='3. Re-Based Bill Det & Rates'!I41 -> 0 | Q41: ='3. Re-Based Bill Det & Rates'!J41 -> 0 | R41: ='3. Re-Based Bill Det & Rates'!K41 -> 0
B42: 21 | C42: ='3. Re-Based Bill Det & Rates'!D42 -> 0 | D42: ='3. Re-Based Bill Det & Rates'!E42 -> 0 | E42: ='3. Re-Based Bill Det & Rates'!F42 -> 0 | G42: =IF(ISERROR(#REF!*(#REF!/#REF!)),0,#REF!*(#REF!/#REF!)) -> 0 | H42: =IF(ISERROR(#REF!*(#REF!/#REF!)),0,#REF!*(#REF!/#REF!)) -> 0 | I42: =IF(ISERROR(#REF!*(#REF!/#REF!)),0,#REF!*(#REF!/#REF!)) -> 0 | N42: 0 | P42: ='3. Re-Based Bill Det & Rates'!I42 -> 0 | Q42: ='3. Re-Based Bill Det & Rates'!J42 -> 0 | R42: ='3. Re-Based Bill Det & Rates'!K42 -> 0
B43: 22 | C43: ='3. Re-Based Bill Det & Rates'!D43 -> 0 | D43: ='3. Re-Based Bill Det & Rates'!E43 -> 0 | E43: ='3. Re-Based Bill Det & Rates'!F43 -> 0 | G43: =IF(ISERROR(#REF!*(#REF!/#REF!)),0,#REF!*(#REF!/#REF!)) -> 0 | H43: =IF(ISERROR(#REF!*(#REF!/#REF!)),0,#REF!*(#REF!/#REF!)) -> 0 | I43: =IF(ISERROR(#REF!*(#REF!/#REF!)),0,#REF!*(#REF!/#REF!)) -> 0 | N43: 0 | P43: ='3. Re-Based Bill Det & Rates'!I43 -> 0 | Q43: ='3. Re-Based Bill Det & Rates'!J43 -> 0 | R43: ='3. Re-Based Bill Det & Rates'!K43 -> 0
B44: 23 | C44: ='3. Re-Based Bill Det & Rates'!D44 -> 0 | D44: ='3. Re-Based Bill Det & Rates'!E44 -> 0 | E44: ='3. Re-Based Bill Det & Rates'!F44 -> 0 | G44: =IF(ISERROR(#REF!*(#REF!/#REF!)),0,#REF!*(#REF!/#REF!)) -> 0 | H44: =IF(ISERROR(#REF!*(#REF!/#REF!)),0,#REF!*(#REF!/#REF!)) -> 0 | I44: =IF(ISERROR(#REF!*(#REF!/#REF!)),0,#REF!*(#REF!/#REF!)) -> 0 | N44: 0 | P44: ='3. Re-Based Bill Det & Rates'!I44 -> 0 | Q44: ='3. Re-Based Bill Det & Rates'!J44 -> 0 | R44: ='3. Re-Based Bill Det & Rates'!K44 -> 0
B45: 24 | C45: ='3. Re-Based Bill Det & Rates'!D45 -> 0 | D45: ='3. Re-Based Bill Det & Rates'!E45 -> 0 | E45: ='3. Re-Based Bill Det & Rates'!F45 -> 0 | G45: =IF(ISERROR(#REF!*(#REF!/#REF!)),0,#REF!*(#REF!/#REF!)) -> 0 | H45: =IF(ISERROR(#REF!*(#REF!/#REF!)),0,#REF!*(#REF!/#REF!)) -> 0 | I45: =IF(ISERROR(#REF!*(#REF!/#REF!)),0,#REF!*(#REF!/#REF!)) -> 0 | N45: 0 | P45: ='3. Re-Based Bill Det & Rates'!I45 -> 0 | Q45: ='3. Re-Based Bill Det & Rates'!J45 -> 0 | R45: ='3. Re-Based Bill Det & Rates'!K45 -> 0
B46: 25 | C46: ='3. Re-Based Bill Det & Rates'!D46 -> 0 | D46: ='3. Re-Based Bill Det & Rates'!E46 -> 0 | E46: ='3. Re-Based Bill Det & Rates'!F46 -> 0 | G46: =IF(ISERROR(#REF!*(#REF!/#REF!)),0,#REF!*(#REF!/#REF!)) -> 0 | H46: =IF(ISERROR(#REF!*(#REF!/#REF!)),0,#REF!*(#REF!/#REF!)) -> 0 | I46: =IF(ISERROR(#REF!*(#REF!/#REF!)),0,#REF!*(#REF!/#REF!)) -> 0 | N46: 0 | P46: ='3. Re-Based Bill Det & Rates'!I46 -> 0 | Q46: ='3. Re-Based Bill Det & Rates'!J46 -> 0 | R46: ='3. Re-Based Bill Det & Rates'!K46 -> 0
K47: =SUM(K22:K46) -> 0 | L47: =SUM(L22:L46) -> 0 | M47: =SUM(M22:M46) -> 0 | N47: =#REF! -> 
N48: =SUM(N22:N46)-N47 -> 
N49: N
T50: Enter the above value onto Sheet "J2.1 Tax Change Rate Rider" of the 2010 OEB IRM3 Rate Generator.

Sheet G4.2 Incr Cap RRider Opt A FV (hidden)
C2: ='1. Info'!#REF! -> 
C3: ='1. Info'!#REF! -> 
C4: ='1. Info'!#REF! -> 
C10: ='Z1.0 OEB Control Sheet'!#REF! -> 
B20: Control | C20: Rate Class | D20: Fixed Metric | E20: Vol Metric | G20: Service Charge % Revenue | H20: Distribution Volumetric Rate % Revenue kWh | I20: Distribution Volumetric Rate % Revenue kW | K20: Service Charge Revenue | L20: Distribution Volumetric Rate Revenue kWh | M20: Distribution Volumetric Rate Revenue kW | N20: Total Revenue by Rate Class | P20: Billed Customers or Connections | Q20: Billed kWh | R20: Billed kW | T20: Service Charge Rate Rider | U20: Distribution Volumetric Rate kWh Rate Rider | V20: Distribution Volumetric Rate kW Rate Rider
G21: A | H21: B | I21: C | K21: D = $N * A | L21: E = $N * B | M21: F = $N * C | N21: G = D + E + F | P21: H | Q21: I | R21: J | T21: K = D / H / 12 | U21: L = E / I | V21: M = F / J
B22: 1 | C22: ='3. Re-Based Bill Det & Rates'!D22 -> RESIDENTIAL SERVICE CLASSIFICATION | D22: ='3. Re-Based Bill Det & Rates'!E22 -> Customers | E22: ='3. Re-Based Bill Det & Rates'!F22 -> kWh | G22: =IF(ISERROR(#REF!*(#REF!/#REF!)),0,#REF!*(#REF!/#REF!)) -> 0 | H22: =IF(ISERROR(#REF!*(#REF!/#REF!)),0,#REF!*(#REF!/#REF!)) -> 0 | I22: =IF(ISERROR(#REF!*(#REF!/#REF!)),0,#REF!*(#REF!/#REF!)) -> 0 | K22: =IF(ISERROR($N$47*G22),"",$N$47*G22) ->  | L22: =IF(ISERROR($N$47*H22),"",$N$47*H22) ->  | M22: =IF(ISERROR($N$47*I22),"",$N$47*I22) ->  | N22: =SUM(K22:M22) -> 0 | P22: ='3. Re-Based Bill Det & Rates'!I22 -> 51255 | Q22: ='3. Re-Based Bill Det & Rates'!J22 -> 379776105 | R22: ='3. Re-Based Bill Det & Rates'!K22 -> 0 | T22: =IF(ISERROR(K22/P22/12),"",ROUND(K22/P22/12,6)) ->  | U22: =IF(ISERROR(L22/Q22),"",ROUND(L22/Q22,6)) ->  | V22: =IF(ISERROR(M22/R22),"",ROUND(M22/R22,6)) -> 
B23: 2 | C23: ='3. Re-Based Bill Det & Rates'!D23 -> GENERAL SERVICE LESS THAN 50 KW SERVICE CLASSIFICATION | D23: ='3. Re-Based Bill Det & Rates'!E23 -> Customers | E23: ='3. Re-Based Bill Det & Rates'!F23 -> kWh | G23: =IF(ISERROR(#REF!*(#REF!/#REF!)),0,#REF!*(#REF!/#REF!)) -> 0 | H23: =IF(ISERROR(#REF!*(#REF!/#REF!)),0,#REF!*(#REF!/#REF!)) -> 0 | I23: =IF(ISERROR(#REF!*(#REF!/#REF!)),0,#REF!*(#REF!/#REF!)) -> 0 | N23: 0 | P23: ='3. Re-Based Bill Det & Rates'!I23 -> 5487 | Q23: ='3. Re-Based Bill Det & Rates'!J23 -> 171279860 | R23: ='3. Re-Based Bill Det & Rates'!K23 -> 0 | T23: =IF(ISERROR(K23/P23/12),"",ROUND(K23/P23/12,6)) ->  | U23: =IF(ISERROR(L23/Q23),"",ROUND(L23/Q23,6)) ->  | V23: =IF(ISERROR(M23/R23),"",ROUND(M23/R23,6)) -> 
B24: 3 | C24: ='3. Re-Based Bill Det & Rates'!D24 -> GENERAL SERVICE 50 TO 999 KW SERVICE CLASSIFICATION | D24: ='3. Re-Based Bill Det & Rates'!E24 -> Customers | E24: ='3. Re-Based Bill Det & Rates'!F24 -> kW | G24: =IF(ISERROR(#REF!*(#REF!/#REF!)),0,#REF!*(#REF!/#REF!)) -> 0 | H24: =IF(ISERROR(#REF!*(#REF!/#REF!)),0,#REF!*(#REF!/#REF!)) -> 0 | I24: =IF(ISERROR(#REF!*(#REF!/#REF!)),0,#REF!*(#REF!/#REF!)) -> 0 | N24: 0 | P24: ='3. Re-Based Bill Det & Rates'!I24 -> 465 | Q24: ='3. Re-Based Bill Det & Rates'!J24 -> 285468167 | R24: ='3. Re-Based Bill Det & Rates'!K24 -> 708872
B25: 4 | C25: ='3. Re-Based Bill Det & Rates'!D25 -> GENERAL SERVICE 1,000 KW OR GREATER SERVICE CLASSIFICATION | D25: ='3. Re-Based Bill Det & Rates'!E25 -> Customers | E25: ='3. Re-Based Bill Det & Rates'!F25 -> kW | G25: =IF(ISERROR(#REF!*(#REF!/#REF!)),0,#REF!*(#REF!/#REF!)) -> 0 | H25: =IF(ISERROR(#REF!*(#REF!/#REF!)),0,#REF!*(#REF!/#REF!)) -> 0 | I25: =IF(ISERROR(#REF!*(#REF!/#REF!)),0,#REF!*(#REF!/#REF!)) -> 0 | N25: 0 | P25: ='3. Re-Based Bill Det & Rates'!I25 -> 15 | Q25: ='3. Re-Based Bill Det & Rates'!J25 -> 147499803 | R25: ='3. Re-Based Bill Det & Rates'!K25 -> 472990
B26: 5 | C26: ='3. Re-Based Bill Det & Rates'!D26 -> UNMETERED SCATTERED LOAD SERVICE CLASSIFICATION | D26: ='3. Re-Based Bill Det & Rates'!E26 -> Connections | E26: ='3. Re-Based Bill Det & Rates'!F26 -> kWh | G26: =IF(ISERROR(#REF!*(#REF!/#REF!)),0,#REF!*(#REF!/#REF!)) -> 0 | H26: =IF(ISERROR(#REF!*(#REF!/#REF!)),0,#REF!*(#REF!/#REF!)) -> 0 | I26: =IF(ISERROR(#REF!*(#REF!/#REF!)),0,#REF!*(#REF!/#REF!)) -> 0 | N26: 0 | P26: ='3. Re-Based Bill Det & Rates'!I26 -> 432 | Q26: ='3. Re-Based Bill Det & Rates'!J26 -> 2088274 | R26: ='3. Re-Based Bill Det & Rates'!K26 -> 0
B27: 6 | C27: ='3. Re-Based Bill Det & Rates'!D27 -> SENTINEL LIGHTING SERVICE CLASSIFICATION | D27: ='3. Re-Based Bill Det & Rates'!E27 -> Connections | E27: ='3. Re-Based Bill Det & Rates'!F27 -> kW | G27: =IF(ISERROR(#REF!*(#REF!/#REF!)),0,#REF!*(#REF!/#REF!)) -> 0 | H27: =IF(ISERROR(#REF!*(#REF!/#REF!)),0,#REF!*(#REF!/#REF!)) -> 0 | I27: =IF(ISERROR(#REF!*(#REF!/#REF!)),0,#REF!*(#REF!/#REF!)) -> 0 | N27: 0 | P27: ='3. Re-Based Bill Det & Rates'!I27 -> 113 | Q27: ='3. Re-Based Bill Det & Rates'!J27 -> 96035 | R27: ='3. Re-Based Bill Det & Rates'!K27 -> 258
B28: 7 | C28: ='3. Re-Based Bill Det & Rates'!D28 -> STREET LIGHTING SERVICE CLASSIFICATION | D28: ='3. Re-Based Bill Det & Rates'!E28 -> Connections | E28: ='3. Re-Based Bill Det & Rates'!F28 -> kW | G28: =IF(ISERROR(#REF!*(#REF!/#REF!)),0,#REF!*(#REF!/#REF!)) -> 0 | H28: =IF(ISERROR(#REF!*(#REF!/#REF!)),0,#REF!*(#REF!/#REF!)) -> 0 | I28: =IF(ISERROR(#REF!*(#REF!/#REF!)),0,#REF!*(#REF!/#REF!)) -> 0 | N28: 0 | P28: ='3. Re-Based Bill Det & Rates'!I28 -> 13656 | Q28: ='3. Re-Based Bill Det & Rates'!J28 -> 5592860 | R28: ='3. Re-Based Bill Det & Rates'!K28 -> 15924
B29: 8 | C29: ='3. Re-Based Bill Det & Rates'!D29 -> 0 | D29: ='3. Re-Based Bill Det & Rates'!E29 -> 0 | E29: ='3. Re-Based Bill Det & Rates'!F29 -> 0 | G29: =IF(ISERROR(#REF!*(#REF!/#REF!)),0,#REF!*(#REF!/#REF!)) -> 0 | H29: =IF(ISERROR(#REF!*(#REF!/#REF!)),0,#REF!*(#REF!/#REF!)) -> 0 | I29: =IF(ISERROR(#REF!*(#REF!/#REF!)),0,#REF!*(#REF!/#REF!)) -> 0 | N29: 0 | P29: ='3. Re-Based Bill Det & Rates'!I29 -> 0 | Q29: ='3. Re-Based Bill Det & Rates'!J29 -> 0 | R29: ='3. Re-Based Bill Det & Rates'!K29 -> 0
B30: 9 | C30: ='3. Re-Based Bill Det & Rates'!D30 -> 0 | D30: ='3. Re-Based Bill Det & Rates'!E30 -> 0 | E30: ='3. Re-Based Bill Det & Rates'!F30 -> 0 | G30: =IF(ISERROR(#REF!*(#REF!/#REF!)),0,#REF!*(#REF!/#REF!)) -> 0 | H30: =IF(ISERROR(#REF!*(#REF!/#REF!)),0,#REF!*(#REF!/#REF!)) -> 0 | I30: =IF(ISERROR(#REF!*(#REF!/#REF!)),0,#REF!*(#REF!/#REF!)) -> 0 | N30: 0 | P30: ='3. Re-Based Bill Det & Rates'!I30 -> 0 | Q30: ='3. Re-Based Bill Det & Rates'!J30 -> 0 | R30: ='3. Re-Based Bill Det & Rates'!K30 -> 0
B31: 10 | C31: ='3. Re-Based Bill Det & Rates'!D31 -> 0 | D31: ='3. Re-Based Bill Det & Rates'!E31 -> 0 | E31: ='3. Re-Based Bill Det & Rates'!F31 -> 0 | G31: =IF(ISERROR(#REF!*(#REF!/#REF!)),0,#REF!*(#REF!/#REF!)) -> 0 | H31: =IF(ISERROR(#REF!*(#REF!/#REF!)),0,#REF!*(#REF!/#REF!)) -> 0 | I31: =IF(ISERROR(#REF!*(#REF!/#REF!)),0,#REF!*(#REF!/#REF!)) -> 0 | N31: 0 | P31: ='3. Re-Based Bill Det & Rates'!I31 -> 0 | Q31: ='3. Re-Based Bill Det & Rates'!J31 -> 0 | R31: ='3. Re-Based Bill Det & Rates'!K31 -> 0
B32: 11 | C32: ='3. Re-Based Bill Det & Rates'!D32 -> 0 | D32: ='3. Re-Based Bill Det & Rates'!E32 -> 0 | E32: ='3. Re-Based Bill Det & Rates'!F32 -> 0 | G32: =IF(ISERROR(#REF!*(#REF!/#REF!)),0,#REF!*(#REF!/#REF!)) -> 0 | H32: =IF(ISERROR(#REF!*(#REF!/#REF!)),0,#REF!*(#REF!/#REF!)) -> 0 | I32: =IF(ISERROR(#REF!*(#REF!/#REF!)),0,#REF!*(#REF!/#REF!)) -> 0 | N32: 0 | P32: ='3. Re-Based Bill Det & Rates'!I32 -> 0 | Q32: ='3. Re-Based Bill Det & Rates'!J32 -> 0 | R32: ='3. Re-Based Bill Det & Rates'!K32 -> 0
B33: 12 | C33: ='3. Re-Based Bill Det & Rates'!D33 -> 0 | D33: ='3. Re-Based Bill Det & Rates'!E33 -> 0 | E33: ='3. Re-Based Bill Det & Rates'!F33 -> 0 | G33: =IF(ISERROR(#REF!*(#REF!/#REF!)),0,#REF!*(#REF!/#REF!)) -> 0 | H33: =IF(ISERROR(#REF!*(#REF!/#REF!)),0,#REF!*(#REF!/#REF!)) -> 0 | I33: =IF(ISERROR(#REF!*(#REF!/#REF!)),0,#REF!*(#REF!/#REF!)) -> 0 | N33: 0 | P33: ='3. Re-Based Bill Det & Rates'!I33 -> 0 | Q33: ='3. Re-Based Bill Det & Rates'!J33 -> 0 | R33: ='3. Re-Based Bill Det & Rates'!K33 -> 0
B34: 13 | C34: ='3. Re-Based Bill Det & Rates'!D34 -> 0 | D34: ='3. Re-Based Bill Det & Rates'!E34 -> 0 | E34: ='3. Re-Based Bill Det & Rates'!F34 -> 0 | G34: =IF(ISERROR(#REF!*(#REF!/#REF!)),0,#REF!*(#REF!/#REF!)) -> 0 | H34: =IF(ISERROR(#REF!*(#REF!/#REF!)),0,#REF!*(#REF!/#REF!)) -> 0 | I34: =IF(ISERROR(#REF!*(#REF!/#REF!)),0,#REF!*(#REF!/#REF!)) -> 0 | N34: 0 | P34: ='3. Re-Based Bill Det & Rates'!I34 -> 0 | Q34: ='3. Re-Based Bill Det & Rates'!J34 -> 0 | R34: ='3. Re-Based Bill Det & Rates'!K34 -> 0
B35: 14 | C35: ='3. Re-Based Bill Det & Rates'!D35 -> 0 | D35: ='3. Re-Based Bill Det & Rates'!E35 -> 0 | E35: ='3. Re-Based Bill Det & Rates'!F35 -> 0 | G35: =IF(ISERROR(#REF!*(#REF!/#REF!)),0,#REF!*(#REF!/#REF!)) -> 0 | H35: =IF(ISERROR(#REF!*(#REF!/#REF!)),0,#REF!*(#REF!/#REF!)) -> 0 | I35: =IF(ISERROR(#REF!*(#REF!/#REF!)),0,#REF!*(#REF!/#REF!)) -> 0 | N35: 0 | P35: ='3. Re-Based Bill Det & Rates'!I35 -> 0 | Q35: ='3. Re-Based Bill Det & Rates'!J35 -> 0 | R35: ='3. Re-Based Bill Det & Rates'!K35 -> 0
B36: 15 | C36: ='3. Re-Based Bill Det & Rates'!D36 -> 0 | D36: ='3. Re-Based Bill Det & Rates'!E36 -> 0 | E36: ='3. Re-Based Bill Det & Rates'!F36 -> 0 | G36: =IF(ISERROR(#REF!*(#REF!/#REF!)),0,#REF!*(#REF!/#REF!)) -> 0 | H36: =IF(ISERROR(#REF!*(#REF!/#REF!)),0,#REF!*(#REF!/#REF!)) -> 0 | I36: =IF(ISERROR(#REF!*(#REF!/#REF!)),0,#REF!*(#REF!/#REF!)) -> 0 | N36: 0 | P36: ='3. Re-Based Bill Det & Rates'!I36 -> 0 | Q36: ='3. Re-Based Bill Det & Rates'!J36 -> 0 | R36: ='3. Re-Based Bill Det & Rates'!K36 -> 0
B37: 16 | C37: ='3. Re-Based Bill Det & Rates'!D37 -> 0 | D37: ='3. Re-Based Bill Det & Rates'!E37 -> 0 | E37: ='3. Re-Based Bill Det & Rates'!F37 -> 0 | G37: =IF(ISERROR(#REF!*(#REF!/#REF!)),0,#REF!*(#REF!/#REF!)) -> 0 | H37: =IF(ISERROR(#REF!*(#REF!/#REF!)),0,#REF!*(#REF!/#REF!)) -> 0 | I37: =IF(ISERROR(#REF!*(#REF!/#REF!)),0,#REF!*(#REF!/#REF!)) -> 0 | N37: 0 | P37: ='3. Re-Based Bill Det & Rates'!I37 -> 0 | Q37: ='3. Re-Based Bill Det & Rates'!J37 -> 0 | R37: ='3. Re-Based Bill Det & Rates'!K37 -> 0
B38: 17 | C38: ='3. Re-Based Bill Det & Rates'!D38 -> 0 | D38: ='3. Re-Based Bill Det & Rates'!E38 -> 0 | E38: ='3. Re-Based Bill Det & Rates'!F38 -> 0 | G38: =IF(ISERROR(#REF!*(#REF!/#REF!)),0,#REF!*(#REF!/#REF!)) -> 0 | H38: =IF(ISERROR(#REF!*(#REF!/#REF!)),0,#REF!*(#REF!/#REF!)) -> 0 | I38: =IF(ISERROR(#REF!*(#REF!/#REF!)),0,#REF!*(#REF!/#REF!)) -> 0 | N38: 0 | P38: ='3. Re-Based Bill Det & Rates'!I38 -> 0 | Q38: ='3. Re-Based Bill Det & Rates'!J38 -> 0 | R38: ='3. Re-Based Bill Det & Rates'!K38 -> 0
B39: 18 | C39: ='3. Re-Based Bill Det & Rates'!D39 -> 0 | D39: ='3. Re-Based Bill Det & Rates'!E39 -> 0 | E39: ='3. Re-Based Bill Det & Rates'!F39 -> 0 | G39: =IF(ISERROR(#REF!*(#REF!/#REF!)),0,#REF!*(#REF!/#REF!)) -> 0 | H39: =IF(ISERROR(#REF!*(#REF!/#REF!)),0,#REF!*(#REF!/#REF!)) -> 0 | I39: =IF(ISERROR(#REF!*(#REF!/#REF!)),0,#REF!*(#REF!/#REF!)) -> 0 | N39: 0 | P39: ='3. Re-Based Bill Det & Rates'!I39 -> 0 | Q39: ='3. Re-Based Bill Det & Rates'!J39 -> 0 | R39: ='3. Re-Based Bill Det & Rates'!K39 -> 0
B40: 19 | C40: ='3. Re-Based Bill Det & Rates'!D40 -> 0 | D40: ='3. Re-Based Bill Det & Rates'!E40 -> 0 | E40: ='3. Re-Based Bill Det & Rates'!F40 -> 0 | G40: =IF(ISERROR(#REF!*(#REF!/#REF!)),0,#REF!*(#REF!/#REF!)) -> 0 | H40: =IF(ISERROR(#REF!*(#REF!/#REF!)),0,#REF!*(#REF!/#REF!)) -> 0 | I40: =IF(ISERROR(#REF!*(#REF!/#REF!)),0,#REF!*(#REF!/#REF!)) -> 0 | N40: 0 | P40: ='3. Re-Based Bill Det & Rates'!I40 -> 0 | Q40: ='3. Re-Based Bill Det & Rates'!J40 -> 0 | R40: ='3. Re-Based Bill Det & Rates'!K40 -> 0
B41: 20 | C41: ='3. Re-Based Bill Det & Rates'!D41 -> 0 | D41: ='3. Re-Based Bill Det & Rates'!E41 -> 0 | E41: ='3. Re-Based Bill Det & Rates'!F41 -> 0 | G41: =IF(ISERROR(#REF!*(#REF!/#REF!)),0,#REF!*(#REF!/#REF!)) -> 0 | H41: =IF(ISERROR(#REF!*(#REF!/#REF!)),0,#REF!*(#REF!/#REF!)) -> 0 | I41: =IF(ISERROR(#REF!*(#REF!/#REF!)),0,#REF!*(#REF!/#REF!)) -> 0 | N41: 0 | P41: ='3. Re-Based Bill Det & Rates'!I41 -> 0 | Q41: ='3. Re-Based Bill Det & Rates'!J41 -> 0 | R41: ='3. Re-Based Bill Det & Rates'!K41 -> 0
B42: 21 | C42: ='3. Re-Based Bill Det & Rates'!D42 -> 0 | D42: ='3. Re-Based Bill Det & Rates'!E42 -> 0 | E42: ='3. Re-Based Bill Det & Rates'!F42 -> 0 | G42: =IF(ISERROR(#REF!*(#REF!/#REF!)),0,#REF!*(#REF!/#REF!)) -> 0 | H42: =IF(ISERROR(#REF!*(#REF!/#REF!)),0,#REF!*(#REF!/#REF!)) -> 0 | I42: =IF(ISERROR(#REF!*(#REF!/#REF!)),0,#REF!*(#REF!/#REF!)) -> 0 | N42: 0 | P42: ='3. Re-Based Bill Det & Rates'!I42 -> 0 | Q42: ='3. Re-Based Bill Det & Rates'!J42 -> 0 | R42: ='3. Re-Based Bill Det & Rates'!K42 -> 0
B43: 22 | C43: ='3. Re-Based Bill Det & Rates'!D43 -> 0 | D43: ='3. Re-Based Bill Det & Rates'!E43 -> 0 | E43: ='3. Re-Based Bill Det & Rates'!F43 -> 0 | G43: =IF(ISERROR(#REF!*(#REF!/#REF!)),0,#REF!*(#REF!/#REF!)) -> 0 | H43: =IF(ISERROR(#REF!*(#REF!/#REF!)),0,#REF!*(#REF!/#REF!)) -> 0 | I43: =IF(ISERROR(#REF!*(#REF!/#REF!)),0,#REF!*(#REF!/#REF!)) -> 0 | N43: 0 | P43: ='3. Re-Based Bill Det & Rates'!I43 -> 0 | Q43: ='3. Re-Based Bill Det & Rates'!J43 -> 0 | R43: ='3. Re-Based Bill Det & Rates'!K43 -> 0
B44: 23 | C44: ='3. Re-Based Bill Det & Rates'!D44 -> 0 | D44: ='3. Re-Based Bill Det & Rates'!E44 -> 0 | E44: ='3. Re-Based Bill Det & Rates'!F44 -> 0 | G44: =IF(ISERROR(#REF!*(#REF!/#REF!)),0,#REF!*(#REF!/#REF!)) -> 0 | H44: =IF(ISERROR(#REF!*(#REF!/#REF!)),0,#REF!*(#REF!/#REF!)) -> 0 | I44: =IF(ISERROR(#REF!*(#REF!/#REF!)),0,#REF!*(#REF!/#REF!)) -> 0 | N44: 0 | P44: ='3. Re-Based Bill Det & Rates'!I44 -> 0 | Q44: ='3. Re-Based Bill Det & Rates'!J44 -> 0 | R44: ='3. Re-Based Bill Det & Rates'!K44 -> 0
B45: 24 | C45: ='3. Re-Based Bill Det & Rates'!D45 -> 0 | D45: ='3. Re-Based Bill Det & Rates'!E45 -> 0 | E45: ='3. Re-Based Bill Det & Rates'!F45 -> 0 | G45: =IF(ISERROR(#REF!*(#REF!/#REF!)),0,#REF!*(#REF!/#REF!)) -> 0 | H45: =IF(ISERROR(#REF!*(#REF!/#REF!)),0,#REF!*(#REF!/#REF!)) -> 0 | I45: =IF(ISERROR(#REF!*(#REF!/#REF!)),0,#REF!*(#REF!/#REF!)) -> 0 | N45: 0 | P45: ='3. Re-Based Bill Det & Rates'!I45 -> 0 | Q45: ='3. Re-Based Bill Det & Rates'!J45 -> 0 | R45: ='3. Re-Based Bill Det & Rates'!K45 -> 0
B46: 25 | C46: ='3. Re-Based Bill Det & Rates'!D46 -> 0 | D46: ='3. Re-Based Bill Det & Rates'!E46 -> 0 | E46: ='3. Re-Based Bill Det & Rates'!F46 -> 0 | G46: =IF(ISERROR(#REF!*(#REF!/#REF!)),0,#REF!*(#REF!/#REF!)) -> 0 | H46: =IF(ISERROR(#REF!*(#REF!/#REF!)),0,#REF!*(#REF!/#REF!)) -> 0 | I46: =IF(ISERROR(#REF!*(#REF!/#REF!)),0,#REF!*(#REF!/#REF!)) -> 0 | N46: 0 | P46: ='3. Re-Based Bill Det & Rates'!I46 -> 0 | Q46: ='3. Re-Based Bill Det & Rates'!J46 -> 0 | R46: ='3. Re-Based Bill Det & Rates'!K46 -> 0
G47: =SUM(G22:G46) -> 0 | H47: =SUM(H22:H46) -> 0 | I47: =SUM(I22:I46) -> 0 | K47: =SUM(K22:K46) -> 0 | L47: =SUM(L22:L46) -> 0 | M47: =SUM(M22:M46) -> 0 | N47: =#REF! -> 
N48: =SUM(N22:N46)-N47 -> 
N49: N | T49: Enter the above value onto Sheet "J1.2 Incremental Cap Fund Adder" of the 2010 OEB IRM3 Rate Generator.

Sheet Z1.0 OEB Control Sheet (hidden)
A1: Sheet Number | B1: Assignment | C1: Sheet Title | D1: Core Sheet Name | E1: Chrs | F1: OEB Audit | G1: Purpose of Sheet
A2: Sheet1 | B2: A1.1 | C2: LDC Information | D2: A1.1 LDC Information | E2: =LEN(D2) -> 20 | F2: No | G2: Enter LDC Data
A3: Sheet2 | B3: A2.1 | C3: Table of Contents | D3: A2.1 Table of Contents | E3: 22 | F3: No | G3: Table of Contents
A4: Sheet3 | B4: B1.1 | C4: Rate Class Selection, Re-Based Billing Determinants & Current Tariff Rates | D4: B1.1 Re-Based Bill Det & Rates | E4: 30 | F4: No | G4: Set Up Rate Classes and enter Re-Based Billing Determinants and Current Tariff Rates
A5: Sheet4 | B5: B1.2 | C5: Removal of Rate Adders | D5: B1.2 Removal of Rate Adders | E5: 27 | F5: No | G5: Removal of Rate Adders
A6: Sheet5 | B6: B1.3 | C6: Calculated Current Revenue From Rates | D6: B1.3 Re-Based Rev From Rates | E6: 28 | F6: No | G6: Calculated Current Revenue From Rates
A7: Sheet6 | B7: C1.1 | C7: Decision - Cost Revenue Adjustments by Rate Class | D7: C1.1 Decision Cost Revenue Adj | E7: 30 | F7: No | G7: Decision - Cost Revenue Adjustments by Rate Class
A8: Sheet7 | B8: C1.2 | C8: Revenue Offsets Allocation | D8: C1.2 Revenue Offsets Allocation | E8: 31 | F8: No | G8: Revenue Offsets Allocation
A9: Sheet8 | B9: C1.3 | C9: Transformer Allowance | D9: C1.3 Transformer Allowance | E9: 26 | F9: No | G9: Transformer Allowance
A10: Sheet9 | B10: C1.4 | C10: Revenue / Cost Ratio Revenue | D10: C1.4 R C Ratio Revenue | E10: 22 | F10: No | G10: Revenue / Cost Ratio Revenue
A11: Sheet10 | B11: C1.5 | C11: Proposed Revenue / Cost Ratio Adjustment | D11: C1.5 Proposed R C Ratio Adj | E11: 27 | F11: No | G11: Proposed Revenue / Cost Ratio Adjustment
A12: Sheet11 | B12: C1.6 | C12: Proposed Revenue from Revenue / Cost Ratio Adjustment | D12: C1.6 Proposed Revenue | E12: 21 | F12: No | G12: Proposed Revenue from Revenue / Cost Ratio Adjustment
A13: Sheet12 | B13: C1.7 | C13: Proposed Fixed Variable Revenue Allocation | D13: C1.7 Proposed F V Rev Alloc | E13: 27 | F13: No | G13: Proposed Fixed Variable Revenue Allocation
A14: Sheet13 | B14: C1.8 | C14: Proposed Fixed and Variable Rates | D14: C1.8 Proposed F V Rates | E14: 23 | F14: No | G14: Proposed Fixed and Variable Rates
A15: Sheet14 | B15: C1.9 | C15: Adjustment required to Proposed Rates | D15: C1.9 Adjust To Proposed Rates | E15: 29 | F15: No | G15: Adjustment required to Proposed Rates
A16: Sheet15 | B16: Z1.0 | C16: OEB Control Sheet | D16: Z1.0 OEB Control Sheet | E16: 22 | F16: No | G16: Not Shown
